Workbook

Sheet Notes
A1: SVEModifiedRenkoBars.xlsm
A2: Coded beginning 2014-May-06 by Ronald McAllister (rpmac_xltt@sprynet.com)
A4: This Workbook demonstrates an EXCEL version of the ideas presented
A5: by Sylvain Vervoort in an article titled "Bars, Candles, or Bricks?: Exploring Charting Techniques Part 1"
A6: which appears in the July 2014 issue of
A7: "Technical Analysis of Stocks and Commodities" magazine.
A9: Change Log:
A11: CalculationsAndCharts construction Notes:
B13: In the time frame available to me to develop this spread sheet, I was not able to devise a way to accomplish building Mr. Vervoort's bars using
C14: purely cell based formulas. I won't say it cannot be done. And if someone comes up with an appropriate set of cell formulas, I would love to see the spreadsheet.
B16: Instead of a many columns of cell formulas solution I have taken an approach that uses a single custom built VBA array function.
C17: The VBA code and supporting structures are a bit more complex than I have used in previous Traders Tips but they get the job done rather quickly.
B19: This approach involves a couple of custom built VBA classes to store and deliver a stack of Renko bars as they are built and eventually reported out.
C20: To drive that process we have a user defined VBA function I named SVERenkoBars, which contains the logic to turn tick entries into renko bar bars which are passed to the class routines for safe storage.
C21: The class methods create and manipulate a forward and back linked list which I treat as a push stack to contain the renko bars as they are built. For ease of readability during the translation from Mr. Vervoort's
C22: Ninja code to VBA code, this class uses routines similar in name and hopefully similar in function to the NinjaTrader routines used in Mr. Vervoort's Sidebar code. I say similar in function
C23: because these routines are not documented in anything that I could find to be freely available to the general NinjaTrader User. My small understanding as to
C24: their function (what they actually do) has been cribbed and intuited from a myriad of Google hits that provide hints about them or provide examples of use with out any detailed explanation.
B26: My original class design used a push down stack. Through painful example, I found that my single direction stack would allow the bar creation process to
C27: overwhelm the available EXCEL memory when the Renko Bar control interval was set small enough on an instrument with a wide range of values.
C28: Under these conditions, the gap fill logic simply generates too many bars.
B29: I say painful as the only way out of the EXCEL error message and retry loop was to use the task manager to kill the EXCEL process. No save possibility.
C30: Thankfully, past instances of runaway code such as this are why I do frequent saves. So not very much in the way of code had to be reconstructed when this happened.
B32: To avoid this memory overload problem entirely, I have modified the class logic to support a double link list. The logic now keeps a pointer to the last (oldest) bar on the list so that it can
C33: prune away this last (oldest) bar each time a new bar pushes the stack over the maximum bar limit. As a matter of expediency, the maximum bar limit is automatically set to
C34: the number of calling area rows. This is the area selected by the user when the SVERenkoBars function is Array Entered. My thinking is that there is no need to keep
C35: more bars than the calling area has rows to accept. And, I would rather see the most current bars if I must choose between old and new. So old bar pruning was the logical choice.
B37: The SVERenkoBars function is an EXCEL Array Function. For those not familiar with EXCEL array functions and formulas, you have some Google time and some EXCEL help reading ahead of you.
C38: Suffice it to say that an array function allows one to send a large amount of data to a single call of a function and have the results of that single call returned to a large "array" of adjacent cells.
C39: As used here, SVERenkobars output area occupies 2800 rows in a range of cells bounded by J33:Q2832. Surely more bars than you will want to see scrunched together on a chart.
B41: Properly setting up an array formula on the worksheet involves a couple of steps:
C42: First, select the entire area of cells intended to contain the results of the function call,
C43: Second, enter the Function formula with all of its parameter specifications in the top left cell of the area,
C44: Third, do not press ENTER to complete the formula. Instead, with the entire output area selected, and still in edit mode on the formula in the top left cell of the output area,
C45: hold down CNTRL and SHIFT while you press ENTER. Apologies to MAC users; the steps are the same, but I know that the keys are named differently.
C46: If you got it right, all cells in your output area will now show output values from the function.
C47: For the curious: If you randomly select individual cells in the output area, the formula bar will show that they contain a copy of the formula you array entered at the top left, now enclosed in curly {} braces.
C49: In the event that you wish make changes to the size, location, or formatting of an array formula output area, you will need to first need to get the ALL of output area cells out of array formula mode at the same time.
C50: Select the entire array formula output cell area. Use F2 to enter edit mode. Then Hold down the CNTRL key and press ENTER. Again, MAC users, the actions are the same but the key names are different.
C51: For this exercise, taking these cells out of array formula mode will result in all of the cells in the array output area showing error messages. You can ignore these while you make your changes.
C52: To clear the underbrush so to speak, I typically Clear Contents for all of the output area cells except the top left cell. This improves the look of things while you make your adjustments and
C53: preserves one copy of the formula for potential alteration and subsequent use to re-establish the functionality.
B55: See commentary and VBA code in the SVERenkoBarclass module to see how the Bar class object is defined. Take a look at the SVERenkoBarsList class module to see the
C56: VBA code and commentary for BarList object methods and functions that are used to create and manipulate Bar class objects when building the bar list object.
B58: See the SVERenkoDriver module for commentary and VBA mainline code of the SVERenkoBars Function which uses these classes to create our Renko Bars.
B60: Last Note: The SVERenkoBars Chart tab displays a fixed number of bars on the chart. No button nor VBA code has been set up to dynamicly to changethe number of bars for you.
C61: However, if you are comfortable with it, you may use the chart Select Data dialog to alter the number of bars for each data series.
C62: The SVERenkoBars chart will automatically adjust Vertical axis specifications to accommodate the vertical range of renko bars as you change the
C63: user controls on the Calculations and charts page.
A65: Data for this EXCEL example:
C67: A bit of Google research shows that it is possible to get recent historical tick level Forex data for free.
C68: One such free site available at this writing is "myfxbook" sponsored by FxPro.
C69: IMPORTANT NOTE: I have no relationship with the "myfxbook" site nor do I have a relationship with FxPro.
C71: EURUSD history can be found on this site with the following link. Other currency pairs are also available on this site.
C72: http://www.myfxbook.com/forex-market/currencies/EURUSD-historical-data
C74: You will need to do a bit of copy and paste work to use data from this site in this workbook.
C76: A brief exploration of this web site shows that the Free End-of-day level history goes back several years.
C77: Unfortunately for this exercise, the free history for sub-day intervals (ticks down to 5 min) seems to go back less than a year.
C78: 1 min ticks seems to be available only for the preceding 24 hours.
C80: Also, exploration of the various sub-day tick levels shows that this site is tracking a 24 hour day and so must be reporting data from markets around the globe.
C81: Looking at the reported end of day values and scanning sub day tick level values for a match suggests that the sub day interval time stamps are GMT values.
C82: Eastern standard time is a 5 hour offset from GMT. That aligns well with the observed end of day to sub day tick value level match ups.
C83: This suggests that one might want to apply a time zone offset to the sub day timestamps to align them to where you live.
C85: Bottom line: for this exercise we can not get sub day tick level data from this site for the October 2013 time period reflected in Mr. Vervoort's example charts, at least not
C86: from any free source that I have found. As for automating some sort of data retrieval from the free public interface? For now I will leave that as a user exercise.
C88: That being said, the basic logic for Mr. Vervoort's Modified Renko Bars can be applied to data using any interval so I will use McDonald's Corpor (MCD) end of day data for this exercise.
A90: Development Notes:
A91: 1 | C91: This workbook contains and uses VBA macros.
A92: 2 | C92: Input Data
C93: The data in this workbook is sorted date descending (most recent date at the top). All formulas and
C94: VBA routines are built accordingly.
A96: Calculation and Chart Worksheet Usage Comments:
A97: 1 | C97: In General, Items in Bolded BLUE are items you may freely change to play what-if games.
C98: Be sure to have a backup copy of the spreadsheet before you alter anything else.
A99: 2 | C99: Several of the column formulas begin with "IF" logic that determines when there is sufficient data
C100: available for the subsequent calculations to be relevant. The cell will calculate to blank or the
C101: result of the calculation.
C102: In a couple of cases, this "IF" logic also sets starter values for subsequent smoothing calculations.
A103: 3 | C103: Data windowing can be performed by changing cell A11. Positive values logically "Pan" the
C104: data window represented by the Calculation sheet down the input sheet and back in time.
C105: This can have two side effects: First, data may fall outside of the fixed Y-axis scales and be clipped
C106: or fall well inside the Y-axis scales wasting a lot of chart vertical space. Second, you may move far
C107: enough back that you do not have sufficient data points to fill the left of the chart.
A108: 4 | C108: The VBA macros behind the SetChart button address these Data Windowing problems and also
C109: resizes and vertically aligns all charts on the work sheet to match the Price chart and then
C110: horizontally adjusts the X-axis positions of all charts on the work sheet so that the corresponding
C111: data points align vertically.
C112: The macros behind the SetChart button are sensitive to the user control values in cells A11 and
C113: A12, and also uses the computed values in cells A8, F11, and F12

Sheet InputPriceData
A1: McDonald's Corpor (MCD) -NYSE (Daily)
A2: Last Trade: | B2: 2014-05-09 | C2: 101.85 | D2: 102.95 | E2: 101.82 | F2: 102.93 | G2: 3649434 | H2: 4:00pm | L2: Notes: | M2: Online Yahoo Finance Query Interfaces used in the VBA code to obtain this data:
A3: Request Online Yahoo History for: | M3: A.) Price History Only: "http://ichart.finance.yahoo.com/table.csv"
A4: Symbol | B4: MCD | D4: Valid | M4: B.) Price History w/ imbedded divs n splits: "http://ichart.finance.yahoo.com/x"
A5: From | B5: 1977-01-07 | D5: Data
A6: To | B6: =TODAY() -> 2014-05-12 | D6: Types | E6: =VLOOKUP(B7,D7:E10,2,FALSE) -> d | M6: C.) Fundamentals (in this case name and exchange):
A7: Data Type | B7: Daily | D7: Daily | E7: d | M7: "http://download.finance.yahoo.com/d/quotes.csv?"
D8: Weekly | E8: w | M8: For some how-to doc regarding this particular interface, including a list of the
A9: Available Data | D9: Monthly | E9: m | M9: specific fields you can include in a request to this interface see:
A10: Bar Count: | B10: =COUNTA(B15:B54013)-1 -> 9419 | M10: http://www.gummy-stuff.org/Yahoo-data.htm
A11: From: | B11: =IF(B10<=0,"",OFFSET(B15,B10,IF(HistReqDataType="v",1,0),1,1)) -> 1977-01-07 | M11: This web site includes a downloadable working EXCEL/VBA example | W11: Trailing 12 Month Dividend Returns
A12: To: | B12: =IF(B10<=0,"",IF(HistReqDataType="v",OFFSET(B15,2,1,1,1),OFFSET(B15,1,0,1,1))) -> 2014-05-09 | M12: of the capabilities of this interface. | W12: Raw Close price on Dividend date | X12: Looking for year ago Div date | Y12: Year ago Div Date we found | Z12: row offset to year ago div Date | AA12: Same month flag | AB12: Trailing 12 Div Total | AC12: Trailing 12 Div return
Q13: Split History | S13: =COUNT(Q16:Q10996) -> 7 | T13: Running | U13: Dividend History
B14: Raw Data Values | H14: Adjusted | I14: Price Adjust | J14: Vol Adjust | K14: Adjusted Values | P14: Last | Q14: Effective | R14: Shares | T14: Vol Adjust | V14: =COUNT(U16:U10996) -> 125
A15: RelRow | B15: Date | C15: Open | D15: High | E15: Low | F15: Close | G15: Volume | H15: Close | I15: Factor | J15: Factor | K15: Open | L15: High | M15: Low | N15: Close | O15: Volume | P15: Trade | Q15: 41771 | R15: New | S15: Old | T15: 1 | U15: Date | V15: $ / Share
A16: 1 | B16: 2014-05-09 | C16: 101.85 | D16: 102.95 | E16: 101.82 | F16: 102.93 | G16: 3645400 | H16: 102.93 | I16: =H16/F16 -> 1 | J16: =INDEX(OFFSET($T$15,0,0,$S$13+1,1),MATCH(B16,OFFSET($Q$15,0,0,$S$13+1,1),-1)) -> 1 | K16: =ROUND($I16*C16,2) -> 101.85 | L16: =ROUND($I16*D16,2) -> 102.95 | M16: 101.82 | N16: 102.93 | O16: =G16*J16 -> 3645400 | Q16: 1999-03-08 | R16: 2 | S16: 1 | T16: 2 | U16: 2014-02-27 | V16: 0.81 | W16: =(INDEX(OFFSET($F$15,1,0,$B$10,1),MATCH(U16,OFFSET($B$15,1,0,$B$10,1),-1))) -> 95.08 | X16: =IF(MONTH(DATE(YEAR(U16)-1,MONTH(U16),DAY(U16)))<>MONTH(U16),DATE(YEAR(U16)-1,MONTH(U16),DAY(U16-1)),DATE(YEAR(U16)-1,MONTH(U16),DAY(U16))) -> 2013-02-27 | Y16: =OFFSET(U15,Z16,0,1,1) -> 2013-02-27 | Z16: =MATCH(X16,OFFSET($U$15,A16,0,$V$14+1-A16,1),-1) -> 5 | AA16: =IF(MONTH(U16)=MONTH(Y16),1,0) -> 1 | AB16: =(V16+IFERROR(SUM(OFFSET(V16,1,0,Z16-AA16-1,1)),0)) -> 3.16 | AC16: =(V16+IFERROR(SUM(OFFSET(V16,1,0,Z16-AA16-1,1)),0))/(INDEX(OFFSET($F$15,1,0,$B$10,1),MATCH(U16,OFFSET($B$15,1,0,$B$10,1),-1))) -> 0.03323517038
A17: 2 | B17: 2014-05-08 | C17: 102 | D17: 102.18 | E17: 101.43 | F17: 101.95 | G17: 3384500 | H17: 101.95 | I17: =H17/F17 -> 1 | J17: =INDEX(OFFSET($T$15,0,0,$S$13+1,1),MATCH(B17,OFFSET($Q$15,0,0,$S$13+1,1),-1)) -> 1 | K17: =ROUND($I17*C17,2) -> 102 | L17: =ROUND($I17*D17,2) -> 102.18 | M17: =ROUND($I17*E17,2) -> 101.43 | N17: =ROUND($I17*F17,2) -> 101.95 | O17: =G17*J17 -> 3384500 | Q17: 1994-06-27 | R17: 2 | S17: 1 | T17: 4 | U17: 2013-11-27 | V17: 0.81 | W17: =(INDEX(OFFSET($F$15,1,0,$B$10,1),MATCH(U17,OFFSET($B$15,1,0,$B$10,1),-1))) -> 97.06 | X17: =IF(MONTH(DATE(YEAR(U17)-1,MONTH(U17),DAY(U17)))<>MONTH(U17),DATE(YEAR(U17)-1,MONTH(U17),DAY(U17-1)),DATE(YEAR(U17)-1,MONTH(U17),DAY(U17))) -> 2012-11-27 | Y17: =OFFSET(U16,Z17,0,1,1) -> 2012-11-29 | Z17: =MATCH(X17,OFFSET($U$15,A17,0,$V$14+1-A17,1),-1) -> 5 | AA17: =IF(MONTH(U17)=MONTH(Y17),1,0) -> 1 | AB17: =(V17+IFERROR(SUM(OFFSET(V17,1,0,Z17-AA17-1,1)),0)) -> 3.12 | AC17: =(V17+IFERROR(SUM(OFFSET(V17,1,0,Z17-AA17-1,1)),0))/(INDEX(OFFSET($F$15,1,0,$B$10,1),MATCH(U17,OFFSET($B$15,1,0,$B$10,1),-1))) -> 0.03214506491
A18: 3 | B18: 2014-05-07 | C18: 101.26 | D18: 102.11 | E18: 100.95 | F18: 101.96 | G18: 4322600 | H18: 101.96 | I18: 1 | J18: 1 | K18: 101.26 | L18: 102.11 | M18: 100.95 | N18: 101.96 | O18: 4322600 | Q18: 1989-06-19 | R18: 2 | S18: 1 | T18: 8 | U18: 2013-08-29 | V18: 0.77 | W18: 94.86 | X18: 2012-08-29 | Y18: 2012-08-30 | Z18: 5 | AA18: 1 | AB18: 3.08 | AC18: 0.03246890154
A19: 4 | B19: 2014-05-06 | C19: 101.06 | D19: 101.3 | E19: 100.8 | F19: 100.95 | G19: 3075100 | H19: 100.95 | I19: 1 | J19: 1 | K19: 101.06 | L19: 101.3 | M19: 100.8 | N19: 100.95 | O19: 3075100 | Q19: 1987-06-23 | R19: 3 | S19: 2 | T19: 12 | U19: 2013-05-30 | V19: 0.77 | W19: 97.07 | X19: 2012-05-30 | Y19: 2012-05-31 | Z19: 5 | AA19: 1 | AB19: 3.01 | AC19: 0.03100855053
A20: 5 | B20: 2014-05-05 | C20: 101.38 | D20: 101.38 | E20: 100.59 | F20: 101.14 | G20: 3483500 | H20: 101.14 | I20: 1 | J20: 1 | K20: 101.38 | L20: 101.38 | M20: 100.59 | N20: 101.14 | O20: 3483500 | Q20: 1986-06-26 | R20: 3 | S20: 2 | T20: 18 | U20: 2013-02-27 | V20: 0.77 | W20: 95.73 | X20: 2012-02-27 | Y20: 2012-02-28 | Z20: 5 | AA20: 1 | AB20: 2.94 | AC20: 0.03071137574
A21: 6 | B21: 2014-05-02 | C21: 101.11 | D21: 102.28 | E21: 100.99 | F21: 101.43 | G21: 4934000 | H21: 101.43 | I21: 1 | J21: 1 | K21: 101.11 | L21: 102.28 | M21: 100.99 | N21: 101.43 | O21: 4934000 | Q21: 1984-09-25 | R21: 3 | S21: 2 | T21: 27 | U21: 2012-11-29 | V21: 0.77 | W21: 86.49 | X21: 2011-11-29 | Y21: 2011-11-29 | Z21: 5 | AA21: 1 | AB21: 2.87 | AC21: 0.03318302694
A22: 7 | B22: 2014-05-01 | C22: 100.68 | D22: 101.04 | E22: 100.33 | F22: 100.96 | G22: 3507600 | H22: 100.96 | I22: 1 | J22: 1 | K22: 100.68 | L22: 101.04 | M22: 100.33 | N22: 100.96 | O22: 3507600 | Q22: 1982-10-07 | R22: 3 | S22: 2 | T22: 40.5 | U22: 2012-08-30 | V22: 0.7 | W22: 88.7 | X22: 2011-08-30 | Y22: 2011-08-30 | Z22: 5 | AA22: 1 | AB22: 2.8 | AC22: 0.03156708005
A23: 8 | B23: 2014-04-30 | C23: 101.55 | D23: 101.76 | E23: 101.04 | F23: 101.38 | G23: 4519800 | H23: 101.38 | I23: 1 | J23: 1 | K23: 101.55 | L23: 101.76 | M23: 101.04 | N23: 101.38 | O23: 4519800 | U23: 2012-05-31 | V23: 0.7 | W23: 89.34 | X23: 2011-05-31 | Y23: 2011-08-30 | Z23: 4 | AA23: 0 | AB23: 2.71 | AC23: 0.0303335572
A24: 9 | B24: 2014-04-29 | C24: 100.21 | D24: 101.78 | E24: 99.81 | F24: 101.5 | G24: 6626100 | H24: 101.5 | I24: 1 | J24: 1 | K24: 100.21 | L24: 101.78 | M24: 99.81 | N24: 101.5 | O24: 6626100 | U24: 2012-02-28 | V24: 0.7 | W24: 99.78 | X24: 2011-02-28 | Y24: 2011-05-27 | Z24: 4 | AA24: 0 | AB24: 2.62 | AC24: 0.02625776709
A25: 10 | B25: 2014-04-28 | C25: 100.98 | D25: 101.18 | E25: 99.65 | F25: 100.31 | G25: 7444500 | H25: 100.31 | I25: 1 | J25: 1 | K25: 100.98 | L25: 101.18 | M25: 99.65 | N25: 100.31 | O25: 7444500 | U25: 2011-11-29 | V25: 0.7 | W25: 93.46 | X25: 2010-11-29 | Y25: 2010-11-29 | Z25: 5 | AA25: 1 | AB25: 2.53 | AC25: 0.02707040445
A26: 11 | B26: 2014-04-25 | C26: 99.85 | D26: 100.75 | E26: 99.39 | F26: 100.73 | G26: 5047100 | H26: 100.73 | I26: 1 | J26: 1 | K26: 99.85 | L26: 100.75 | M26: 99.39 | N26: 100.73 | O26: 5047100 | U26: 2011-08-30 | V26: 0.61 | W26: 90.78 | X26: 2010-08-30 | Y26: 2010-08-30 | Z26: 5 | AA26: 1 | AB26: 2.44 | AC26: 0.026878167
A27: 12 | B27: 2014-04-24 | C27: 99.52 | D27: 100.1 | E27: 99.13 | F27: 99.84 | G27: 4764900 | H27: 99.84 | I27: 1 | J27: 1 | K27: 99.52 | L27: 100.1 | M27: 99.13 | N27: 99.84 | O27: 4764900 | U27: 2011-05-27 | V27: 0.61 | W27: 81.62 | X27: 2010-05-27 | Y27: 2010-05-27 | Z27: 5 | AA27: 1 | AB27: 2.38 | AC27: 0.02915951973
A28: 13 | B28: 2014-04-23 | C28: 99.35 | D28: 99.99 | E28: 99.01 | F28: 99.13 | G28: 4179100 | H28: 99.13 | I28: 1 | J28: 1 | K28: 99.35 | L28: 99.99 | M28: 99.01 | N28: 99.13 | O28: 4179100 | U28: 2011-02-25 | V28: 0.61 | W28: 74.44 | X28: 2010-02-25 | Y28: 2010-02-25 | Z28: 5 | AA28: 1 | AB28: 2.32 | AC28: 0.03116603976
A29: 14 | B29: 2014-04-22 | C29: 100.02 | D29: 100.27 | E29: 98.89 | F29: 99.32 | G29: 8934300 | H29: 99.32 | I29: 1 | J29: 1 | K29: 100.02 | L29: 100.27 | M29: 98.89 | N29: 99.32 | O29: 8934300 | U29: 2010-11-29 | V29: 0.61 | W29: 78.26 | X29: 2009-11-29 | Y29: 2010-02-25 | Z29: 4 | AA29: 0 | AB29: 2.26 | AC29: 0.02887809865
A30: 15 | B30: 2014-04-21 | C30: 99.8 | D30: 100.39 | E30: 99.25 | F30: 99.67 | G30: 6357000 | H30: 99.67 | I30: 1 | J30: 1 | K30: 99.8 | L30: 100.39 | M30: 99.25 | N30: 99.67 | O30: 6357000 | U30: 2010-08-30 | V30: 0.55 | W30: 72.74 | X30: 2009-08-30 | Y30: 2009-11-27 | Z30: 4 | AA30: 0 | AB30: 2.2 | AC30: 0.03024470718
A31: 16 | B31: 2014-04-17 | C31: 100.73 | D31: 101 | E31: 100.25 | F31: 100.25 | G31: 4545200 | H31: 100.25 | I31: 1 | J31: 1 | K31: 100.73 | L31: 101 | M31: 100.25 | N31: 100.25 | O31: 4545200 | U31: 2010-05-27 | V31: 0.55 | W31: 67.2 | X31: 2009-05-27 | Y31: 2009-06-04 | Z31: 5 | AA31: 0 | AB31: 2.65 | AC31: 0.03943452381
A32: 17 | B32: 2014-04-16 | C32: 101 | D32: 101.12 | E32: 100.49 | F32: 100.83 | G32: 3532700 | H32: 100.83 | I32: 1 | J32: 1 | K32: 101 | L32: 101.12 | M32: 100.49 | N32: 100.83 | O32: 3532700 | U32: 2010-02-25 | V32: 0.55 | W32: 64.38 | X32: 2009-02-25 | Y32: 2009-02-26 | Z32: 5 | AA32: 1 | AB32: 2.1 | AC32: 0.03261882572
A33: 18 | B33: 2014-04-15 | C33: 100.7 | D33: 100.94 | E33: 100.07 | F33: 100.83 | G33: 5882400 | H33: 100.83 | I33: 1 | J33: 1 | K33: 100.7 | L33: 100.94 | M33: 100.07 | N33: 100.83 | O33: 5882400 | U33: 2009-11-27 | V33: 0.55 | W33: 63.6 | X33: 2008-11-27 | Y33: 2009-02-26 | Z33: 4 | AA33: 0 | AB33: 2.05 | AC33: 0.0322327044
A34: 19 | B34: 2014-04-14 | C34: 99.66 | D34: 100.16 | E34: 99.32 | F34: 100.11 | G34: 6155900 | H34: 100.11 | I34: 1 | J34: 1 | K34: 99.66 | L34: 100.16 | M34: 99.32 | N34: 100.11 | O34: 6155900 | U34: 2009-08-28 | V34: 0.5 | W34: 56.07 | X34: 2008-08-28 | Y34: 2008-08-28 | Z34: 5 | AA34: 1 | AB34: 2 | AC34: 0.03566969859
A35: 20 | B35: 2014-04-11 | C35: 99.15 | D35: 99.73 | E35: 99.06 | F35: 99.29 | G35: 6553600 | H35: 99.29 | I35: 1 | J35: 1 | K35: 99.15 | L35: 99.73 | M35: 99.06 | N35: 99.29 | O35: 6553600 | U35: 2009-06-04 | V35: 0.5 | W35: 60.24 | X35: 2008-06-04 | Y35: 2008-06-05 | Z35: 5 | AA35: 1 | AB35: 1.875 | AC35: 0.03112549801
A36: 21 | B36: 2014-04-10 | C36: 98.55 | D36: 99.85 | E36: 98.16 | F36: 99.43 | G36: 8873000 | H36: 99.43 | I36: 1 | J36: 1 | K36: 98.55 | L36: 99.85 | M36: 98.16 | N36: 99.43 | O36: 8873000 | U36: 2009-02-26 | V36: 0.5 | W36: 52.2 | X36: 2008-02-26 | Y36: 2008-02-28 | Z36: 5 | AA36: 1 | AB36: 1.75 | AC36: 0.03352490421
A37: 22 | B37: 2014-04-09 | C37: 98.08 | D37: 98.54 | E37: 97.9 | F37: 98.35 | G37: 3669500 | H37: 98.35 | I37: 1 | J37: 1 | K37: 98.08 | L37: 98.54 | M37: 97.9 | N37: 98.35 | O37: 3669500 | U37: 2008-11-26 | V37: 0.5 | W37: 57.9 | X37: 2007-11-26 | Y37: 2008-02-28 | Z37: 4 | AA37: 0 | AB37: 1.625 | AC37: 0.0280656304
A38: 23 | B38: 2014-04-08 | C38: 96.98 | D38: 98.22 | E38: 96.52 | F38: 98.08 | G38: 5579500 | H38: 98.08 | I38: 1 | J38: 1 | K38: 96.98 | L38: 98.22 | M38: 96.52 | N38: 98.08 | O38: 5579500 | U38: 2008-08-28 | V38: 0.375 | W38: 62.89 | X38: 2007-08-28 | Y38: 2007-11-13 | Z38: 4 | AA38: 0 | AB38: 2.625 | AC38: 0.04173954524
A39: 24 | B39: 2014-04-07 | C39: 97.58 | D39: 98.24 | E39: 96.57 | F39: 97.01 | G39: 5994600 | H39: 97.01 | I39: 1 | J39: 1 | K39: 97.58 | L39: 98.24 | M39: 96.57 | N39: 97.01 | O39: 5994600 | U39: 2008-06-05 | V39: 0.375 | W39: 58.05 | X39: 2007-06-05 | Y39: 2007-11-13 | Z39: 3 | AA39: 0 | AB39: 2.25 | AC39: 0.03875968992
A40: 25 | B40: 2014-04-04 | C40: 97.77 | D40: 98.42 | E40: 97.39 | F40: 97.87 | G40: 5409000 | H40: 97.87 | I40: 1 | J40: 1 | K40: 97.77 | L40: 98.42 | M40: 97.39 | N40: 97.87 | O40: 5409000 | U40: 2008-02-28 | V40: 0.375 | W40: 54.62 | X40: 2007-02-28 | Y40: 2007-11-13 | Z40: 2 | AA40: 0 | AB40: 1.875 | AC40: 0.03432808495
A41: 26 | B41: 2014-04-03 | C41: 98.03 | D41: 98.11 | E41: 97.35 | F41: 97.66 | G41: 2575700 | H41: 97.66 | I41: 1 | J41: 1 | K41: 98.03 | L41: 98.11 | M41: 97.35 | N41: 97.66 | O41: 2575700 | U41: 2007-11-13 | V41: 1.5 | W41: 57.1 | X41: 2006-11-13 | Y41: 2006-11-13 | Z41: 2 | AA41: 1 | AB41: 1.5 | AC41: 0.02626970228
A42: 27 | B42: 2014-04-02 | C42: 98.15 | D42: 98.23 | E42: 97.34 | F42: 97.59 | G42: 3701200 | H42: 97.59 | I42: 1 | J42: 1 | K42: 98.15 | L42: 98.23 | M42: 97.34 | N42: 97.59 | O42: 3701200 | U42: 2006-11-13 | V42: 1 | W42: 41.51 | X42: 2005-11-13 | Y42: 2006-11-13 | Z42: 1 | AA42: 1 | AB42: 1.67 | AC42: 0.04023126957
A43: 28 | B43: 2014-04-01 | C43: 98.1 | D43: 98.52 | E43: 97.63 | F43: 97.9 | G43: 4494000 | H43: 97.9 | I43: 1 | J43: 1 | K43: 98.1 | L43: 98.52 | M43: 97.63 | N43: 97.9 | O43: 4494000 | U43: 2005-11-10 | V43: 0.67 | W43: 33.23 | X43: 2004-11-10 | Y43: 2004-11-10 | Z43: 2 | AA43: 1 | AB43: 0.67 | AC43: 0.02016250376
A44: 29 | B44: 2014-03-31 | C44: 97.44 | D44: 98.45 | E44: 97.3 | F44: 98.03 | G44: 4853300 | H44: 98.03 | I44: 1 | J44: 1 | K44: 97.44 | L44: 98.45 | M44: 97.3 | N44: 98.03 | O44: 4853300 | U44: 2004-11-10 | V44: 0.55 | W44: 30.02 | X44: 2003-11-10 | Y44: 2003-11-12 | Z44: 2 | AA44: 1 | AB44: 0.55 | AC44: 0.01832111925
A45: 30 | B45: 2014-03-28 | C45: 96.27 | D45: 97.44 | E45: 96.21 | F45: 97.24 | G45: 4344100 | H45: 97.24 | I45: 1 | J45: 1 | K45: 96.27 | L45: 97.44 | M45: 96.21 | N45: 97.24 | O45: 4344100 | U45: 2003-11-12 | V45: 0.4 | W45: 26.24 | X45: 2002-11-12 | Y45: 2002-11-13 | Z45: 2 | AA45: 1 | AB45: 0.4 | AC45: 0.01524390244
A46: 31 | B46: 2014-03-27 | C46: 95.77 | D46: 96.36 | E46: 95.52 | F46: 96.16 | G46: 3756000 | H46: 96.16 | I46: 1 | J46: 1 | K46: 95.77 | L46: 96.36 | M46: 95.52 | N46: 96.16 | O46: 3756000 | U46: 2002-11-13 | V46: 0.235 | W46: 17.15 | X46: 2001-11-13 | Y46: 2001-11-13 | Z46: 2 | AA46: 1 | AB46: 0.235 | AC46: 0.01370262391
A47: 32 | B47: 2014-03-26 | C47: 96.04 | D47: 96.57 | E47: 95.84 | F47: 95.84 | G47: 4127000 | H47: 95.84 | I47: 1 | J47: 1 | K47: 96.04 | L47: 96.57 | M47: 95.84 | N47: 95.84 | O47: 4127000 | U47: 2001-11-13 | V47: 0.225 | W47: 27.46 | X47: 2000-11-13 | Y47: 2000-11-13 | Z47: 2 | AA47: 1 | AB47: 0.225 | AC47: 0.008193736344
A48: 33 | B48: 2014-03-25 | C48: 96.44 | D48: 96.49 | E48: 95.83 | F48: 95.91 | G48: 4929800 | H48: 95.91 | I48: 1 | J48: 1 | K48: 96.44 | L48: 96.49 | M48: 95.83 | N48: 95.91 | O48: 4929800 | U48: 2000-11-13 | V48: 0.215 | W48: 33.06 | X48: 1999-11-13 | Y48: 1999-11-29 | Z48: 2 | AA48: 1 | AB48: 0.215 | AC48: 0.006503327284
A49: 34 | B49: 2014-03-24 | C49: 96.09 | D49: 96.74 | E49: 95.99 | F49: 96.18 | G49: 6393000 | H49: 96.18 | I49: 1 | J49: 1 | K49: 96.09 | L49: 96.74 | M49: 95.99 | N49: 96.18 | O49: 6393000 | U49: 1999-11-29 | V49: 0.049 | W49: 45.5 | X49: 1998-11-29 | Y49: 1999-03-11 | Z49: 4 | AA49: 0 | AB49: 0.196 | AC49: 0.004307692308
A50: 35 | B50: 2014-03-21 | C50: 97.22 | D50: 97.4 | E50: 95.47 | F50: 95.47 | G50: 12625800 | H50: 95.47 | I50: 1 | J50: 1 | K50: 97.22 | L50: 97.4 | M50: 95.47 | N50: 95.47 | O50: 12625800 | U50: 1999-08-30 | V50: 0.049 | W50: 42.06 | X50: 1998-08-30 | Y50: 1998-11-25 | Z50: 4 | AA50: 0 | AB50: 0.192 | AC50: 0.004564907275
A51: 36 | B51: 2014-03-20 | C51: 95.94 | D51: 96.95 | E51: 95.81 | F51: 96.6 | G51: 4242600 | H51: 96.6 | I51: 1 | J51: 1 | K51: 95.94 | L51: 96.95 | M51: 95.81 | N51: 96.6 | O51: 4242600 | U51: 1999-05-27 | V51: 0.049 | W51: 37.94 | X51: 1998-05-27 | Y51: 1998-05-28 | Z51: 5 | AA51: 1 | AB51: 0.188 | AC51: 0.004955192409
A52: 37 | B52: 2014-03-19 | C52: 97.27 | D52: 97.29 | E52: 95.78 | F52: 96.1 | G52: 5556900 | H52: 96.1 | I52: 1 | J52: 1 | K52: 97.27 | L52: 97.29 | M52: 95.78 | N52: 96.1 | O52: 5556900 | U52: 1999-03-11 | V52: 0.049 | W52: 44.69 | X52: 1998-03-11 | Y52: 1998-05-28 | Z52: 4 | AA52: 0 | AB52: 0.184 | AC52: 0.004117252182
A53: 38 | B53: 2014-03-18 | C53: 97.8 | D53: 97.99 | E53: 97.22 | F53: 97.31 | G53: 3269500 | H53: 97.31 | I53: 1 | J53: 1 | K53: 97.8 | L53: 97.99 | M53: 97.22 | N53: 97.31 | O53: 3269500 | U53: 1998-11-25 | V53: 0.045 | W53: 72.19 | X53: 1997-11-25 | Y53: 1997-11-26 | Z53: 5 | AA53: 1 | AB53: 0.176 | AC53: 0.002438010805
A54: 39 | B54: 2014-03-17 | C54: 98.14 | D54: 98.2 | E54: 97.46 | F54: 97.6 | G54: 5554300 | H54: 97.6 | I54: 1 | J54: 1 | K54: 98.14 | L54: 98.2 | M54: 97.46 | N54: 97.6 | O54: 5554300 | U54: 1998-08-27 | V54: 0.045 | W54: 62.44 | X54: 1997-08-27 | Y54: 1997-08-27 | Z54: 5 | AA54: 1 | AB54: 0.172 | AC54: 0.002754644459
A55: 40 | B55: 2014-03-14 | C55: 97.33 | D55: 97.89 | E55: 97.01 | F55: 97.58 | G55: 5510700 | H55: 97.58 | I55: 1 | J55: 1 | K55: 97.33 | L55: 97.89 | M55: 97.01 | N55: 97.58 | O55: 5510700 | U55: 1998-05-28 | V55: 0.045 | W55: 66.88 | X55: 1997-05-28 | Y55: 1997-05-29 | Z55: 5 | AA55: 1 | AB55: 0.168 | AC55: 0.002511961722
A56: 41 | B56: 2014-03-13 | C56: 98.9 | D56: 98.9 | E56: 97.01 | F56: 97.37 | G56: 5480200 | H56: 97.37 | I56: 1 | J56: 1 | K56: 98.9 | L56: 98.9 | M56: 97.01 | N56: 97.37 | O56: 5480200 | U56: 1998-02-25 | V56: 0.041 | W56: 52.38 | X56: 1997-02-25 | Y56: 1997-02-26 | Z56: 5 | AA56: 1 | AB56: 0.164 | AC56: 0.003130966018
A57: 42 | B57: 2014-03-12 | C57: 98.41 | D57: 99.07 | E57: 98.15 | F57: 98.71 | G57: 6701700 | H57: 98.71 | I57: 1 | J57: 1 | K57: 98.41 | L57: 99.07 | M57: 98.15 | N57: 98.71 | O57: 6701700 | U57: 1997-11-26 | V57: 0.041 | W57: 48.56 | X57: 1996-11-26 | Y57: 1996-11-27 | Z57: 5 | AA57: 1 | AB57: 0.1605 | AC57: 0.003305189456
A58: 43 | B58: 2014-03-11 | C58: 95.94 | D58: 98.92 | E58: 95.71 | F58: 98.78 | G58: 16354400 | H58: 98.78 | I58: 1 | J58: 1 | K58: 95.94 | L58: 98.92 | M58: 95.71 | N58: 98.78 | O58: 16354400 | U58: 1997-08-27 | V58: 0.041 | W58: 48.25 | X58: 1996-08-27 | Y58: 1996-08-28 | Z58: 5 | AA58: 1 | AB58: 0.157 | AC58: 0.00325388601
A59: 44 | B59: 2014-03-10 | C59: 95.26 | D59: 95.68 | E59: 94.97 | F59: 95.2 | G59: 4388900 | H59: 95.2 | I59: 1 | J59: 1 | K59: 95.26 | L59: 95.68 | M59: 94.97 | N59: 95.2 | O59: 4388900 | U59: 1997-05-29 | V59: 0.041 | W59: 49.88 | X59: 1996-05-29 | Y59: 1996-05-31 | Z59: 5 | AA59: 1 | AB59: 0.1535 | AC59: 0.003077385726
A60: 45 | B60: 2014-03-07 | C60: 95.74 | D60: 95.79 | E60: 94.97 | F60: 95.5 | G60: 3724000 | H60: 95.5 | I60: 1 | J60: 1 | K60: 95.74 | L60: 95.79 | M60: 94.97 | N60: 95.5 | O60: 3724000 | U60: 1997-02-26 | V60: 0.0375 | W60: 44.88 | X60: 1996-02-26 | Y60: 1996-02-27 | Z60: 5 | AA60: 1 | AB60: 0.15 | AC60: 0.003342245989
A61: 46 | B61: 2014-03-06 | C61: 95.06 | D61: 95.67 | E61: 94.75 | F61: 95.58 | G61: 4362900 | H61: 95.58 | I61: 1 | J61: 1 | K61: 95.06 | L61: 95.67 | M61: 94.75 | N61: 95.58 | O61: 4362900 | U61: 1996-11-27 | V61: 0.0375 | W61: 46.12 | X61: 1995-11-27 | Y61: 1995-11-28 | Z61: 5 | AA61: 1 | AB61: 0.1465 | AC61: 0.003176496097
A62: 47 | B62: 2014-03-05 | C62: 95.34 | D62: 95.61 | E62: 94.94 | F62: 95.02 | G62: 3913300 | H62: 95.02 | I62: 1 | J62: 1 | K62: 95.34 | L62: 95.61 | M62: 94.94 | N62: 95.02 | O62: 3913300 | U62: 1996-08-28 | V62: 0.0375 | W62: 47.38 | X62: 1995-08-28 | Y62: 1995-08-29 | Z62: 5 | AA62: 1 | AB62: 0.143 | AC62: 0.003018151119
A63: 48 | B63: 2014-03-04 | C63: 95.25 | D63: 95.27 | E63: 94.86 | F63: 94.98 | G63: 4655200 | H63: 94.98 | I63: 1 | J63: 1 | K63: 95.25 | L63: 95.27 | M63: 94.86 | N63: 94.98 | O63: 4655200 | U63: 1996-05-31 | V63: 0.0375 | W63: 48.12 | X63: 1995-05-31 | Y63: 1995-08-29 | Z63: 4 | AA63: 0 | AB63: 0.1395 | AC63: 0.002899002494
A64: 49 | B64: 2014-03-03 | C64: 94.24 | D64: 94.8 | E64: 94 | F64: 94.32 | G64: 5149300 | H64: 94.32 | I64: 1 | J64: 1 | K64: 94.24 | L64: 94.8 | M64: 94 | N64: 94.32 | O64: 5149300 | U64: 1996-02-27 | V64: 0.034 | W64: 50.5 | X64: 1995-02-27 | Y64: 1995-05-30 | Z64: 4 | AA64: 0 | AB64: 0.136 | AC64: 0.002693069307
A65: 50 | B65: 2014-02-28 | C65: 95.11 | D65: 95.46 | E65: 94.86 | F65: 95.15 | G65: 5104700 | H65: 95.15 | I65: 1 | J65: 1 | K65: 95.11 | L65: 95.46 | M65: 94.86 | N65: 95.15 | O65: 5104700 | U65: 1995-11-28 | V65: 0.034 | W65: 44.25 | X65: 1994-11-28 | Y65: 1995-02-22 | Z65: 4 | AA65: 0 | AB65: 0.132 | AC65: 0.002983050847
A66: 51 | B66: 2014-02-27 | C66: 95.24 | D66: 95.41 | E66: 94.65 | F66: 95.08 | G66: 4179600 | H66: 95.08 | I66: 1 | J66: 1 | K66: 95.24 | L66: 95.41 | M66: 94.65 | N66: 95.08 | O66: 4179600 | U66: 1995-08-29 | V66: 0.034 | W66: 36.25 | X66: 1994-08-29 | Y66: 1994-11-23 | Z66: 4 | AA66: 0 | AB66: 0.128 | AC66: 0.003531034483
A67: 52 | B67: 2014-02-26 | C67: 96.63 | D67: 96.74 | E67: 95.71 | F67: 95.89 | G67: 4265900 | H67: 95.08 | I67: 0.9915528209 | J67: 1 | K67: 95.81 | L67: 95.92 | M67: 94.9 | N67: 95.08 | O67: 4265900 | U67: 1995-05-30 | V67: 0.034 | W67: 36.88 | X67: 1994-05-30 | Y67: 1994-06-01 | Z67: 5 | AA67: 0 | AB67: 0.154 | AC67: 0.004175704989
A68: 53 | B68: 2014-02-25 | C68: 96.46 | D68: 96.72 | E68: 95.89 | F68: 96.62 | G68: 4233600 | H68: 95.8 | I68: 0.9915131443 | J68: 1 | K68: 95.64 | L68: 95.9 | M68: 95.08 | N68: 95.8 | O68: 4233600 | U68: 1995-02-22 | V68: 0.03 | W68: 33 | X68: 1994-02-22 | Y68: 1994-02-22 | Z68: 5 | AA68: 1 | AB68: 0.12 | AC68: 0.003636363636
A69: 54 | B69: 2014-02-24 | C69: 96.43 | D69: 96.94 | E69: 96.24 | F69: 96.5 | G69: 4472200 | H69: 95.68 | I69: 0.9915025907 | J69: 1 | K69: 95.61 | L69: 96.12 | M69: 95.42 | N69: 95.68 | O69: 4472200 | U69: 1994-11-23 | V69: 0.03 | W69: 28.5 | X69: 1993-11-23 | Y69: 1993-11-23 | Z69: 5 | AA69: 1 | AB69: 0.11675 | AC69: 0.004096491228
A70: 55 | B70: 2014-02-21 | C70: 96.04 | D70: 97 | E70: 96.04 | F70: 96.45 | G70: 5284300 | H70: 95.64 | I70: 0.9916018663 | J70: 1 | K70: 95.23 | L70: 96.19 | M70: 95.23 | N70: 95.64 | O70: 5284300 | U70: 1994-08-25 | V70: 0.03 | W70: 26.75 | X70: 1993-08-25 | Y70: 1993-08-25 | Z70: 5 | AA70: 1 | AB70: 0.1135 | AC70: 0.004242990654
A71: 56 | B71: 2014-02-20 | C71: 95.66 | D71: 96.11 | E71: 95.49 | F71: 95.75 | G71: 2975000 | H71: 94.94 | I71: 0.99154047 | J71: 1 | K71: 94.85 | L71: 95.3 | M71: 94.68 | N71: 94.94 | O71: 2975000 | U71: 1994-06-01 | V71: 0.03 | W71: 61.25 | X71: 1993-06-01 | Y71: 1993-06-01 | Z71: 5 | AA71: 1 | AB71: 0.11025 | AC71: 0.0018
A72: 57 | B72: 2014-02-19 | C72: 95.78 | D72: 96.66 | E72: 95.46 | F72: 95.55 | G72: 4505500 | H72: 94.74 | I72: 0.991522763 | J72: 1 | K72: 94.97 | L72: 95.84 | M72: 94.65 | N72: 94.74 | O72: 4505500 | U72: 1994-02-22 | V72: 0.02675 | W72: 60.88 | X72: 1993-02-22 | Y72: 1993-02-23 | Z72: 5 | AA72: 1 | AB72: 0.107 | AC72: 0.001757555848
A73: 58 | B73: 2014-02-18 | C73: 96.03 | D73: 96.57 | E73: 95.54 | F73: 96.02 | G73: 5454200 | H73: 95.21 | I73: 0.9915642574 | J73: 1 | K73: 95.22 | L73: 95.76 | M73: 94.73 | N73: 95.21 | O73: 5454200 | U73: 1993-11-23 | V73: 0.02675 | W73: 56.5 | X73: 1992-11-23 | Y73: 1992-11-23 | Z73: 5 | AA73: 1 | AB73: 0.10525 | AC73: 0.001862831858
A74: 59 | B74: 2014-02-14 | C74: 95.3 | D74: 95.97 | E74: 95.11 | F74: 95.78 | G74: 3532900 | H74: 94.97 | I74: 0.9915431196 | J74: 1 | K74: 94.49 | L74: 95.16 | M74: 94.31 | N74: 94.97 | O74: 3532900 | U74: 1993-08-25 | V74: 0.02675 | W74: 54.62 | X74: 1992-08-25 | Y74: 1992-08-25 | Z74: 5 | AA74: 1 | AB74: 0.1035 | AC74: 0.001894910289
A75: 60 | B75: 2014-02-13 | C75: 94.69 | D75: 95.58 | E75: 94.5 | F75: 95.46 | G75: 3617900 | H75: 94.65 | I75: 0.9915147706 | J75: 1 | K75: 93.89 | L75: 94.77 | M75: 93.7 | N75: 94.65 | O75: 3617900 | U75: 1993-06-01 | V75: 0.02675 | W75: 50.12 | X75: 1992-06-01 | Y75: 1992-08-25 | Z75: 4 | AA75: 0 | AB75: 0.10175 | AC75: 0.002030127694
A76: 61 | B76: 2014-02-12 | C76: 95.44 | D76: 95.67 | E76: 94.79 | F76: 94.89 | G76: 4268900 | H76: 94.09 | I76: 0.9915691854 | J76: 1 | K76: 94.64 | L76: 94.86 | M76: 93.99 | N76: 94.09 | O76: 4268900 | U76: 1993-02-23 | V76: 0.025 | W76: 49.88 | X76: 1992-02-23 | Y76: 1992-02-25 | Z76: 5 | AA76: 1 | AB76: 0.1 | AC76: 0.002004811548
A77: 62 | B77: 2014-02-11 | C77: 95.06 | D77: 95.84 | E77: 94.83 | F77: 95.34 | G77: 5343500 | H77: 94.53 | I77: 0.9915040906 | J77: 1 | K77: 94.25 | L77: 95.03 | M77: 94.02 | N77: 94.53 | O77: 5343500 | U77: 1992-11-23 | V77: 0.025 | W77: 48.12 | X77: 1991-11-23 | Y77: 1991-11-27 | Z77: 5 | AA77: 1 | AB77: 0.09875 | AC77: 0.002052161264
A78: 63 | B78: 2014-02-10 | C78: 95.75 | D78: 95.93 | E78: 94.52 | F78: 94.86 | G78: 6968200 | H78: 94.06 | I78: 0.9915665191 | J78: 1 | K78: 94.94 | L78: 95.12 | M78: 93.72 | N78: 94.06 | O78: 6968200 | U78: 1992-08-25 | V78: 0.025 | W78: 41.75 | X78: 1991-08-25 | Y78: 1991-08-28 | Z78: 5 | AA78: 1 | AB78: 0.09675 | AC78: 0.002317365269
A79: 64 | B79: 2014-02-07 | C79: 95.09 | D79: 95.95 | E79: 94.62 | F79: 95.92 | G79: 6591200 | H79: 95.11 | I79: 0.9915554629 | J79: 1 | K79: 94.29 | L79: 95.14 | M79: 93.82 | N79: 95.11 | O79: 6591200 | U79: 1992-05-27 | V79: 0.025 | W79: 45.12 | X79: 1991-05-27 | Y79: 1991-05-29 | Z79: 5 | AA79: 1 | AB79: 0.09475 | AC79: 0.002099955674
A80: 65 | B80: 2014-02-06 | C80: 93.87 | D80: 95.19 | E80: 93.69 | F80: 94.94 | G80: 5356900 | H80: 94.14 | I80: 0.9915736254 | J80: 1 | K80: 93.08 | L80: 94.39 | M80: 92.9 | N80: 94.14 | O80: 5356900 | U80: 1992-02-25 | V80: 0.02375 | W80: 42.5 | X80: 1991-02-25 | Y80: 1991-03-05 | Z80: 5 | AA80: 0 | AB80: 0.114 | AC80: 0.002682352941
A81: 66 | B81: 2014-02-05 | C81: 92.8 | D81: 93.84 | E81: 92.22 | F81: 93.58 | G81: 4958900 | H81: 92.79 | I81: =H81/F81 -> 0.9915580252 | J81: =INDEX(OFFSET($T$15,0,0,$S$13+1,1),MATCH(B81,OFFSET($Q$15,0,0,$S$13+1,1),-1)) -> 1 | K81: =ROUND($I81*C81,2) -> 92.02 | L81: =ROUND($I81*D81,2) -> 93.05 | M81: =ROUND($I81*E81,2) -> 91.44 | N81: =ROUND($I81*F81,2) -> 92.79 | O81: =G81*J81 -> 4958900 | U81: 1991-11-27 | V81: 0.023 | W81: =(INDEX(OFFSET($F$15,1,0,$B$10,1),MATCH(U81,OFFSET($B$15,1,0,$B$10,1),-1))) -> 33.88 | X81: =IF(MONTH(DATE(YEAR(U81)-1,MONTH(U81),DAY(U81)))<>MONTH(U81),DATE(YEAR(U81)-1,MONTH(U81),DAY(U81-1)),DATE(YEAR(U81)-1,MONTH(U81),DAY(U81))) -> 1990-11-27 | Y81: =OFFSET(U80,Z81,0,1,1) -> 1991-03-05 | Z81: =MATCH(X81,OFFSET($U$15,A81,0,$V$14+1-A81,1),-1) -> 4 | AA81: =IF(MONTH(U81)=MONTH(Y81),1,0) -> 0 | AB81: =(V81+IFERROR(SUM(OFFSET(V81,1,0,Z81-AA81-1,1)),0)) -> 0.09025 | AC81: =(V81+IFERROR(SUM(OFFSET(V81,1,0,Z81-AA81-1,1)),0))/(INDEX(OFFSET($F$15,1,0,$B$10,1),MATCH(U81,OFFSET($B$15,1,0,$B$10,1),-1))) -> 0.002663813459
A82: 67 | B82: 2014-02-04 | C82: 92.86 | D82: 93.47 | E82: 92.59 | F82: 93.09 | G82: 6300400 | H82: 92.3 | I82: 0.991513589 | J82: 1 | K82: 92.07 | L82: 92.68 | M82: 91.8 | N82: 92.3 | O82: 6300400 | U82: 1991-08-28 | V82: 0.023 | W82: 32.88 | X82: 1990-08-28 | Y82: 1990-11-26 | Z82: 4 | AA82: 0 | AB82: 0.0885 | AC82: 0.002691605839
A83: 68 | B83: 2014-02-03 | C83: 94.54 | D83: 94.74 | E83: 92.91 | F83: 93.02 | G83: 6904700 | H83: 92.23 | I83: 0.9915072028 | J83: 1 | K83: 93.74 | L83: 93.94 | M83: 92.12 | N83: 92.23 | O83: 6904700 | U83: 1991-05-29 | V83: 0.023 | W83: 34.62 | X83: 1990-05-29 | Y83: 1990-05-30 | Z83: 5 | AA83: 1 | AB83: 0.08675 | AC83: 0.002505777008
A84: 69 | B84: 2014-01-31 | C84: 93.05 | D84: 94.55 | E84: 92.95 | F84: 94.17 | G84: 5972500 | H84: 93.37 | I84: 0.9915047255 | J84: 1 | K84: 92.26 | L84: 93.75 | M84: 92.16 | N84: 93.37 | O84: 5972500 | U84: 1991-03-05 | V84: 0.02125 | W84: 33.12 | X84: 1990-03-05 | Y84: 1990-05-30 | Z84: 4 | AA84: 0 | AB84: 0.085 | AC84: 0.002566425121
A85: 70 | B85: 2014-01-30 | C85: 93.39 | D85: 94 | E85: 92.93 | F85: 93.8 | G85: 4987400 | H85: 93.01 | I85: 0.9915778252 | J85: 1 | K85: 92.6 | L85: 93.21 | M85: 92.15 | N85: 93.01 | O85: 4987400 | U85: 1990-11-26 | V85: 0.02125 | W85: 28.12 | X85: 1989-11-26 | Y85: 1990-02-27 | Z85: 4 | AA85: 0 | AB85: 0.083 | AC85: 0.002951635846
A86: 71 | B86: 2014-01-29 | C86: 93.96 | D86: 94.3 | E86: 92.87 | F86: 93.15 | G86: 8013500 | H86: 92.36 | I86: 0.9915190553 | J86: 1 | K86: 93.16 | L86: 93.5 | M86: 92.08 | N86: 92.36 | O86: 8013500 | U86: 1990-08-27 | V86: 0.02125 | W86: 28.25 | X86: 1989-08-27 | Y86: 1989-11-24 | Z86: 4 | AA86: 0 | AB86: 0.081 | AC86: 0.002867256637
A87: 72 | B87: 2014-01-28 | C87: 94.33 | D87: 94.64 | E87: 94.1 | F87: 94.18 | G87: 3682800 | H87: 93.38 | I87: 0.9915056275 | J87: 1 | K87: 93.53 | L87: 93.84 | M87: 93.3 | N87: 93.38 | O87: 3682800 | U87: 1990-05-30 | V87: 0.02125 | W87: 34.62 | X87: 1989-05-30 | Y87: 1989-08-25 | Z87: 4 | AA87: 0 | AB87: 0.079 | AC87: 0.002281917966
A88: 73 | B88: 2014-01-27 | C88: 94.29 | D88: 94.68 | E88: 93.92 | F88: 94.07 | G88: 6607600 | H88: 93.28 | I88: 0.9916019985 | J88: 1 | K88: 93.5 | L88: 93.88 | M88: 93.13 | N88: 93.28 | O88: 6607600 | U88: 1990-02-27 | V88: 0.01925 | W88: 31.62 | X88: 1989-02-27 | Y88: 1989-05-24 | Z88: 4 | AA88: 0 | AB88: 0.07713 | AC88: 0.002439278937
A89: 74 | B89: 2014-01-24 | C89: 94.73 | D89: 95.96 | E89: 94.39 | F89: 94.43 | G89: 6944800 | H89: 93.63 | I89: 0.9915281161 | J89: 1 | K89: 93.93 | L89: 95.15 | M89: 93.59 | N89: 93.63 | O89: 6944800 | U89: 1989-11-24 | V89: 0.01925 | W89: 32.88 | X89: 1988-11-24 | Y89: 1988-12-21 | Z89: 5 | AA89: 0 | AB89: 0.09288 | AC89: 0.002824817518
A90: 75 | B90: 2014-01-23 | C90: 94.55 | D90: 95.95 | E90: 94.5 | F90: 95.32 | G90: 7146000 | H90: 94.51 | I90: 0.991502308 | J90: 1 | K90: 93.75 | L90: 95.13 | M90: 93.7 | N90: 94.51 | O90: 7146000 | U90: 1989-08-25 | V90: 0.01925 | W90: 29.12 | X90: 1988-08-25 | Y90: 1988-11-23 | Z90: 5 | AA90: 0 | AB90: 0.09113 | AC90: 0.003129464286
A91: 76 | B91: 2014-01-22 | C91: 95.07 | D91: 95.32 | E91: 94.69 | F91: 94.88 | G91: 4976400 | H91: 94.08 | I91: 0.9915682968 | J91: 1 | K91: 94.27 | L91: 94.52 | M91: 93.89 | N91: 94.08 | O91: 4976400 | U91: 1989-05-24 | V91: 0.01938 | W91: 58 | X91: 1988-05-24 | Y91: 1988-05-24 | Z91: 6 | AA91: 1 | AB91: 0.08938 | AC91: 0.001541034483
A92: 77 | B92: 2014-01-21 | C92: 95.36 | D92: 95.96 | E92: 95.01 | F92: 95.08 | G92: 6462700 | H92: 94.28 | I92: 0.9915860328 | J92: 1 | K92: 94.56 | L92: 95.15 | M92: 94.21 | N92: 94.28 | O92: 6462700 | U92: 1989-02-22 | V92: 0.0175 | W92: 50.75 | X92: 1988-02-22 | Y92: 1988-05-24 | Z92: 5 | AA92: 0 | AB92: 0.0875 | AC92: 0.001724137931
A93: 78 | B93: 2014-01-17 | C93: 96.02 | D93: 96.13 | E93: 94.77 | F93: 94.93 | G93: 5975300 | H93: 94.13 | I93: 0.9915727378 | J93: 1 | K93: 95.21 | L93: 95.32 | M93: 93.97 | N93: 94.13 | O93: 5975300 | U93: 1988-12-21 | V93: 0.0175 | W93: 47.75 | X93: 1987-12-21 | Y93: 1988-05-24 | Z93: 4 | AA93: 0 | AB93: 0.07 | AC93: 0.001465968586
A94: 79 | B94: 2014-01-16 | C94: 95.4 | D94: 96.3 | E94: 95.19 | F94: 96.06 | G94: 5058000 | H94: 95.25 | I94: 0.9915677701 | J94: 1 | K94: 94.6 | L94: 95.49 | M94: 94.39 | N94: 95.25 | O94: 5058000 | U94: 1988-11-23 | V94: 0.0175 | W94: 46.88 | X94: 1987-11-23 | Y94: 1988-05-24 | Z94: 3 | AA94: 0 | AB94: 0.0525 | AC94: 0.001119880546
A95: 80 | B95: 2014-01-15 | C95: 95.49 | D95: 95.67 | E95: 95.15 | F95: 95.46 | G95: 3560600 | H95: 94.65 | I95: 0.9915147706 | J95: 1 | K95: 94.68 | L95: 94.86 | M95: 94.34 | N95: 94.65 | O95: 3560600 | U95: 1988-08-22 | V95: 0.0175 | W95: 43.12 | X95: 1987-08-22 | Y95: 1987-10-20 | Z95: 3 | AA95: 0 | AB95: 0.05063 | AC95: 0.001174165121
A96: 81 | B96: 2014-01-14 | C96: 94.81 | D96: 95.4 | E96: 94.8 | F96: 95.22 | G96: 3842200 | H96: 94.42 | I96: 0.9915984037 | J96: 1 | K96: 94.01 | L96: 94.6 | M96: 94 | N96: 94.42 | O96: 3842200 | U96: 1988-05-24 | V96: 0.0175 | W96: 42.88 | X96: 1987-05-24 | Y96: 1987-07-23 | Z96: 3 | AA96: 0 | AB96: 0.04876 | AC96: 0.001137126866
A97: 82 | B97: 2014-01-13 | C97: 95.83 | D97: 95.83 | E97: 94.59 | F97: 94.83 | G97: 5753200 | H97: 94.03 | I97: 0.9915638511 | J97: 1 | K97: 95.02 | L97: 95.02 | M97: 93.79 | N97: 94.03 | O97: 5753200 | U97: 1987-10-20 | V97: 0.01563 | W97: 39.38 | X97: 1986-10-20 | Y97: 1986-10-27 | Z97: 5 | AA97: 1 | AB97: 0.06059 | AC97: 0.001538598273
A98: 83 | B98: 2014-01-10 | C98: 95.83 | D98: 96.22 | E98: 95.64 | F98: 95.8 | G98: 5512200 | H98: 94.99 | I98: 0.9915448852 | J98: 1 | K98: 95.02 | L98: 95.41 | M98: 94.83 | N98: 94.99 | O98: 5512200 | U98: 1987-07-23 | V98: 0.01563 | W98: 53.12 | X98: 1986-07-23 | Y98: 1986-07-23 | Z98: 5 | AA98: 1 | AB98: 0.05871 | AC98: 0.001105233434
A99: 84 | B99: 2014-01-09 | C99: 96.24 | D99: 96.35 | E99: 95.25 | F99: 95.46 | G99: 7709000 | H99: 94.65 | I99: 0.9915147706 | J99: 1 | K99: 95.42 | L99: 95.53 | M99: 94.44 | N99: 94.65 | O99: 7709000 | U99: 1987-05-20 | V99: 0.01558 | W99: 75.25 | X99: 1986-05-20 | Y99: 1986-05-28 | Z99: 5 | AA99: 1 | AB99: 0.05683 | AC99: 0.0007552159468
A100: 85 | B100: 2014-01-08 | C100: 95.55 | D100: 95.71 | E100: 95 | F100: 95.41 | G100: 7669800 | H100: 94.6 | I100: 0.9915103239 | J100: 1 | K100: 94.74 | L100: 94.9 | M100: 94.19 | N100: 94.6 | O100: 7669800 | U100: 1987-01-22 | V100: 0.01375 | W100: 67.88 | X100: 1986-01-22 | Y100: 1986-01-22 | Z100: 5 | AA100: 1 | AB100: 0.05042 | AC100: 0.0007427813789
A101: 86 | B101: 2014-01-07 | C101: 96.38 | D101: 97.08 | E101: 96.13 | F101: 96.38 | G101: 4881800 | H101: 95.57 | I101: 0.9915957668 | J101: 1 | K101: 95.57 | L101: 96.26 | M101: 95.32 | N101: 95.57 | O101: 4881800 | U101: 1986-10-27 | V101: 0.01375 | W101: 60.38 | X101: 1985-10-27 | Y101: 1986-01-22 | Z101: 4 | AA101: 0 | AB101: 0.04917 | AC101: 0.0008143424975
A102: 87 | B102: 2014-01-06 | C102: 96.62 | D102: 96.62 | E102: 95.52 | F102: 95.85 | G102: 5022700 | H102: 95.04 | I102: 0.9915492958 | J102: 1 | K102: 95.8 | L102: 95.8 | M102: 94.71 | N102: 95.04 | O102: 5022700 | U102: 1986-07-23 | V102: 0.01375 | W102: 66 | X102: 1985-07-23 | Y102: 1985-07-23 | Z102: 5 | AA102: 1 | AB102: 0.04792 | AC102: 0.0007260606061
A103: 88 | B103: 2014-01-03 | C103: 96.9 | D103: 97.03 | E103: 96.5 | F103: 96.54 | G103: 2965300 | H103: 95.72 | I103: 0.9915061115 | J103: 1 | K103: 96.08 | L103: 96.21 | M103: 95.68 | N103: 95.72 | O103: 2965300 | U103: 1986-05-28 | V103: 0.00917 | W103: 106.5 | X103: 1985-05-28 | Y103: 1985-05-31 | Z103: 5 | AA103: 1 | AB103: 0.04667 | AC103: 0.0004382159624
A104: 89 | B104: 2014-01-02 | C104: 96.81 | D104: 97.03 | E104: 96.26 | F104: 96.41 | G104: 2925800 | H104: 95.6 | I104: 0.9915983819 | J104: 1 | K104: 96 | L104: 96.21 | M104: 95.45 | N104: 95.6 | O104: 2925800 | U104: 1986-01-22 | V104: 0.0125 | W104: 73.12 | X104: 1985-01-22 | Y104: 1985-01-22 | Z104: 5 | AA104: 1 | AB104: 0.05 | AC104: 0.0006838074398
A105: 90 | B105: 2013-12-31 | C105: 96.95 | D105: 97.08 | E105: 96.63 | F105: 97.03 | G105: 2560900 | H105: 96.21 | I105: 0.9915490055 | J105: 1 | K105: 96.13 | L105: 96.26 | M105: 95.81 | N105: 96.21 | O105: 2560900 | U105: 1985-10-22 | V105: 0.0125 | W105: 64 | X105: 1984-10-22 | Y105: 1984-10-23 | Z105: 5 | AA105: 1 | AB105: 0.04889 | AC105: 0.00076390625
A106: 91 | B106: 2013-12-30 | C106: 96.88 | D106: 97.15 | E106: 96.79 | F106: 97.01 | G106: 2293000 | H106: 96.19 | I106: 0.9915472632 | J106: 1 | K106: 96.06 | L106: 96.33 | M106: 95.97 | N106: 96.19 | O106: 2293000 | U106: 1985-07-23 | V106: 0.0125 | W106: 67.5 | X106: 1984-07-23 | Y106: 1984-07-24 | Z106: 5 | AA106: 1 | AB106: 0.04778 | AC106: 0.0007078518519
A107: 92 | B107: 2013-12-27 | C107: 96.87 | D107: 97.28 | E107: 96.8 | F107: 96.91 | G107: 1987100 | H107: 96.09 | I107: 0.9915385409 | J107: 1 | K107: 96.05 | L107: 96.46 | M107: 95.98 | N107: 96.09 | O107: 1987100 | U107: 1985-05-31 | V107: 0.0125 | W107: 66.75 | X107: 1984-05-31 | Y107: 1984-07-24 | Z107: 4 | AA107: 0 | AB107: 0.04602 | AC107: 0.0006894382022
A108: 93 | B108: 2013-12-26 | C108: 96.77 | D108: 96.91 | E108: 96.63 | F108: 96.84 | G108: 1978300 | H108: 96.02 | I108: 0.9915324246 | J108: 1 | K108: 95.95 | L108: 96.09 | M108: 95.81 | N108: 96.02 | O108: 1978300 | U108: 1985-01-22 | V108: 0.01139 | W108: 56.13 | X108: 1984-01-22 | Y108: 1984-01-24 | Z108: 5 | AA108: 1 | AB108: 0.04426 | AC108: 0.0007885266346
A109: 94 | B109: 2013-12-24 | C109: 96.14 | D109: 96.75 | E109: 96.14 | F109: 96.54 | G109: 1155900 | H109: 95.72 | I109: 0.9915061115 | J109: 1 | K109: 95.32 | L109: 95.93 | M109: 95.32 | N109: 95.72 | O109: 1155900 | U109: 1984-10-23 | V109: 0.01139 | W109: 53 | X109: 1983-10-23 | Y109: 1983-10-25 | Z109: 5 | AA109: 1 | AB109: 0.04213 | AC109: 0.0007949056604
A110: 95 | B110: 2013-12-23 | C110: 96.72 | D110: 96.95 | E110: 96.05 | F110: 96.3 | G110: 3296300 | H110: 95.49 | I110: 0.991588785 | J110: 1 | K110: 95.91 | L110: 96.13 | M110: 95.24 | N110: 95.49 | O110: 3296300 | U110: 1984-07-24 | V110: 0.01074 | W110: 68.88 | X110: 1983-07-24 | Y110: 1983-10-25 | Z110: 4 | AA110: 0 | AB110: 0.04 | AC110: 0.0005807200929
A111: 96 | B111: 2013-12-20 | C111: 95.46 | D111: 96.51 | E111: 95.34 | F111: 96.51 | G111: 8039500 | H111: 95.69 | I111: 0.9915034711 | J111: 1 | K111: 94.65 | L111: 95.69 | M111: 94.53 | N111: 95.69 | O111: 8039500 | U111: 1984-05-23 | V111: 0.01074 | W111: 63.37 | X111: 1983-05-23 | Y111: 1983-05-24 | Z111: 5 | AA111: 1 | AB111: 0.03852 | AC111: 0.0006078586082
A112: 97 | B112: 2013-12-19 | C112: 95.88 | D112: 96.3 | E112: 94.93 | F112: 95.14 | G112: 5476500 | H112: 94.34 | I112: 0.9915913391 | J112: 1 | K112: 95.07 | L112: 95.49 | M112: 94.13 | N112: 94.34 | O112: 5476500 | U112: 1984-01-24 | V112: 0.00926 | W112: 69.75 | X112: 1983-01-24 | Y112: 1983-01-24 | Z112: 5 | AA112: 1 | AB112: 0.03704 | AC112: 0.0005310394265
A113: 98 | B113: 2013-12-18 | C113: 94.66 | D113: 95.95 | E113: 94.57 | F113: 95.93 | G113: 5526800 | H113: 95.12 | I113: 0.9915563432 | J113: 1 | K113: 93.86 | L113: 95.14 | M113: 93.77 | N113: 95.12 | O113: 5526800 | U113: 1983-10-25 | V113: 0.00926 | W113: 68.75 | X113: 1982-10-25 | Y113: 1983-01-24 | Z113: 4 | AA113: 0 | AB113: 0.03593 | AC113: 0.0005226181818
A114: 99 | B114: 2013-12-17 | C114: 95.44 | D114: 95.58 | E114: 94.27 | F114: 94.38 | G114: 4460300 | H114: 93.58 | I114: 0.9915236279 | J114: 1 | K114: 94.63 | L114: 94.77 | M114: 93.47 | N114: 93.58 | O114: 4460300 | U114: 1983-07-15 | V114: 0.00926 | W114: 64 | X114: 1982-07-15 | Y114: 1982-07-20 | Z114: 5 | AA114: 1 | AB114: 0.03482 | AC114: 0.0005440625
A115: 100 | B115: 2013-12-16 | C115: 94.97 | D115: 95.78 | E115: 94.9 | F115: 95.45 | G115: 4868100 | H115: 94.64 | I115: 0.9915138816 | J115: 1 | K115: 94.16 | L115: 94.97 | M115: 94.09 | N115: 94.64 | O115: 4868100 | U115: 1983-05-24 | V115: 0.00926 | W115: 66 | X115: 1982-05-24 | Y115: 1982-05-24 | Z115: 5 | AA115: 1 | AB115: 0.03297 | AC115: 0.0004995454545
A116: 101 | B116: 2013-12-13 | C116: 94.19 | D116: 94.62 | E116: 94.05 | F116: 94.44 | G116: 3277500 | H116: 93.64 | I116: 0.9915290131 | J116: 1 | K116: 93.39 | L116: 93.82 | M116: 93.25 | N116: 93.64 | O116: 3277500 | U116: 1983-01-24 | V116: 0.00815 | W116: 55.38 | X116: 1982-01-24 | Y116: 1982-02-05 | Z116: 5 | AA116: 0 | AB116: 0.03729 | AC116: 0.000673347779
A117: 102 | B117: 2013-12-12 | C117: 95.4 | D117: 95.68 | E117: 94.04 | F117: 94.1 | G117: 5719900 | H117: 93.31 | I117: 0.9916046759 | J117: 1 | K117: 94.6 | L117: 94.88 | M117: 93.25 | N117: 93.31 | O117: 5719900 | U117: 1982-10-15 | V117: 0.00815 | W117: 57.38 | X117: 1981-10-15 | Y117: 1981-10-27 | Z117: 5 | AA117: 1 | AB117: 0.02914 | AC117: 0.0005078424538
A118: 103 | B118: 2013-12-11 | C118: 95.51 | D118: 95.72 | E118: 95.17 | F118: 95.26 | G118: 5194500 | H118: 94.46 | I118: 0.9916019316 | J118: 1 | K118: 94.71 | L118: 94.92 | M118: 94.37 | N118: 94.46 | O118: 5194500 | U118: 1982-07-20 | V118: 0.00741 | W118: 76.5 | X118: 1981-07-20 | Y118: 1981-07-28 | Z118: 5 | AA118: 1 | AB118: 0.02716 | AC118: 0.0003550326797
A119: 104 | B119: 2013-12-10 | C119: 95.69 | D119: 95.7 | E119: 95.07 | F119: 95.43 | G119: 4190600 | H119: 94.62 | I119: 0.9915121031 | J119: 1 | K119: 94.88 | L119: 94.89 | M119: 94.26 | N119: 94.62 | O119: 4190600 | U119: 1982-05-24 | V119: 0.00741 | W119: 66.75 | X119: 1981-05-24 | Y119: 1981-07-28 | Z119: 4 | AA119: 0 | AB119: 0.02592 | AC119: 0.0003883146067
A120: 105 | B120: 2013-12-09 | C120: 96.13 | D120: 96.5 | E120: 95.45 | F120: 95.72 | G120: 5056100 | H120: 94.91 | I120: 0.9915378186 | J120: 1 | K120: 95.32 | L120: 95.68 | M120: 94.64 | N120: 94.91 | O120: 5056100 | U120: 1982-02-05 | V120: 0.00617 | W120: 64 | X120: 1981-02-05 | Y120: 1981-02-24 | Z120: 5 | AA120: 1 | AB120: 0.02468 | AC120: 0.000385625
A121: 106 | B121: 2013-12-06 | C121: 95.94 | D121: 96.95 | E121: 95.9 | F121: 96.8 | G121: 5811200 | H121: 95.98 | I121: 0.9915289256 | J121: 1 | K121: 95.13 | L121: 96.13 | M121: 95.09 | N121: 95.98 | O121: 5811200 | U121: 1981-10-27 | V121: 0.00617 | W121: 67.75 | X121: 1980-10-27 | Y121: 1980-10-27 | Z121: 5 | AA121: 1 | AB121: 0.02345 | AC121: 0.0003461254613
A122: 107 | B122: 2013-12-05 | C122: 95.37 | D122: 95.82 | E122: 95.2 | F122: 95.43 | G122: 5076500 | H122: 94.62 | I122: 0.9915121031 | J122: 1 | K122: 94.56 | L122: 95.01 | M122: 94.39 | N122: 94.62 | O122: 5076500 | U122: 1981-07-28 | V122: 0.00617 | W122: 60.75 | X122: 1980-07-28 | Y122: 1980-10-27 | Z122: 4 | AA122: 0 | AB122: 0.02222 | AC122: 0.0003657613169
A123: 108 | B123: 2013-12-04 | C123: 95.66 | D123: 96.13 | E123: 95.36 | F123: 95.71 | G123: 4951300 | H123: 94.9 | I123: 0.9915369345 | J123: 1 | K123: 94.85 | L123: 95.32 | M123: 94.55 | N123: 94.9 | O123: 4951300 | U123: 1981-05-13 | V123: 0.00617 | W123: 60.5 | X123: 1980-05-13 | Y123: 1980-06-05 | Z123: 5 | AA123: 0 | AB123: 0.02593 | AC123: 0.0004285950413
A124: 109 | B124: 2013-12-03 | C124: 96.75 | D124: 96.75 | E124: 96.07 | F124: 96.38 | G124: 4851900 | H124: 95.57 | I124: 0.9915957668 | J124: 1 | K124: 95.94 | L124: 95.94 | M124: 95.26 | N124: 95.57 | O124: 4851900 | U124: 1981-02-24 | V124: 0.00494 | W124: 56.63 | X124: 1980-02-24 | Y124: 1980-02-25 | Z124: 5 | AA124: 1 | AB124: 0.01976 | AC124: 0.0003489316617
A125: 110 | B125: 2013-12-02 | C125: 97.29 | D125: 97.29 | E125: 96.33 | F125: 96.51 | G125: 4810000 | H125: 95.69 | I125: 0.9915034711 | J125: 1 | K125: 96.46 | L125: 96.46 | M125: 95.51 | N125: 95.69 | O125: 4810000 | U125: 1980-10-27 | V125: 0.00494 | W125: 44.5 | X125: 1979-10-27 | Y125: 1980-02-25 | Z125: 4 | AA125: 0 | AB125: 0.01828 | AC125: 0.0004107865169
A126: 111 | B126: 2013-11-29 | C126: 97.25 | D126: 97.6 | E126: 97.08 | F126: 97.37 | G126: 2920300 | H126: 96.55 | I126: 0.9915785149 | J126: 1 | K126: 96.43 | L126: 96.78 | M126: 96.26 | N126: 96.55 | O126: 2920300 | U126: 1980-07-24 | V126: 0.00494 | W126: 46.25 | X126: 1979-07-24 | Y126: 1979-07-26 | Z126: 5 | AA126: 1 | AB126: 0.0168 | AC126: 0.0003632432432
A127: 112 | B127: 2013-11-27 | C127: 97.62 | D127: 97.66 | E127: 96.95 | F127: 97.06 | G127: 3501500 | H127: 96.24 | I127: 0.9915516176 | J127: 1 | K127: 96.8 | L127: 96.83 | M127: 96.13 | N127: 96.24 | O127: 3501500 | U127: 1980-06-05 | V127: 0.00494 | W127: 46.88 | X127: 1979-06-05 | Y127: 1979-07-26 | Z127: 4 | AA127: 0 | AB127: 0.01532 | AC127: 0.0003267918089
A128: 113 | B128: 2013-11-26 | C128: 98.8 | D128: 99.09 | E128: 98.15 | F128: 98.2 | G128: 5517400 | H128: 96.57 | I128: 0.983401222 | J128: 1 | K128: 97.16 | L128: 97.45 | M128: 96.52 | N128: 96.57 | O128: 5517400 | U128: 1980-02-25 | V128: 0.00346 | W128: 40.5 | X128: 1979-02-25 | Y128: 1979-05-21 | Z128: 4 | AA128: 0 | AB128: 0.01384 | AC128: 0.0003417283951
A129: 114 | B129: 2013-11-25 | C129: 98.75 | D129: 99.27 | E129: 98.65 | F129: 98.92 | G129: 20420800 | H129: 97.28 | I129: 0.9834209462 | J129: 1 | K129: 97.11 | L129: 97.62 | M129: 97.01 | N129: 97.28 | O129: 20420800 | U129: 1979-10-26 | V129: 0.00346 | W129: 43.75 | X129: 1978-10-26 | Y129: 1978-10-26 | Z129: 5 | AA129: 1 | AB129: 0.0126 | AC129: 0.000288
A130: 115 | B130: 2013-11-22 | C130: 97.84 | D130: 98.51 | E130: 97.37 | F130: 98.27 | G130: 16495500 | H130: 96.64 | I130: 0.9834130457 | J130: 1 | K130: 96.22 | L130: 96.88 | M130: 95.75 | N130: 96.64 | O130: 16495500 | U130: 1979-07-26 | V130: 0.00346 | W130: 46.25 | X130: 1978-07-26 | Y130: 1978-10-26 | Z130: 4 | AA130: 0 | AB130: 0.01136 | AC130: 0.0002456216216
A131: 116 | B131: 2013-11-21 | C131: 97.8 | D131: 98.09 | E131: 97.59 | F131: 97.7 | G131: 12884800 | H131: 96.08 | I131: 0.9834186285 | J131: 1 | K131: 96.18 | L131: 96.46 | M131: 95.97 | N131: 96.08 | O131: 12884800 | U131: 1979-05-21 | V131: 0.00346 | W131: 43.62 | X131: 1978-05-21 | Y131: 1978-07-19 | Z131: 4 | AA131: 0 | AB131: 0.01012 | AC131: 0.000232003668
A132: 117 | B132: 2013-11-20 | C132: 97.57 | D132: 98.05 | E132: 97.18 | F132: 97.54 | G132: 3815100 | H132: 95.92 | I132: 0.9833914292 | J132: 1 | K132: 95.95 | L132: 96.42 | M132: 95.57 | N132: 95.92 | O132: 3815100 | U132: 1979-02-14 | V132: 0.00222 | W132: 42 | X132: 1978-02-14 | Y132: 1978-02-14 | Z132: 5 | AA132: 1 | AB132: 0.00888 | AC132: 0.0002114285714
A133: 118 | B133: 2013-11-19 | C133: 97.52 | D133: 98.29 | E133: 97.36 | F133: 97.98 | G133: 3836600 | H133: 96.35 | I133: 0.9833639518 | J133: 1 | K133: 95.9 | L133: 96.65 | M133: 95.74 | N133: 96.35 | O133: 3836600 | U133: 1978-10-26 | V133: 0.00222 | W133: 48 | X133: 1977-10-26 | Y133: 1978-02-14 | Z133: 4 | AA133: 0 | AB133: 0.00789 | AC133: 0.000164375
A134: 119 | B134: 2013-11-18 | C134: 96.9 | D134: 97.79 | E134: 96.9 | F134: 97.65 | G134: 4966700 | H134: 96.03 | I134: 0.9834101382 | J134: 1 | K134: 95.29 | L134: 96.17 | M134: 95.29 | N134: 96.03 | O134: 4966700 | U134: 1978-07-19 | V134: 0.00222 | W134: 54.88 | X134: 1977-07-19 | Y134: 1977-07-19 | Z134: 5 | AA134: 1 | AB134: 0.0069 | AC134: 0.000125728863
A135: 120 | B135: 2013-11-15 | C135: 97.45 | D135: 97.71 | E135: 96.4 | F135: 96.92 | G135: 7096800 | H135: 95.31 | I135: 0.9833883615 | J135: 1 | K135: 95.83 | L135: 96.09 | M135: 94.8 | N135: 95.31 | O135: 7096800 | U135: 1978-05-16 | V135: 0.00222 | W135: 52.25 | X135: 1977-05-16 | Y135: 1977-07-19 | Z135: 4 | AA135: 0 | AB135: 0.00591 | AC135: 0.0001131100478
A136: 121 | B136: 2013-11-14 | C136: 98.18 | D136: 98.7 | E136: 97.18 | F136: 97.56 | G136: 6594200 | H136: 95.94 | I136: 0.9833948339 | J136: 1 | K136: 96.55 | L136: 97.06 | M136: 95.57 | N136: 95.94 | O136: 6594200 | U136: 1978-02-14 | V136: 0.00123 | W136: 45.25 | X136: 1977-02-14 | Y136: 1977-02-14 | Z136: 5 | AA136: 1 | AB136: 0.00492 | AC136: 0.0001087292818
A137: 122 | B137: 2013-11-13 | C137: 97.47 | D137: 98.12 | E137: 97.31 | F137: 98.11 | G137: 4164800 | H137: 96.48 | I137: 0.9833859953 | J137: 1 | K137: 95.85 | L137: 96.49 | M137: 95.69 | N137: 96.48 | O137: 4164800 | U137: 1977-10-18 | V137: 0.00123 | W137: 46 | X137: 1976-10-18 | Y137: 1977-02-14 | Z137: 4 | AA137: 0 | AB137: 0.00431 | AC137: 9.369565217e-05
A138: 123 | B138: 2013-11-12 | C138: 97.07 | D138: 97.76 | E138: 96.85 | F138: 97.66 | G138: 3845000 | H138: 96.04 | I138: 0.983411837 | J138: 1 | K138: 95.46 | L138: 96.14 | M138: 95.24 | N138: 96.04 | O138: 3845000 | U138: 1977-07-19 | V138: 0.00123 | W138: 49.38 | X138: 1976-07-19 | Y138: 1977-02-14 | Z138: 3 | AA138: 0 | AB138: 0.00308 | AC138: 6.237343054e-05
A139: 124 | B139: 2013-11-11 | C139: 96.83 | D139: 97.49 | E139: 96.8 | F139: 97.09 | G139: 2573800 | H139: 95.48 | I139: 0.9834174477 | J139: 1 | K139: 95.22 | L139: 95.87 | M139: 95.19 | N139: 95.48 | O139: 2573800 | U139: 1977-05-12 | V139: 0.00123 | W139: 41.5 | X139: 1976-05-12 | Y139: 1977-02-14 | Z139: 2 | AA139: 0 | AB139: 0.00185 | AC139: 4.457831325e-05
A140: 125 | B140: 2013-11-08 | C140: 97.17 | D140: 97.3 | E140: 96.32 | F140: 97.01 | G140: 5052400 | H140: 95.4 | I140: 0.9834037728 | J140: 1 | K140: 95.56 | L140: 95.69 | M140: 94.72 | N140: 95.4 | O140: 5052400 | U140: 1977-02-14 | V140: 0.00062 | W140: 46.13 | X140: 1976-02-14 | Y140: 1977-02-14 | Z140: 1 | AA140: 1 | AB140: 0.00062 | AC140: 1.344027748e-05
A141: 126 | B141: 2013-11-07 | C141: 97.96 | D141: 98.09 | E141: 96.78 | F141: 97.2 | G141: 4921000 | H141: 95.58 | I141: 0.9833333333 | J141: 1 | K141: 96.33 | L141: 96.46 | M141: 95.17 | N141: 95.58 | O141: 4921000
A142: 127 | B142: 2013-11-06 | C142: 97.66 | D142: 98.19 | E142: 97.47 | F142: 97.9 | G142: 4365900 | H142: 96.27 | I142: 0.9833503575 | J142: 1 | K142: 96.03 | L142: 96.56 | M142: 95.85 | N142: 96.27 | O142: 4365900
A143: 128 | B143: 2013-11-05 | C143: 97.38 | D143: 97.75 | E143: 97.02 | F143: 97.41 | G143: 4338200 | H143: 95.79 | I143: 0.9833692639 | J143: 1 | K143: 95.76 | L143: 96.12 | M143: 95.41 | N143: 95.79 | O143: 4338200
A144: 129 | B144: 2013-11-04 | C144: 97.26 | D144: 97.5 | E144: 96.83 | F144: 97.31 | G144: 5023900 | H144: 95.69 | I144: 0.9833521735 | J144: 1 | K144: 95.64 | L144: 95.88 | M144: 95.22 | N144: 95.69 | O144: 5023900
A145: 130 | B145: 2013-11-01 | C145: 96.52 | D145: 97.5 | E145: 96.52 | F145: 97.24 | G145: 5127300 | H145: 95.62 | I145: =H145/F145 -> 0.9833401892 | J145: =INDEX(OFFSET($T$15,0,0,$S$13+1,1),MATCH(B145,OFFSET($Q$15,0,0,$S$13+1,1),-1)) -> 1 | K145: =ROUND($I145*C145,2) -> 94.91 | L145: =ROUND($I145*D145,2) -> 95.88 | M145: =ROUND($I145*E145,2) -> 94.91 | N145: =ROUND($I145*F145,2) -> 95.62 | O145: =G145*J145 -> 5127300
A146: 131 | B146: 2013-10-31 | C146: 96.2 | D146: 96.7 | E146: 96.11 | F146: 96.52 | G146: 4271300 | H146: 94.92 | I146: 0.9834231247 | J146: 1 | K146: 94.61 | L146: 95.1 | M146: 94.52 | N146: 94.92 | O146: 4271300
A147: 132 | B147: 2013-10-30 | C147: 96.17 | D147: 96.45 | E147: 95.73 | F147: 96.03 | G147: 3404300 | H147: 94.43 | I147: 0.98333854 | J147: 1 | K147: 94.57 | L147: 94.84 | M147: 94.13 | N147: 94.43 | O147: 3404300
A148: 133 | B148: 2013-10-29 | C148: 95.62 | D148: 96.1 | E148: 95.3 | F148: 96.05 | G148: 3975100 | H148: 94.45 | I148: 0.9833420094 | J148: 1 | K148: 94.03 | L148: 94.5 | M148: 93.71 | N148: 94.45 | O148: 3975100
A149: 134 | B149: 2013-10-28 | C149: 94.69 | D149: 95.72 | E149: 94.68 | F149: 95.37 | G149: 3836400 | H149: 93.78 | I149: 0.9833280906 | J149: 1 | K149: 93.11 | L149: 94.12 | M149: 93.1 | N149: 93.78 | O149: 3836400
A150: 135 | B150: 2013-10-25 | C150: 94.78 | D150: 94.95 | E150: 94.36 | F150: 94.78 | G150: 3055900 | H150: 93.2 | I150: 0.9833298164 | J150: 1 | K150: 93.2 | L150: 93.37 | M150: 92.79 | N150: 93.2 | O150: 3055900
A151: 136 | B151: 2013-10-24 | C151: 94.41 | D151: 94.81 | E151: 94.24 | F151: 94.68 | G151: 3640900 | H151: 93.11 | I151: 0.9834178285 | J151: 1 | K151: 92.84 | L151: 93.24 | M151: 92.68 | N151: 93.11 | O151: 3640900
A152: 137 | B152: 2013-10-23 | C152: 95.08 | D152: 95.2 | E152: 93.93 | F152: 94.21 | G152: 4581200 | H152: 92.64 | I152: 0.9833351024 | J152: 1 | K152: 93.5 | L152: 93.61 | M152: 92.36 | N152: 92.64 | O152: 4581200
A153: 138 | B153: 2013-10-22 | C153: 94.68 | D153: 95.49 | E153: 94.21 | F153: 95.12 | G153: 5144000 | H153: 93.54 | I153: 0.9833894029 | J153: 1 | K153: 93.11 | L153: 93.9 | M153: 92.65 | N153: 93.54 | O153: 5144000
A154: 139 | B154: 2013-10-21 | C154: 93.7 | D154: 94.85 | E154: 93.24 | F154: 94.59 | G154: 9137700 | H154: 93.02 | I154: 0.983402051 | J154: 1 | K154: 92.14 | L154: 93.28 | M154: 91.69 | N154: 93.02 | O154: 9137700
A155: 140 | B155: 2013-10-18 | C155: 95.7 | D155: 95.7 | E155: 94.52 | F155: 95.2 | G155: 7286100 | H155: 93.62 | I155: 0.9834033613 | J155: 1 | K155: 94.11 | L155: 94.11 | M155: 92.95 | N155: 93.62 | O155: 7286100
A156: 141 | B156: 2013-10-17 | C156: 95.19 | D156: 95.52 | E156: 94.65 | F156: 95.47 | G156: 3860500 | H156: 93.88 | I156: 0.9833455536 | J156: 1 | K156: 93.6 | L156: 93.93 | M156: 93.07 | N156: 93.88 | O156: 3860500
A157: 142 | B157: 2013-10-16 | C157: 94.3 | D157: 95.24 | E157: 94.14 | F157: 95.22 | G157: 4708700 | H157: 93.64 | I157: 0.9834068473 | J157: 1 | K157: 92.74 | L157: 93.66 | M157: 92.58 | N157: 93.64 | O157: 4708700
A158: 143 | B158: 2013-10-15 | C158: 93.99 | D158: 94.2 | E158: 93.45 | F158: 93.8 | G158: 5878900 | H158: 92.24 | I158: 0.9833688699 | J158: 1 | K158: 92.43 | L158: 92.63 | M158: 91.9 | N158: 92.24 | O158: 5878900
A159: 144 | B159: 2013-10-14 | C159: 94.41 | D159: 94.88 | E159: 94.18 | F159: 94.72 | G159: 3429700 | H159: 93.15 | I159: 0.9834248311 | J159: 1 | K159: 92.85 | L159: 93.31 | M159: 92.62 | N159: 93.15 | O159: 3429700
A160: 145 | B160: 2013-10-11 | C160: 94.69 | D160: 94.8 | E160: 94.33 | F160: 94.74 | G160: 4132600 | H160: 93.16 | I160: 0.9833227781 | J160: 1 | K160: 93.11 | L160: 93.22 | M160: 92.76 | N160: 93.16 | O160: 4132600
A161: 146 | B161: 2013-10-10 | C161: 94.22 | D161: 94.44 | E161: 93.51 | F161: 94.44 | G161: 4531000 | H161: 92.87 | I161: 0.9833756883 | J161: 1 | K161: 92.65 | L161: 92.87 | M161: 91.96 | N161: 92.87 | O161: 4531000
A162: 147 | B162: 2013-10-09 | C162: 93.82 | D162: 93.96 | E162: 93.14 | F162: 93.27 | G162: 5159400 | H162: 91.72 | I162: 0.9833815804 | J162: 1 | K162: 92.26 | L162: 92.4 | M162: 91.59 | N162: 91.72 | O162: 5159400
A163: 148 | B163: 2013-10-08 | C163: 94.27 | D163: 94.58 | E163: 93.94 | F163: 93.94 | G163: 3643900 | H163: 92.38 | I163: 0.9833936555 | J163: 1 | K163: 92.7 | L163: 93.01 | M163: 92.38 | N163: 92.38 | O163: 3643900
A164: 149 | B164: 2013-10-07 | C164: 94.26 | D164: 94.8 | E164: 94.14 | F164: 94.36 | G164: 3037100 | H164: 92.79 | I164: 0.9833615939 | J164: 1 | K164: 92.69 | L164: 93.22 | M164: 92.57 | N164: 92.79 | O164: 3037100
A165: 150 | B165: 2013-10-04 | C165: 94.61 | D165: 94.8 | E165: 94.4 | F165: 94.7 | G165: 3047700 | H165: 93.13 | I165: 0.9834213305 | J165: 1 | K165: 93.04 | L165: 93.23 | M165: 92.83 | N165: 93.13 | O165: 3047700
A166: 151 | B166: 2013-10-03 | C166: 95.15 | D166: 95.21 | E166: 94.61 | F166: 94.67 | G166: 4855700 | H166: 93.1 | I166: 0.9834160769 | J166: 1 | K166: 93.57 | L166: 93.63 | M166: 93.04 | N166: 93.1 | O166: 4855700
A167: 152 | B167: 2013-10-02 | C167: 95.58 | D167: 95.88 | E167: 94.01 | F167: 95.28 | G167: 7250300 | H167: 93.7 | I167: 0.9834172964 | J167: 1 | K167: 94 | L167: 94.29 | M167: 92.45 | N167: 93.7 | O167: 7250300
A168: 153 | B168: 2013-10-01 | C168: 96.18 | D168: 96.39 | E168: 95.85 | F168: 96.13 | G168: 3240700 | H168: 94.53 | I168: 0.9833558723 | J168: 1 | K168: 94.58 | L168: 94.79 | M168: 94.25 | N168: 94.53 | O168: 3240700
A169: 154 | B169: 2013-09-30 | C169: 96.46 | D169: 96.69 | E169: 95.11 | F169: 96.21 | G169: 4404500 | H169: 94.61 | I169: 0.9833697121 | J169: 1 | K169: 94.86 | L169: 95.08 | M169: 93.53 | N169: 94.61 | O169: 4404500
A170: 155 | B170: 2013-09-27 | C170: 97.89 | D170: 97.99 | E170: 97 | F170: 97.12 | G170: 3533100 | H170: 95.51 | I170: 0.98342257 | J170: 1 | K170: 96.27 | L170: 96.37 | M170: 95.39 | N170: 95.51 | O170: 3533100
A171: 156 | B171: 2013-09-26 | C171: 97.89 | D171: 98.32 | E171: 97.79 | F171: 98.19 | G171: 3604900 | H171: 96.56 | I171: 0.9833995315 | J171: 1 | K171: 96.26 | L171: 96.69 | M171: 96.17 | N171: 96.56 | O171: 3604900
A172: 157 | B172: 2013-09-25 | C172: 97.8 | D172: 97.99 | E172: 97.41 | F172: 97.62 | G172: 4053200 | H172: 96 | I172: 0.98340504 | J172: 1 | K172: 96.18 | L172: 96.36 | M172: 95.79 | N172: 96 | O172: 4053200
A173: 158 | B173: 2013-09-24 | C173: 97.14 | D173: 98.6 | E173: 96.86 | F173: 97.78 | G173: 4810300 | H173: 96.15 | I173: 0.9833299243 | J173: 1 | K173: 95.52 | L173: 96.96 | M173: 95.25 | N173: 96.15 | O173: 4810300
A174: 159 | B174: 2013-09-23 | C174: 96.97 | D174: 97.58 | E174: 96.82 | F174: 97.28 | G174: 3301600 | H174: 95.66 | I174: 0.9833470395 | J174: 1 | K174: 95.36 | L174: 95.96 | M174: 95.21 | N174: 95.66 | O174: 3301600
A175: 160 | B175: 2013-09-20 | C175: 97.7 | D175: 98.05 | E175: 96.9 | F175: 96.9 | G175: 8077000 | H175: 95.29 | I175: 0.9833849329 | J175: 1 | K175: 96.08 | L175: 96.42 | M175: 95.29 | N175: 95.29 | O175: 8077000
A176: 161 | B176: 2013-09-19 | C176: 98.5 | D176: 98.51 | E176: 97 | F176: 97.92 | G176: 6430800 | H176: 96.29 | I176: 0.9833537582 | J176: 1 | K176: 96.86 | L176: 96.87 | M176: 95.39 | N176: 96.29 | O176: 6430800
A177: 162 | B177: 2013-09-18 | C177: 97.87 | D177: 98.99 | E177: 97.64 | F177: 98.7 | G177: 4279600 | H177: 97.06 | I177: 0.9833839919 | J177: 1 | K177: 96.24 | L177: 97.35 | M177: 96.02 | N177: 97.06 | O177: 4279600
A178: 163 | B178: 2013-09-17 | C178: 97.58 | D178: 98.36 | E178: 97.49 | F178: 97.92 | G178: 3256900 | H178: 96.29 | I178: 0.9833537582 | J178: 1 | K178: 95.96 | L178: 96.72 | M178: 95.87 | N178: 96.29 | O178: 3256900
A179: 164 | B179: 2013-09-16 | C179: 97.88 | D179: 98.17 | E179: 97.4 | F179: 97.71 | G179: 3490900 | H179: 96.09 | I179: 0.9834203255 | J179: 1 | K179: 96.26 | L179: 96.54 | M179: 95.79 | N179: 96.09 | O179: 3490900
A180: 165 | B180: 2013-09-13 | C180: 97.34 | D180: 97.65 | E180: 97.13 | F180: 97.35 | G180: 2668700 | H180: 95.73 | I180: 0.9833590139 | J180: 1 | K180: 95.72 | L180: 96.03 | M180: 95.51 | N180: 95.73 | O180: 2668700
A181: 166 | B181: 2013-09-12 | C181: 97.48 | D181: 97.85 | E181: 97.07 | F181: 97.18 | G181: 4277300 | H181: 95.56 | I181: 0.9833299033 | J181: 1 | K181: 95.85 | L181: 96.22 | M181: 95.45 | N181: 95.56 | O181: 4277300
A182: 167 | B182: 2013-09-11 | C182: 96.66 | D182: 97.46 | E182: 96.37 | F182: 97.46 | G182: 3928600 | H182: 95.84 | I182: 0.983377796 | J182: 1 | K182: 95.05 | L182: 95.84 | M182: 94.77 | N182: 95.84 | O182: 3928600
A183: 168 | B183: 2013-09-10 | C183: 97.1 | D183: 97.36 | E183: 96.5 | F183: 96.89 | G183: 4984300 | H183: 95.28 | I183: 0.9833832181 | J183: 1 | K183: 95.49 | L183: 95.74 | M183: 94.9 | N183: 95.28 | O183: 4984300
A184: 169 | B184: 2013-09-09 | C184: 96.22 | D184: 96.79 | E184: 96.21 | F184: 96.45 | G184: 3525200 | H184: 94.85 | I184: 0.9834110938 | J184: 1 | K184: 94.62 | L184: 95.18 | M184: 94.61 | N184: 94.85 | O184: 3525200
A185: 170 | B185: 2013-09-06 | C185: 95.87 | D185: 96.75 | E185: 95.25 | F185: 96.26 | G185: 4485800 | H185: 94.66 | I185: 0.9833783503 | J185: 1 | K185: 94.28 | L185: 95.14 | M185: 93.67 | N185: 94.66 | O185: 4485800
A186: 171 | B186: 2013-09-05 | C186: 95.33 | D186: 96.46 | E186: 95.08 | F186: 95.66 | G186: 4275300 | H186: 94.07 | I186: 0.9833786327 | J186: 1 | K186: 93.75 | L186: 94.86 | M186: 93.5 | N186: 94.07 | O186: 4275300
A187: 172 | B187: 2013-09-04 | C187: 94.5 | D187: 95.36 | E187: 94.34 | F187: 95.16 | G187: 2898800 | H187: 93.58 | I187: 0.983396385 | J187: 1 | K187: 92.93 | L187: 93.78 | M187: 92.77 | N187: 93.58 | O187: 2898800
A188: 173 | B188: 2013-09-03 | C188: 95.1 | D188: 95.28 | E188: 94.12 | F188: 94.52 | G188: 3672100 | H188: 92.95 | I188: 0.9833897588 | J188: 1 | K188: 93.52 | L188: 93.7 | M188: 92.56 | N188: 92.95 | O188: 3672100
A189: 174 | B189: 2013-08-30 | C189: 95 | D189: 95.13 | E189: 94.14 | F189: 94.36 | G189: 3993000 | H189: 92.79 | I189: 0.9833615939 | J189: 1 | K189: 93.42 | L189: 93.55 | M189: 92.57 | N189: 92.79 | O189: 3993000
A190: 175 | B190: 2013-08-29 | C190: 95.65 | D190: 95.98 | E190: 94.7 | F190: 94.86 | G190: 4796600 | H190: 93.28 | I190: 0.9833438752 | J190: 1 | K190: 94.06 | L190: 94.38 | M190: 93.12 | N190: 93.28 | O190: 4796600
A191: 176 | B191: 2013-08-28 | C191: 95 | D191: 96.33 | E191: 95 | F191: 96.08 | G191: 5482500 | H191: 93.73 | I191: 0.9755412157 | J191: 1 | K191: 92.68 | L191: 93.97 | M191: 92.68 | N191: 93.73 | O191: 5482500
A192: 177 | B192: 2013-08-27 | C192: 94.86 | D192: 95.19 | E192: 94.01 | F192: 94.84 | G192: 4513100 | H192: 92.52 | I192: 0.9755377478 | J192: 1 | K192: 92.54 | L192: 92.86 | M192: 91.71 | N192: 92.52 | O192: 4513100
A193: 178 | B193: 2013-08-26 | C193: 95.36 | D193: 95.94 | E193: 95.1 | F193: 95.31 | G193: 3060000 | H193: 92.97 | I193: 0.9754485364 | J193: 1 | K193: 93.02 | L193: 93.58 | M193: 92.77 | N193: 92.97 | O193: 3060000
A194: 179 | B194: 2013-08-23 | C194: 95.57 | D194: 95.68 | E194: 94.91 | F194: 95.13 | G194: 12274200 | H194: 92.8 | I194: 0.9755072007 | J194: 1 | K194: 93.23 | L194: 93.34 | M194: 92.59 | N194: 92.8 | O194: 12274200
A195: 180 | B195: 2013-08-22 | C195: 95.37 | D195: 95.69 | E195: 95.21 | F195: 95.46 | G195: 15364400 | H195: 93.12 | I195: 0.975487115 | J195: 1 | K195: 93.03 | L195: 93.34 | M195: 92.88 | N195: 93.12 | O195: 15364400
A196: 181 | B196: 2013-08-21 | C196: 95.41 | D196: 95.82 | E196: 95.11 | F196: 95.11 | G196: 3430600 | H196: 92.78 | I196: 0.9755020503 | J196: 1 | K196: 93.07 | L196: 93.47 | M196: 92.78 | N196: 92.78 | O196: 3430600
A197: 182 | B197: 2013-08-20 | C197: 95.51 | D197: 95.9 | E197: 95.36 | F197: 95.5 | G197: 2827800 | H197: 93.16 | I197: 0.9754973822 | J197: 1 | K197: 93.17 | L197: 93.55 | M197: 93.02 | N197: 93.16 | O197: 2827800
A198: 183 | B198: 2013-08-19 | C198: 95.12 | D198: 95.99 | E198: 95.05 | F198: 95.48 | G198: 3126200 | H198: 93.14 | I198: 0.9754922497 | J198: 1 | K198: 92.79 | L198: 93.64 | M198: 92.72 | N198: 93.14 | O198: 3126200
A199: 184 | B199: 2013-08-16 | C199: 95.2 | D199: 95.5 | E199: 95.01 | F199: 95.03 | G199: 3324000 | H199: 92.7 | I199: 0.9754814269 | J199: 1 | K199: 92.87 | L199: 93.16 | M199: 92.68 | N199: 92.7 | O199: 3324000
A200: 185 | B200: 2013-08-15 | C200: 95.55 | D200: 95.91 | E200: 95.19 | F200: 95.39 | G200: 4207500 | H200: 93.05 | I200: 0.9754691267 | J200: 1 | K200: 93.21 | L200: 93.56 | M200: 92.85 | N200: 93.05 | O200: 4207500
... 4300 more rows

Sheet Follow
A1: Stocks and Indexes I wish to follow
A3: To ease following a stock, enter a Yahoo Finance acceptable symbol in column "A" anywhere below cell "A9".
A4: Thereafter you may doubleclick the cell containing a symbol of interest to initiate data retrieval and charting for that symbol.
A7: Symbol
A8: To | B8: Description | C8: Last Trade as of most recent check
A9: Follow | C9: Date | D9: Time | E9: Open | F9: High | G9: Low | H9: Close | I9: Volume
A10: F | B10: Ford Motor Compan (F) -NYSE (Daily) | C10: 2014-05-09 | D10: 16:00:00 | E10: 15.73 | F10: 15.9 | G10: 15.73 | H10: 15.77 | I10: 25172568
A11: MCD | B11: McDonald's Corpor (MCD) -NYSE (Daily) | C11: 2014-05-09 | D11: 16:00:00 | E11: 101.85 | F11: 102.95 | G11: 101.82 | H11: 102.93 | I11: 3649434
A12: JNJ | B12: Johnson & Johnson (JNJ) -NYSE | C12: 2014-02-03 | D12: 16:01:00 | E12: 88.75 | F12: 88.78 | G12: 86.61 | H12: 86.78 | I12: 13953268
A13: AAL | B13: American Airlines (AAL) -NasdaqNM | C13: 2014-02-03 | D13: 16:00:00 | E13: 34.04 | F13: 34.48 | G13: 33.05 | H13: 33.96 | I13: 21748284
A14: CIEN | B14: Ciena Corporation (CIEN) -NYSE | C14: 2014-02-03 | D14: 16:02:00 | E14: 23.31 | F14: 23.38 | G14: 21.9 | H14: 22.09 | I14: 4433923
A15: SONC | B15: Sonic Corp. (SONC) -NasdaqNM | C15: 2014-02-03 | D15: 16:00:00 | E15: 17.7 | F15: 18 | G15: 16.92 | H15: 17.28 | I15: 918579
A16: HTLD | B16: Heartland Express (HTLD) -NasdaqNM | C16: 2014-02-03 | D16: 16:00:00 | E16: 21.05 | F16: 21.23 | G16: 20.17 | H16: 20.21 | I16: 589750
A17: ADM | B17: Archer-Daniels-Mi (ADM) -NYSE (Daily) | C17: 2014-04-04 | D17: 16:01:00 | E17: 43.59 | F17: 43.66 | G17: 43.03 | H17: 43.05 | I17: 4416020
A18: A | B18: Agilent Technolog (A) -NYSE | C18: 2014-02-03 | D18: 16:02:00 | E18: 58.15 | F18: 58.48 | G18: 56.075 | H18: 56.15 | I18: 2929252
A22: SPY | B22: SPDR S&P 500 (SPY) -PCX (Daily) | C22: 2014-05-09 | D22: 16:00:00 | E22: 187.69 | F22: 188.04 | G22: 186.83 | H22: 187.96 | I22: 83678568
A23: ^GSPC | B23: S&P 500 (^GSPC) -SNP (Daily) | C23: 2014-04-08 | D23: 16:33:00 | E23: 1845.48 | F23: 1854.95 | G23: 1837.49 | H23: 1851.96 | I23: 552300992
A24: QQQ | B24: PowerShares QQQ T (QQQ) -NGM (Daily) | C24: 2014-04-07 | D24: 11:33:00 | E24: 85.83 | F24: 86.63 | G24: 85.55 | H24: 86.07 | I24: 40146792

Sheet CalculationsAndCharts
A1: SVEModifiedRenkoBars
B2: =InputPriceData!A1 -> McDonald's Corpor (MCD) -NYSE (Daily)
A4: User Charting Controls
A5: Data Control
A6: =InputPriceData!$B$10 -> 9419 | B6: Available Input Data Rows | E6: Earliest: | F6: =OFFSET(InputPriceData!B15,CalculationsAndCharts!A6,0,1,1) -> 1977-01-07
B7: Use Close Adjusted: | C7: TRUE | E7: Latest: | F7: =OFFSET(InputPriceData!B15,1,0,1,1) -> 2014-05-09
A8: =MIN(A6-A11,COUNTA(B33:B9983)) -> 2800 | B8: Logically Available for Calc / Plot
A10: Price Chart Windowing Controls | F10: Y-axis Range
A11: 0 | B11: Input Data Offset (Pan) | E11: Max High+ | F11: =CEILING(MAX(OFFSET($E$33,0,0,$A$12,1))+2*F14,0.1) -> 104.2
A12: 82 | B12: Data Points to Plot (Zoom) | E12: Min Low- | F12: =FLOOR(MIN(OFFSET($F$33,0,0,$A$12,1))-2*F14,0.1) -> 90.2
B13: First: | C13: =OFFSET(B32,A12,0,1,1) -> 2014-01-13 | E13: White space %: | F13: 0.05
B14: ="Last: "&OFFSET(InputPriceData!P15,1+A11,0,1,1) -> Last: | C14: =B33 -> 2014-05-09 | E14: Allowance: | F14: =FLOOR((CEILING(MAX(OFFSET($E$33,0,0,$A$12,1)),1)-FLOOR(MIN(OFFSET($F$33,0,0,$A$12,1)),1))*$F$13,0.01) -> 0.6
A15: Help! I would like to plot data
A16: From | B16: 2014-01-13 | C16: =OFFSET(InputPriceData!$A$15,MATCH(B16,OFFSET(InputPriceData!B15,1,0,InputPriceData!$B$10,1),0),0,1,1)-C17 -> 82 | E16: 23
A17: To | B17: 2014-05-09 | C17: =OFFSET(InputPriceData!$A$15,MATCH(B17,OFFSET(InputPriceData!$B$15,1,0,InputPriceData!$B$10,1),0),0,1,1)-1 -> 0 | E17: =$A$12-$E$16+1 -> 60
A19: User Controls for: Modified Renko Bars
A20: 20 | B20: RenkoTickSize | C20: rangeValue: | D20: =A20*A26 -> 0.2
A22: Ninja Trader Builtin Value of Interest
A23: Ticksize is automatically set by NingaTrader
A24: based on the type of instrument. Here, you
A25: must set as appropriate for your instrument.
A26: 0.01 | B26: Instrument Ticksize
H28: @ Cursor => | I28: =OFFSET(A32,$E$17,0,1,1)&"(RR)" -> 60(RR) | J28: =OFFSET($B$32,E17,0,1,1) -> 2014-02-13 | K28: =TEXT(OFFSET(D32,$E$17,0,1,1),"#,##0.00")&"(o)" -> 93.89(o) | L28: =TEXT(OFFSET(E32,$E$17,0,1,1),"#,##0.00")&"(h)" -> 94.77(h) | M28: =TEXT(OFFSET(F32,$E$17,0,1,1),"#,##0.00")&"(l)" -> 93.70(l) | N28: =TEXT(OFFSET(G32,$E$17,0,1,1),"#,##0.00")&"(c)" -> 94.65(c)
A31: Rel Row | B31: Stock Prices | H31: P Cursor | I31: P Cursor Min | J31: =MAX(OFFSET($J$32,1,0,2800,1)) -> 2800 | K31: ="Modified Renko Bars (" & A20 & ", " & A26 & ")" -> Modified Renko Bars (20, 0.01) | N31: =MAX(OFFSET(N32,1,0,$J$31,1)) -> 102.73 | O31: =MIN(OFFSET(O32,1,0,$J$31,1)) -> 43.33 | Q31: Ticks in bar | R31: Total Ticks
B32: Date | C32: Volume | D32: Open | E32: High | F32: Low | G32: Close | H32: =$F$11 -> 104.2 | I32: =F12 -> 90.2 | J32: Row | K32: Date/time | L32: Volume | M32: Open | N32: High | O32: Low | P32: Close | R32: =SUM(Q33:Q2832) -> 2800
A33: 1 | B33: =OFFSET(InputPriceData!$B$15,CalculationsAndCharts!$A33+$A$11,0,1,1) -> 2014-05-09 | C33: =OFFSET(InputPriceData!G$15,CalculationsAndCharts!$A33+$A$11,IF($C$7,8,0),1,1) -> 3645400 | D33: =OFFSET(InputPriceData!$C$15,CalculationsAndCharts!$A33+$A$11,IF($C$7,8,0),1,1) -> 101.85 | E33: =OFFSET(InputPriceData!$D$15,CalculationsAndCharts!$A33+$A$11,IF($C$7,8,0),1,1) -> 102.95 | F33: =OFFSET(InputPriceData!$E$15,CalculationsAndCharts!$A33+$A$11,IF($C$7,8,0),1,1) -> 101.82 | G33: =OFFSET(InputPriceData!$F$15,CalculationsAndCharts!$A33+$A$11,IF($C$7,8,0),1,1) -> 102.93 | H33: =$E$17 -> 60 | I33: =H32 -> 104.2 | J33: =SVERenkoBars(OFFSET($B$32,1,0,$A$8,1),OFFSET($C$32,1,0,$A$8,1),OFFSET($D$32,1,0,$A$8,1),OFFSET($E$32,1,0,$A$8,1),OFFSET($F$32,1,0,$A$8,1),OFFSET($G$32,1,0,$A$8,1), $D$20) -> 1 | K33: 2014-05-09 | L33: 0 | M33: 102.53 | N33: 102.73 | O33: 102.53 | P33: 102.73 | Q33: 0
A34: 2 | B34: =OFFSET(InputPriceData!B$15,CalculationsAndCharts!$A34+$A$11,0,1,1) -> 2014-05-08 | C34: =OFFSET(InputPriceData!G$15,CalculationsAndCharts!$A34+$A$11,IF($C$7,8,0),1,1) -> 3384500 | D34: =OFFSET(InputPriceData!C$15,CalculationsAndCharts!$A34+$A$11,IF($C$7,8,0),1,1) -> 102 | E34: =OFFSET(InputPriceData!D$15,CalculationsAndCharts!$A34+$A$11,IF($C$7,8,0),1,1) -> 102.18 | F34: =OFFSET(InputPriceData!E$15,CalculationsAndCharts!$A34+$A$11,IF($C$7,8,0),1,1) -> 101.43 | G34: =OFFSET(InputPriceData!F$15,CalculationsAndCharts!$A34+$A$11,IF($C$7,8,0),1,1) -> 101.95 | H34: =$E$17 -> 60 | I34: =I32 -> 90.2 | J34: 2 | K34: 2014-05-09 | L34: 0 | M34: 102.33 | N34: 102.53 | O34: 102.33 | P34: 102.53 | Q34: 0
A35: 3 | B35: =OFFSET(InputPriceData!B$15,CalculationsAndCharts!$A35+$A$11,0,1,1) -> 2014-05-07 | C35: =OFFSET(InputPriceData!G$15,CalculationsAndCharts!$A35+$A$11,IF($C$7,8,0),1,1) -> 4322600 | D35: =OFFSET(InputPriceData!C$15,CalculationsAndCharts!$A35+$A$11,IF($C$7,8,0),1,1) -> 101.26 | E35: =OFFSET(InputPriceData!D$15,CalculationsAndCharts!$A35+$A$11,IF($C$7,8,0),1,1) -> 102.11 | F35: =OFFSET(InputPriceData!E$15,CalculationsAndCharts!$A35+$A$11,IF($C$7,8,0),1,1) -> 100.95 | G35: =OFFSET(InputPriceData!F$15,CalculationsAndCharts!$A35+$A$11,IF($C$7,8,0),1,1) -> 101.96 | J35: 3 | K35: 2014-05-09 | L35: 0 | M35: 102.13 | N35: 102.33 | O35: 102.13 | P35: 102.33 | Q35: 0
A36: 4 | B36: =OFFSET(InputPriceData!B$15,CalculationsAndCharts!$A36+$A$11,0,1,1) -> 2014-05-06 | C36: =OFFSET(InputPriceData!G$15,CalculationsAndCharts!$A36+$A$11,IF($C$7,8,0),1,1) -> 3075100 | D36: =OFFSET(InputPriceData!C$15,CalculationsAndCharts!$A36+$A$11,IF($C$7,8,0),1,1) -> 101.06 | E36: =OFFSET(InputPriceData!D$15,CalculationsAndCharts!$A36+$A$11,IF($C$7,8,0),1,1) -> 101.3 | F36: =OFFSET(InputPriceData!E$15,CalculationsAndCharts!$A36+$A$11,IF($C$7,8,0),1,1) -> 100.8 | G36: =OFFSET(InputPriceData!F$15,CalculationsAndCharts!$A36+$A$11,IF($C$7,8,0),1,1) -> 100.95 | J36: 4 | K36: 2014-05-09 | L36: 3384500 | M36: 101.93 | N36: 102.13 | O36: 101.93 | P36: 102.13 | Q36: 1
A37: 5 | B37: =OFFSET(InputPriceData!B$15,CalculationsAndCharts!$A37+$A$11,0,1,1) -> 2014-05-05 | C37: =OFFSET(InputPriceData!G$15,CalculationsAndCharts!$A37+$A$11,IF($C$7,8,0),1,1) -> 3483500 | D37: =OFFSET(InputPriceData!C$15,CalculationsAndCharts!$A37+$A$11,IF($C$7,8,0),1,1) -> 101.38 | E37: =OFFSET(InputPriceData!D$15,CalculationsAndCharts!$A37+$A$11,IF($C$7,8,0),1,1) -> 101.38 | F37: =OFFSET(InputPriceData!E$15,CalculationsAndCharts!$A37+$A$11,IF($C$7,8,0),1,1) -> 100.59 | G37: =OFFSET(InputPriceData!F$15,CalculationsAndCharts!$A37+$A$11,IF($C$7,8,0),1,1) -> 101.14 | J37: 5 | K37: 2014-05-08 | L37: 0 | M37: 101.73 | N37: 101.93 | O37: 101.73 | P37: 101.93 | Q37: 1
A38: 6 | B38: =OFFSET(InputPriceData!B$15,CalculationsAndCharts!$A38+$A$11,0,1,1) -> 2014-05-02 | C38: =OFFSET(InputPriceData!G$15,CalculationsAndCharts!$A38+$A$11,IF($C$7,8,0),1,1) -> 4934000 | D38: =OFFSET(InputPriceData!C$15,CalculationsAndCharts!$A38+$A$11,IF($C$7,8,0),1,1) -> 101.11 | E38: =OFFSET(InputPriceData!D$15,CalculationsAndCharts!$A38+$A$11,IF($C$7,8,0),1,1) -> 102.28 | F38: =OFFSET(InputPriceData!E$15,CalculationsAndCharts!$A38+$A$11,IF($C$7,8,0),1,1) -> 100.99 | G38: =OFFSET(InputPriceData!F$15,CalculationsAndCharts!$A38+$A$11,IF($C$7,8,0),1,1) -> 101.43 | J38: 6 | K38: 2014-05-07 | L38: 0 | M38: 101.53 | N38: 101.73 | O38: 101.53 | P38: 101.73 | Q38: 0
A39: 7 | B39: =OFFSET(InputPriceData!B$15,CalculationsAndCharts!$A39+$A$11,0,1,1) -> 2014-05-01 | C39: =OFFSET(InputPriceData!G$15,CalculationsAndCharts!$A39+$A$11,IF($C$7,8,0),1,1) -> 3507600 | D39: =OFFSET(InputPriceData!C$15,CalculationsAndCharts!$A39+$A$11,IF($C$7,8,0),1,1) -> 100.68 | E39: =OFFSET(InputPriceData!D$15,CalculationsAndCharts!$A39+$A$11,IF($C$7,8,0),1,1) -> 101.04 | F39: =OFFSET(InputPriceData!E$15,CalculationsAndCharts!$A39+$A$11,IF($C$7,8,0),1,1) -> 100.33 | G39: =OFFSET(InputPriceData!F$15,CalculationsAndCharts!$A39+$A$11,IF($C$7,8,0),1,1) -> 100.96 | J39: 7 | K39: 2014-05-07 | L39: 0 | M39: 101.33 | N39: 101.53 | O39: 101.33 | P39: 101.53 | Q39: 0
A40: 8 | B40: =OFFSET(InputPriceData!B$15,CalculationsAndCharts!$A40+$A$11,0,1,1) -> 2014-04-30 | C40: =OFFSET(InputPriceData!G$15,CalculationsAndCharts!$A40+$A$11,IF($C$7,8,0),1,1) -> 4519800 | D40: =OFFSET(InputPriceData!C$15,CalculationsAndCharts!$A40+$A$11,IF($C$7,8,0),1,1) -> 101.55 | E40: =OFFSET(InputPriceData!D$15,CalculationsAndCharts!$A40+$A$11,IF($C$7,8,0),1,1) -> 101.76 | F40: =OFFSET(InputPriceData!E$15,CalculationsAndCharts!$A40+$A$11,IF($C$7,8,0),1,1) -> 101.04 | G40: =OFFSET(InputPriceData!F$15,CalculationsAndCharts!$A40+$A$11,IF($C$7,8,0),1,1) -> 101.38 | J40: 8 | K40: 2014-05-07 | L40: 3075100 | M40: 100.93 | N40: 101.33 | O40: 100.95 | P40: 101.33 | Q40: 1
A41: 9 | B41: =OFFSET(InputPriceData!B$15,CalculationsAndCharts!$A41+$A$11,0,1,1) -> 2014-04-29 | C41: =OFFSET(InputPriceData!G$15,CalculationsAndCharts!$A41+$A$11,IF($C$7,8,0),1,1) -> 6626100 | D41: =OFFSET(InputPriceData!C$15,CalculationsAndCharts!$A41+$A$11,IF($C$7,8,0),1,1) -> 100.21 | E41: =OFFSET(InputPriceData!D$15,CalculationsAndCharts!$A41+$A$11,IF($C$7,8,0),1,1) -> 101.78 | F41: =OFFSET(InputPriceData!E$15,CalculationsAndCharts!$A41+$A$11,IF($C$7,8,0),1,1) -> 99.81 | G41: =OFFSET(InputPriceData!F$15,CalculationsAndCharts!$A41+$A$11,IF($C$7,8,0),1,1) -> 101.5 | J41: 9 | K41: 2014-05-06 | L41: 8417500 | M41: 101.38 | N41: 101.38 | O41: 100.93 | P41: 100.93 | Q41: 2
A42: 10 | B42: =OFFSET(InputPriceData!B$15,CalculationsAndCharts!$A42+$A$11,0,1,1) -> 2014-04-28 | C42: =OFFSET(InputPriceData!G$15,CalculationsAndCharts!$A42+$A$11,IF($C$7,8,0),1,1) -> 7444500 | D42: =OFFSET(InputPriceData!C$15,CalculationsAndCharts!$A42+$A$11,IF($C$7,8,0),1,1) -> 100.98 | E42: =OFFSET(InputPriceData!D$15,CalculationsAndCharts!$A42+$A$11,IF($C$7,8,0),1,1) -> 101.18 | F42: =OFFSET(InputPriceData!E$15,CalculationsAndCharts!$A42+$A$11,IF($C$7,8,0),1,1) -> 99.65 | G42: =OFFSET(InputPriceData!F$15,CalculationsAndCharts!$A42+$A$11,IF($C$7,8,0),1,1) -> 100.31 | J42: 10 | K42: 2014-05-02 | L42: 3507600 | M42: 100.93 | N42: 101.33 | O42: 100.96 | P42: 101.33 | Q42: 1
A43: 11 | B43: =OFFSET(InputPriceData!B$15,CalculationsAndCharts!$A43+$A$11,0,1,1) -> 2014-04-25 | C43: =OFFSET(InputPriceData!G$15,CalculationsAndCharts!$A43+$A$11,IF($C$7,8,0),1,1) -> 5047100 | D43: =OFFSET(InputPriceData!C$15,CalculationsAndCharts!$A43+$A$11,IF($C$7,8,0),1,1) -> 99.85 | E43: =OFFSET(InputPriceData!D$15,CalculationsAndCharts!$A43+$A$11,IF($C$7,8,0),1,1) -> 100.75 | F43: =OFFSET(InputPriceData!E$15,CalculationsAndCharts!$A43+$A$11,IF($C$7,8,0),1,1) -> 99.39 | G43: =OFFSET(InputPriceData!F$15,CalculationsAndCharts!$A43+$A$11,IF($C$7,8,0),1,1) -> 100.73 | J43: 11 | K43: 2014-05-01 | L43: 4519800 | M43: 101.33 | N43: 101.38 | O43: 100.93 | P43: 100.93 | Q43: 1
A44: 12 | B44: =OFFSET(InputPriceData!B$15,CalculationsAndCharts!$A44+$A$11,0,1,1) -> 2014-04-24 | C44: =OFFSET(InputPriceData!G$15,CalculationsAndCharts!$A44+$A$11,IF($C$7,8,0),1,1) -> 4764900 | D44: =OFFSET(InputPriceData!C$15,CalculationsAndCharts!$A44+$A$11,IF($C$7,8,0),1,1) -> 99.52 | E44: =OFFSET(InputPriceData!D$15,CalculationsAndCharts!$A44+$A$11,IF($C$7,8,0),1,1) -> 100.1 | F44: =OFFSET(InputPriceData!E$15,CalculationsAndCharts!$A44+$A$11,IF($C$7,8,0),1,1) -> 99.13 | G44: =OFFSET(InputPriceData!F$15,CalculationsAndCharts!$A44+$A$11,IF($C$7,8,0),1,1) -> 99.84 | J44: 12 | K44: 2014-04-30 | L44: 0 | M44: 101.13 | N44: 101.33 | O44: 101.13 | P44: 101.33 | Q44: 1
A45: 13 | B45: =OFFSET(InputPriceData!B$15,CalculationsAndCharts!$A45+$A$11,0,1,1) -> 2014-04-23 | C45: =OFFSET(InputPriceData!G$15,CalculationsAndCharts!$A45+$A$11,IF($C$7,8,0),1,1) -> 4179100 | D45: =OFFSET(InputPriceData!C$15,CalculationsAndCharts!$A45+$A$11,IF($C$7,8,0),1,1) -> 99.35 | E45: =OFFSET(InputPriceData!D$15,CalculationsAndCharts!$A45+$A$11,IF($C$7,8,0),1,1) -> 99.99 | F45: =OFFSET(InputPriceData!E$15,CalculationsAndCharts!$A45+$A$11,IF($C$7,8,0),1,1) -> 99.01 | G45: =OFFSET(InputPriceData!F$15,CalculationsAndCharts!$A45+$A$11,IF($C$7,8,0),1,1) -> 99.13 | J45: 13 | K45: 2014-04-29 | L45: 0 | M45: 100.93 | N45: 101.13 | O45: 100.93 | P45: 101.13 | Q45: 0
A46: 14 | B46: =OFFSET(InputPriceData!B$15,CalculationsAndCharts!$A46+$A$11,0,1,1) -> 2014-04-22 | C46: =OFFSET(InputPriceData!G$15,CalculationsAndCharts!$A46+$A$11,IF($C$7,8,0),1,1) -> 8934300 | D46: =OFFSET(InputPriceData!C$15,CalculationsAndCharts!$A46+$A$11,IF($C$7,8,0),1,1) -> 100.02 | E46: =OFFSET(InputPriceData!D$15,CalculationsAndCharts!$A46+$A$11,IF($C$7,8,0),1,1) -> 100.27 | F46: =OFFSET(InputPriceData!E$15,CalculationsAndCharts!$A46+$A$11,IF($C$7,8,0),1,1) -> 98.89 | G46: =OFFSET(InputPriceData!F$15,CalculationsAndCharts!$A46+$A$11,IF($C$7,8,0),1,1) -> 99.32 | J46: 14 | K46: 2014-04-29 | L46: 0 | M46: 100.73 | N46: 100.93 | O46: 100.73 | P46: 100.93 | Q46: 0
A47: 15 | B47: =OFFSET(InputPriceData!B$15,CalculationsAndCharts!$A47+$A$11,0,1,1) -> 2014-04-21 | C47: =OFFSET(InputPriceData!G$15,CalculationsAndCharts!$A47+$A$11,IF($C$7,8,0),1,1) -> 6357000 | D47: =OFFSET(InputPriceData!C$15,CalculationsAndCharts!$A47+$A$11,IF($C$7,8,0),1,1) -> 99.8 | E47: =OFFSET(InputPriceData!D$15,CalculationsAndCharts!$A47+$A$11,IF($C$7,8,0),1,1) -> 100.39 | F47: =OFFSET(InputPriceData!E$15,CalculationsAndCharts!$A47+$A$11,IF($C$7,8,0),1,1) -> 99.25 | G47: =OFFSET(InputPriceData!F$15,CalculationsAndCharts!$A47+$A$11,IF($C$7,8,0),1,1) -> 99.67 | J47: 15 | K47: 2014-04-29 | L47: 0 | M47: 100.53 | N47: 100.73 | O47: 100.53 | P47: 100.73 | Q47: 0
A48: 16 | B48: =OFFSET(InputPriceData!B$15,CalculationsAndCharts!$A48+$A$11,0,1,1) -> 2014-04-17 | C48: =OFFSET(InputPriceData!G$15,CalculationsAndCharts!$A48+$A$11,IF($C$7,8,0),1,1) -> 4545200 | D48: =OFFSET(InputPriceData!C$15,CalculationsAndCharts!$A48+$A$11,IF($C$7,8,0),1,1) -> 100.73 | E48: =OFFSET(InputPriceData!D$15,CalculationsAndCharts!$A48+$A$11,IF($C$7,8,0),1,1) -> 101 | F48: =OFFSET(InputPriceData!E$15,CalculationsAndCharts!$A48+$A$11,IF($C$7,8,0),1,1) -> 100.25 | G48: =OFFSET(InputPriceData!F$15,CalculationsAndCharts!$A48+$A$11,IF($C$7,8,0),1,1) -> 100.25 | J48: 16 | K48: 2014-04-29 | L48: 7444500 | M48: 100.98 | N48: 100.53 | O48: 99.65 | P48: 100.53 | Q48: 2
A49: 17 | B49: =OFFSET(InputPriceData!B$15,CalculationsAndCharts!$A49+$A$11,0,1,1) -> 2014-04-16 | C49: =OFFSET(InputPriceData!G$15,CalculationsAndCharts!$A49+$A$11,IF($C$7,8,0),1,1) -> 3532700 | D49: =OFFSET(InputPriceData!C$15,CalculationsAndCharts!$A49+$A$11,IF($C$7,8,0),1,1) -> 101 | E49: =OFFSET(InputPriceData!D$15,CalculationsAndCharts!$A49+$A$11,IF($C$7,8,0),1,1) -> 101.12 | F49: =OFFSET(InputPriceData!E$15,CalculationsAndCharts!$A49+$A$11,IF($C$7,8,0),1,1) -> 100.49 | G49: =OFFSET(InputPriceData!F$15,CalculationsAndCharts!$A49+$A$11,IF($C$7,8,0),1,1) -> 100.83 | J49: 17 | K49: 2014-04-25 | L49: 0 | M49: 100.13 | N49: 100.33 | O49: 100.13 | P49: 100.33 | Q49: 0
A50: 18 | B50: =OFFSET(InputPriceData!B$15,CalculationsAndCharts!$A50+$A$11,0,1,1) -> 2014-04-15 | C50: =OFFSET(InputPriceData!G$15,CalculationsAndCharts!$A50+$A$11,IF($C$7,8,0),1,1) -> 5882400 | D50: =OFFSET(InputPriceData!C$15,CalculationsAndCharts!$A50+$A$11,IF($C$7,8,0),1,1) -> 100.7 | E50: =OFFSET(InputPriceData!D$15,CalculationsAndCharts!$A50+$A$11,IF($C$7,8,0),1,1) -> 100.94 | F50: =OFFSET(InputPriceData!E$15,CalculationsAndCharts!$A50+$A$11,IF($C$7,8,0),1,1) -> 100.07 | G50: =OFFSET(InputPriceData!F$15,CalculationsAndCharts!$A50+$A$11,IF($C$7,8,0),1,1) -> 100.83 | J50: 18 | K50: 2014-04-25 | L50: 0 | M50: 99.93 | N50: 100.13 | O50: 99.93 | P50: 100.13 | Q50: 0
A51: 19 | B51: =OFFSET(InputPriceData!B$15,CalculationsAndCharts!$A51+$A$11,0,1,1) -> 2014-04-14 | C51: =OFFSET(InputPriceData!G$15,CalculationsAndCharts!$A51+$A$11,IF($C$7,8,0),1,1) -> 6155900 | D51: =OFFSET(InputPriceData!C$15,CalculationsAndCharts!$A51+$A$11,IF($C$7,8,0),1,1) -> 99.66 | E51: =OFFSET(InputPriceData!D$15,CalculationsAndCharts!$A51+$A$11,IF($C$7,8,0),1,1) -> 100.16 | F51: =OFFSET(InputPriceData!E$15,CalculationsAndCharts!$A51+$A$11,IF($C$7,8,0),1,1) -> 99.32 | G51: =OFFSET(InputPriceData!F$15,CalculationsAndCharts!$A51+$A$11,IF($C$7,8,0),1,1) -> 100.11 | J51: 19 | K51: 2014-04-25 | L51: 4764900 | M51: 99.73 | N51: 99.93 | O51: 99.73 | P51: 99.93 | Q51: 1
A52: 20 | B52: =OFFSET(InputPriceData!B$15,CalculationsAndCharts!$A52+$A$11,0,1,1) -> 2014-04-11 | C52: =OFFSET(InputPriceData!G$15,CalculationsAndCharts!$A52+$A$11,IF($C$7,8,0),1,1) -> 6553600 | D52: =OFFSET(InputPriceData!C$15,CalculationsAndCharts!$A52+$A$11,IF($C$7,8,0),1,1) -> 99.15 | E52: =OFFSET(InputPriceData!D$15,CalculationsAndCharts!$A52+$A$11,IF($C$7,8,0),1,1) -> 99.73 | F52: =OFFSET(InputPriceData!E$15,CalculationsAndCharts!$A52+$A$11,IF($C$7,8,0),1,1) -> 99.06 | G52: =OFFSET(InputPriceData!F$15,CalculationsAndCharts!$A52+$A$11,IF($C$7,8,0),1,1) -> 99.29 | J52: 20 | K52: 2014-04-24 | L52: 0 | M52: 99.33 | N52: 99.73 | O52: 99.13 | P52: 99.73 | Q52: 1
A53: 21 | B53: =OFFSET(InputPriceData!B$15,CalculationsAndCharts!$A53+$A$11,0,1,1) -> 2014-04-10 | C53: =OFFSET(InputPriceData!G$15,CalculationsAndCharts!$A53+$A$11,IF($C$7,8,0),1,1) -> 8873000 | D53: =OFFSET(InputPriceData!C$15,CalculationsAndCharts!$A53+$A$11,IF($C$7,8,0),1,1) -> 98.55 | E53: =OFFSET(InputPriceData!D$15,CalculationsAndCharts!$A53+$A$11,IF($C$7,8,0),1,1) -> 99.85 | F53: =OFFSET(InputPriceData!E$15,CalculationsAndCharts!$A53+$A$11,IF($C$7,8,0),1,1) -> 98.16 | G53: =OFFSET(InputPriceData!F$15,CalculationsAndCharts!$A53+$A$11,IF($C$7,8,0),1,1) -> 99.43 | J53: 21 | K53: 2014-04-23 | L53: 0 | M53: 99.53 | N53: 99.53 | O53: 99.33 | P53: 99.33 | Q53: 1
A54: 22 | B54: =OFFSET(InputPriceData!B$15,CalculationsAndCharts!$A54+$A$11,0,1,1) -> 2014-04-09 | C54: =OFFSET(InputPriceData!G$15,CalculationsAndCharts!$A54+$A$11,IF($C$7,8,0),1,1) -> 3669500 | D54: =OFFSET(InputPriceData!C$15,CalculationsAndCharts!$A54+$A$11,IF($C$7,8,0),1,1) -> 98.08 | E54: =OFFSET(InputPriceData!D$15,CalculationsAndCharts!$A54+$A$11,IF($C$7,8,0),1,1) -> 98.54 | F54: =OFFSET(InputPriceData!E$15,CalculationsAndCharts!$A54+$A$11,IF($C$7,8,0),1,1) -> 97.9 | G54: =OFFSET(InputPriceData!F$15,CalculationsAndCharts!$A54+$A$11,IF($C$7,8,0),1,1) -> 98.35 | J54: 22 | K54: 2014-04-22 | L54: 0 | M54: 99.73 | N54: 99.73 | O54: 99.53 | P54: 99.53 | Q54: 0
A55: 23 | B55: =OFFSET(InputPriceData!B$15,CalculationsAndCharts!$A55+$A$11,0,1,1) -> 2014-04-08 | C55: =OFFSET(InputPriceData!G$15,CalculationsAndCharts!$A55+$A$11,IF($C$7,8,0),1,1) -> 5579500 | D55: =OFFSET(InputPriceData!C$15,CalculationsAndCharts!$A55+$A$11,IF($C$7,8,0),1,1) -> 96.98 | E55: =OFFSET(InputPriceData!D$15,CalculationsAndCharts!$A55+$A$11,IF($C$7,8,0),1,1) -> 98.22 | F55: =OFFSET(InputPriceData!E$15,CalculationsAndCharts!$A55+$A$11,IF($C$7,8,0),1,1) -> 96.52 | G55: =OFFSET(InputPriceData!F$15,CalculationsAndCharts!$A55+$A$11,IF($C$7,8,0),1,1) -> 98.08 | J55: 23 | K55: 2014-04-22 | L55: 0 | M55: 99.93 | N55: 99.93 | O55: 99.73 | P55: 99.73 | Q55: 1
A56: 24 | B56: =OFFSET(InputPriceData!B$15,CalculationsAndCharts!$A56+$A$11,0,1,1) -> 2014-04-07 | C56: =OFFSET(InputPriceData!G$15,CalculationsAndCharts!$A56+$A$11,IF($C$7,8,0),1,1) -> 5994600 | D56: =OFFSET(InputPriceData!C$15,CalculationsAndCharts!$A56+$A$11,IF($C$7,8,0),1,1) -> 97.58 | E56: =OFFSET(InputPriceData!D$15,CalculationsAndCharts!$A56+$A$11,IF($C$7,8,0),1,1) -> 98.24 | F56: =OFFSET(InputPriceData!E$15,CalculationsAndCharts!$A56+$A$11,IF($C$7,8,0),1,1) -> 96.57 | G56: =OFFSET(InputPriceData!F$15,CalculationsAndCharts!$A56+$A$11,IF($C$7,8,0),1,1) -> 97.01 | J56: 24 | K56: 2014-04-21 | L56: 0 | M56: 100.13 | N56: 100.13 | O56: 99.93 | P56: 99.93 | Q56: 0
A57: 25 | B57: =OFFSET(InputPriceData!B$15,CalculationsAndCharts!$A57+$A$11,0,1,1) -> 2014-04-04 | C57: =OFFSET(InputPriceData!G$15,CalculationsAndCharts!$A57+$A$11,IF($C$7,8,0),1,1) -> 5409000 | D57: =OFFSET(InputPriceData!C$15,CalculationsAndCharts!$A57+$A$11,IF($C$7,8,0),1,1) -> 97.77 | E57: =OFFSET(InputPriceData!D$15,CalculationsAndCharts!$A57+$A$11,IF($C$7,8,0),1,1) -> 98.42 | F57: =OFFSET(InputPriceData!E$15,CalculationsAndCharts!$A57+$A$11,IF($C$7,8,0),1,1) -> 97.39 | G57: =OFFSET(InputPriceData!F$15,CalculationsAndCharts!$A57+$A$11,IF($C$7,8,0),1,1) -> 97.87 | J57: 25 | K57: 2014-04-21 | L57: 4545200 | M57: 100.33 | N57: 100.33 | O57: 100.13 | P57: 100.13 | Q57: 1
A58: 26 | B58: =OFFSET(InputPriceData!B$15,CalculationsAndCharts!$A58+$A$11,0,1,1) -> 2014-04-03 | C58: =OFFSET(InputPriceData!G$15,CalculationsAndCharts!$A58+$A$11,IF($C$7,8,0),1,1) -> 2575700 | D58: =OFFSET(InputPriceData!C$15,CalculationsAndCharts!$A58+$A$11,IF($C$7,8,0),1,1) -> 98.03 | E58: =OFFSET(InputPriceData!D$15,CalculationsAndCharts!$A58+$A$11,IF($C$7,8,0),1,1) -> 98.11 | F58: =OFFSET(InputPriceData!E$15,CalculationsAndCharts!$A58+$A$11,IF($C$7,8,0),1,1) -> 97.35 | G58: =OFFSET(InputPriceData!F$15,CalculationsAndCharts!$A58+$A$11,IF($C$7,8,0),1,1) -> 97.66 | J58: 26 | K58: 2014-04-17 | L58: 3532700 | M58: 100.73 | N58: 100.83 | O58: 100.33 | P58: 100.33 | Q58: 1
A59: 27 | B59: =OFFSET(InputPriceData!B$15,CalculationsAndCharts!$A59+$A$11,0,1,1) -> 2014-04-02 | C59: =OFFSET(InputPriceData!G$15,CalculationsAndCharts!$A59+$A$11,IF($C$7,8,0),1,1) -> 3701200 | D59: =OFFSET(InputPriceData!C$15,CalculationsAndCharts!$A59+$A$11,IF($C$7,8,0),1,1) -> 98.15 | E59: =OFFSET(InputPriceData!D$15,CalculationsAndCharts!$A59+$A$11,IF($C$7,8,0),1,1) -> 98.23 | F59: =OFFSET(InputPriceData!E$15,CalculationsAndCharts!$A59+$A$11,IF($C$7,8,0),1,1) -> 97.34 | G59: =OFFSET(InputPriceData!F$15,CalculationsAndCharts!$A59+$A$11,IF($C$7,8,0),1,1) -> 97.59 | J59: 27 | K59: 2014-04-16 | L59: 0 | M59: 100.53 | N59: 100.73 | O59: 100.53 | P59: 100.73 | Q59: 1
A60: 28 | B60: =OFFSET(InputPriceData!B$15,CalculationsAndCharts!$A60+$A$11,0,1,1) -> 2014-04-01 | C60: =OFFSET(InputPriceData!G$15,CalculationsAndCharts!$A60+$A$11,IF($C$7,8,0),1,1) -> 4494000 | D60: =OFFSET(InputPriceData!C$15,CalculationsAndCharts!$A60+$A$11,IF($C$7,8,0),1,1) -> 98.1 | E60: =OFFSET(InputPriceData!D$15,CalculationsAndCharts!$A60+$A$11,IF($C$7,8,0),1,1) -> 98.52 | F60: =OFFSET(InputPriceData!E$15,CalculationsAndCharts!$A60+$A$11,IF($C$7,8,0),1,1) -> 97.63 | G60: =OFFSET(InputPriceData!F$15,CalculationsAndCharts!$A60+$A$11,IF($C$7,8,0),1,1) -> 97.9 | J60: 28 | K60: 2014-04-15 | L60: 0 | M60: 100.33 | N60: 100.53 | O60: 100.33 | P60: 100.53 | Q60: 0
A61: 29 | B61: =OFFSET(InputPriceData!B$15,CalculationsAndCharts!$A61+$A$11,0,1,1) -> 2014-03-31 | C61: =OFFSET(InputPriceData!G$15,CalculationsAndCharts!$A61+$A$11,IF($C$7,8,0),1,1) -> 4853300 | D61: =OFFSET(InputPriceData!C$15,CalculationsAndCharts!$A61+$A$11,IF($C$7,8,0),1,1) -> 97.44 | E61: =OFFSET(InputPriceData!D$15,CalculationsAndCharts!$A61+$A$11,IF($C$7,8,0),1,1) -> 98.45 | F61: =OFFSET(InputPriceData!E$15,CalculationsAndCharts!$A61+$A$11,IF($C$7,8,0),1,1) -> 97.3 | G61: =OFFSET(InputPriceData!F$15,CalculationsAndCharts!$A61+$A$11,IF($C$7,8,0),1,1) -> 98.03 | J61: 29 | K61: 2014-04-15 | L61: 0 | M61: 100.13 | N61: 100.33 | O61: 100.13 | P61: 100.33 | Q61: 0
A62: 30 | B62: =OFFSET(InputPriceData!B$15,CalculationsAndCharts!$A62+$A$11,0,1,1) -> 2014-03-28 | C62: =OFFSET(InputPriceData!G$15,CalculationsAndCharts!$A62+$A$11,IF($C$7,8,0),1,1) -> 4344100 | D62: =OFFSET(InputPriceData!C$15,CalculationsAndCharts!$A62+$A$11,IF($C$7,8,0),1,1) -> 96.27 | E62: =OFFSET(InputPriceData!D$15,CalculationsAndCharts!$A62+$A$11,IF($C$7,8,0),1,1) -> 97.44 | F62: =OFFSET(InputPriceData!E$15,CalculationsAndCharts!$A62+$A$11,IF($C$7,8,0),1,1) -> 96.21 | G62: =OFFSET(InputPriceData!F$15,CalculationsAndCharts!$A62+$A$11,IF($C$7,8,0),1,1) -> 97.24 | J62: 30 | K62: 2014-04-15 | L62: 0 | M62: 99.93 | N62: 100.13 | O62: 99.93 | P62: 100.13 | Q62: 0
A63: 31 | B63: =OFFSET(InputPriceData!B$15,CalculationsAndCharts!$A63+$A$11,0,1,1) -> 2014-03-27 | C63: =OFFSET(InputPriceData!G$15,CalculationsAndCharts!$A63+$A$11,IF($C$7,8,0),1,1) -> 3756000 | D63: =OFFSET(InputPriceData!C$15,CalculationsAndCharts!$A63+$A$11,IF($C$7,8,0),1,1) -> 95.77 | E63: =OFFSET(InputPriceData!D$15,CalculationsAndCharts!$A63+$A$11,IF($C$7,8,0),1,1) -> 96.36 | F63: =OFFSET(InputPriceData!E$15,CalculationsAndCharts!$A63+$A$11,IF($C$7,8,0),1,1) -> 95.52 | G63: =OFFSET(InputPriceData!F$15,CalculationsAndCharts!$A63+$A$11,IF($C$7,8,0),1,1) -> 96.16 | J63: 31 | K63: 2014-04-15 | L63: 0 | M63: 99.73 | N63: 99.93 | O63: 99.73 | P63: 99.93 | Q63: 1
A64: 32 | B64: =OFFSET(InputPriceData!B$15,CalculationsAndCharts!$A64+$A$11,0,1,1) -> 2014-03-26 | C64: =OFFSET(InputPriceData!G$15,CalculationsAndCharts!$A64+$A$11,IF($C$7,8,0),1,1) -> 4127000 | D64: =OFFSET(InputPriceData!C$15,CalculationsAndCharts!$A64+$A$11,IF($C$7,8,0),1,1) -> 96.04 | E64: =OFFSET(InputPriceData!D$15,CalculationsAndCharts!$A64+$A$11,IF($C$7,8,0),1,1) -> 96.57 | F64: =OFFSET(InputPriceData!E$15,CalculationsAndCharts!$A64+$A$11,IF($C$7,8,0),1,1) -> 95.84 | G64: =OFFSET(InputPriceData!F$15,CalculationsAndCharts!$A64+$A$11,IF($C$7,8,0),1,1) -> 95.84 | J64: 32 | K64: 2014-04-14 | L64: 0 | M64: 99.53 | N64: 99.73 | O64: 99.53 | P64: 99.73 | Q64: 0
A65: 33 | B65: =OFFSET(InputPriceData!B$15,CalculationsAndCharts!$A65+$A$11,0,1,1) -> 2014-03-25 | C65: =OFFSET(InputPriceData!G$15,CalculationsAndCharts!$A65+$A$11,IF($C$7,8,0),1,1) -> 4929800 | D65: =OFFSET(InputPriceData!C$15,CalculationsAndCharts!$A65+$A$11,IF($C$7,8,0),1,1) -> 96.44 | E65: =OFFSET(InputPriceData!D$15,CalculationsAndCharts!$A65+$A$11,IF($C$7,8,0),1,1) -> 96.49 | F65: =OFFSET(InputPriceData!E$15,CalculationsAndCharts!$A65+$A$11,IF($C$7,8,0),1,1) -> 95.83 | G65: =OFFSET(InputPriceData!F$15,CalculationsAndCharts!$A65+$A$11,IF($C$7,8,0),1,1) -> 95.91 | J65: 33 | K65: 2014-04-14 | L65: 0 | M65: 99.33 | N65: 99.53 | O65: 99.33 | P65: 99.53 | Q65: 0
A66: 34 | B66: =OFFSET(InputPriceData!B$15,CalculationsAndCharts!$A66+$A$11,0,1,1) -> 2014-03-24 | C66: =OFFSET(InputPriceData!G$15,CalculationsAndCharts!$A66+$A$11,IF($C$7,8,0),1,1) -> 6393000 | D66: =OFFSET(InputPriceData!C$15,CalculationsAndCharts!$A66+$A$11,IF($C$7,8,0),1,1) -> 96.09 | E66: =OFFSET(InputPriceData!D$15,CalculationsAndCharts!$A66+$A$11,IF($C$7,8,0),1,1) -> 96.74 | F66: =OFFSET(InputPriceData!E$15,CalculationsAndCharts!$A66+$A$11,IF($C$7,8,0),1,1) -> 95.99 | G66: =OFFSET(InputPriceData!F$15,CalculationsAndCharts!$A66+$A$11,IF($C$7,8,0),1,1) -> 96.18 | J66: 34 | K66: 2014-04-14 | L66: 6553600 | M66: 99.15 | N66: 99.33 | O66: 99.06 | P66: 99.33 | Q66: 2
A67: 35 | B67: =OFFSET(InputPriceData!B$15,CalculationsAndCharts!$A67+$A$11,0,1,1) -> 2014-03-21 | C67: =OFFSET(InputPriceData!G$15,CalculationsAndCharts!$A67+$A$11,IF($C$7,8,0),1,1) -> 12625800 | D67: =OFFSET(InputPriceData!C$15,CalculationsAndCharts!$A67+$A$11,IF($C$7,8,0),1,1) -> 97.22 | E67: =OFFSET(InputPriceData!D$15,CalculationsAndCharts!$A67+$A$11,IF($C$7,8,0),1,1) -> 97.4 | F67: =OFFSET(InputPriceData!E$15,CalculationsAndCharts!$A67+$A$11,IF($C$7,8,0),1,1) -> 95.47 | G67: =OFFSET(InputPriceData!F$15,CalculationsAndCharts!$A67+$A$11,IF($C$7,8,0),1,1) -> 95.47 | J67: 35 | K67: 2014-04-10 | L67: 0 | M67: 98.93 | N67: 99.13 | O67: 98.93 | P67: 99.13 | Q67: 0
A68: 36 | B68: =OFFSET(InputPriceData!B$15,CalculationsAndCharts!$A68+$A$11,0,1,1) -> 2014-03-20 | C68: =OFFSET(InputPriceData!G$15,CalculationsAndCharts!$A68+$A$11,IF($C$7,8,0),1,1) -> 4242600 | D68: =OFFSET(InputPriceData!C$15,CalculationsAndCharts!$A68+$A$11,IF($C$7,8,0),1,1) -> 95.94 | E68: =OFFSET(InputPriceData!D$15,CalculationsAndCharts!$A68+$A$11,IF($C$7,8,0),1,1) -> 96.95 | F68: =OFFSET(InputPriceData!E$15,CalculationsAndCharts!$A68+$A$11,IF($C$7,8,0),1,1) -> 95.81 | G68: =OFFSET(InputPriceData!F$15,CalculationsAndCharts!$A68+$A$11,IF($C$7,8,0),1,1) -> 96.6 | J68: 36 | K68: 2014-04-10 | L68: 0 | M68: 98.73 | N68: 98.93 | O68: 98.73 | P68: 98.93 | Q68: 0
A69: 37 | B69: =OFFSET(InputPriceData!B$15,CalculationsAndCharts!$A69+$A$11,0,1,1) -> 2014-03-19 | C69: =OFFSET(InputPriceData!G$15,CalculationsAndCharts!$A69+$A$11,IF($C$7,8,0),1,1) -> 5556900 | D69: =OFFSET(InputPriceData!C$15,CalculationsAndCharts!$A69+$A$11,IF($C$7,8,0),1,1) -> 97.27 | E69: =OFFSET(InputPriceData!D$15,CalculationsAndCharts!$A69+$A$11,IF($C$7,8,0),1,1) -> 97.29 | F69: =OFFSET(InputPriceData!E$15,CalculationsAndCharts!$A69+$A$11,IF($C$7,8,0),1,1) -> 95.78 | G69: =OFFSET(InputPriceData!F$15,CalculationsAndCharts!$A69+$A$11,IF($C$7,8,0),1,1) -> 96.1 | J69: 37 | K69: 2014-04-10 | L69: 0 | M69: 98.53 | N69: 98.73 | O69: 98.53 | P69: 98.73 | Q69: 0
A70: 38 | B70: =OFFSET(InputPriceData!B$15,CalculationsAndCharts!$A70+$A$11,0,1,1) -> 2014-03-18 | C70: =OFFSET(InputPriceData!G$15,CalculationsAndCharts!$A70+$A$11,IF($C$7,8,0),1,1) -> 3269500 | D70: =OFFSET(InputPriceData!C$15,CalculationsAndCharts!$A70+$A$11,IF($C$7,8,0),1,1) -> 97.8 | E70: =OFFSET(InputPriceData!D$15,CalculationsAndCharts!$A70+$A$11,IF($C$7,8,0),1,1) -> 97.99 | F70: =OFFSET(InputPriceData!E$15,CalculationsAndCharts!$A70+$A$11,IF($C$7,8,0),1,1) -> 97.22 | G70: =OFFSET(InputPriceData!F$15,CalculationsAndCharts!$A70+$A$11,IF($C$7,8,0),1,1) -> 97.31 | J70: 38 | K70: 2014-04-10 | L70: 0 | M70: 98.33 | N70: 98.53 | O70: 98.33 | P70: 98.53 | Q70: 0
A71: 39 | B71: =OFFSET(InputPriceData!B$15,CalculationsAndCharts!$A71+$A$11,0,1,1) -> 2014-03-17 | C71: =OFFSET(InputPriceData!G$15,CalculationsAndCharts!$A71+$A$11,IF($C$7,8,0),1,1) -> 5554300 | D71: =OFFSET(InputPriceData!C$15,CalculationsAndCharts!$A71+$A$11,IF($C$7,8,0),1,1) -> 98.14 | E71: =OFFSET(InputPriceData!D$15,CalculationsAndCharts!$A71+$A$11,IF($C$7,8,0),1,1) -> 98.2 | F71: =OFFSET(InputPriceData!E$15,CalculationsAndCharts!$A71+$A$11,IF($C$7,8,0),1,1) -> 97.46 | G71: =OFFSET(InputPriceData!F$15,CalculationsAndCharts!$A71+$A$11,IF($C$7,8,0),1,1) -> 97.6 | J71: 39 | K71: 2014-04-10 | L71: 0 | M71: 98.13 | N71: 98.33 | O71: 98.13 | P71: 98.33 | Q71: 1
A72: 40 | B72: =OFFSET(InputPriceData!B$15,CalculationsAndCharts!$A72+$A$11,0,1,1) -> 2014-03-14 | C72: =OFFSET(InputPriceData!G$15,CalculationsAndCharts!$A72+$A$11,IF($C$7,8,0),1,1) -> 5510700 | D72: =OFFSET(InputPriceData!C$15,CalculationsAndCharts!$A72+$A$11,IF($C$7,8,0),1,1) -> 97.33 | E72: =OFFSET(InputPriceData!D$15,CalculationsAndCharts!$A72+$A$11,IF($C$7,8,0),1,1) -> 97.89 | F72: =OFFSET(InputPriceData!E$15,CalculationsAndCharts!$A72+$A$11,IF($C$7,8,0),1,1) -> 97.01 | G72: =OFFSET(InputPriceData!F$15,CalculationsAndCharts!$A72+$A$11,IF($C$7,8,0),1,1) -> 97.58 | J72: 40 | K72: 2014-04-09 | L72: 0 | M72: 97.93 | N72: 98.13 | O72: 97.93 | P72: 98.13 | Q72: 0
A73: 41 | B73: =OFFSET(InputPriceData!B$15,CalculationsAndCharts!$A73+$A$11,0,1,1) -> 2014-03-13 | C73: =OFFSET(InputPriceData!G$15,CalculationsAndCharts!$A73+$A$11,IF($C$7,8,0),1,1) -> 5480200 | D73: =OFFSET(InputPriceData!C$15,CalculationsAndCharts!$A73+$A$11,IF($C$7,8,0),1,1) -> 98.9 | E73: =OFFSET(InputPriceData!D$15,CalculationsAndCharts!$A73+$A$11,IF($C$7,8,0),1,1) -> 98.9 | F73: =OFFSET(InputPriceData!E$15,CalculationsAndCharts!$A73+$A$11,IF($C$7,8,0),1,1) -> 97.01 | G73: =OFFSET(InputPriceData!F$15,CalculationsAndCharts!$A73+$A$11,IF($C$7,8,0),1,1) -> 97.37 | J73: 41 | K73: 2014-04-09 | L73: 0 | M73: 97.73 | N73: 97.93 | O73: 97.73 | P73: 97.93 | Q73: 1
A74: 42 | B74: =OFFSET(InputPriceData!B$15,CalculationsAndCharts!$A74+$A$11,0,1,1) -> 2014-03-12 | C74: =OFFSET(InputPriceData!G$15,CalculationsAndCharts!$A74+$A$11,IF($C$7,8,0),1,1) -> 6701700 | D74: =OFFSET(InputPriceData!C$15,CalculationsAndCharts!$A74+$A$11,IF($C$7,8,0),1,1) -> 98.41 | E74: =OFFSET(InputPriceData!D$15,CalculationsAndCharts!$A74+$A$11,IF($C$7,8,0),1,1) -> 99.07 | F74: =OFFSET(InputPriceData!E$15,CalculationsAndCharts!$A74+$A$11,IF($C$7,8,0),1,1) -> 98.15 | G74: =OFFSET(InputPriceData!F$15,CalculationsAndCharts!$A74+$A$11,IF($C$7,8,0),1,1) -> 98.71 | J74: 42 | K74: 2014-04-08 | L74: 0 | M74: 97.33 | N74: 97.73 | O74: 97.13 | P74: 97.73 | Q74: 1
A75: 43 | B75: =OFFSET(InputPriceData!B$15,CalculationsAndCharts!$A75+$A$11,0,1,1) -> 2014-03-11 | C75: =OFFSET(InputPriceData!G$15,CalculationsAndCharts!$A75+$A$11,IF($C$7,8,0),1,1) -> 16354400 | D75: =OFFSET(InputPriceData!C$15,CalculationsAndCharts!$A75+$A$11,IF($C$7,8,0),1,1) -> 95.94 | E75: =OFFSET(InputPriceData!D$15,CalculationsAndCharts!$A75+$A$11,IF($C$7,8,0),1,1) -> 98.92 | F75: =OFFSET(InputPriceData!E$15,CalculationsAndCharts!$A75+$A$11,IF($C$7,8,0),1,1) -> 95.71 | G75: =OFFSET(InputPriceData!F$15,CalculationsAndCharts!$A75+$A$11,IF($C$7,8,0),1,1) -> 98.78 | J75: 43 | K75: 2014-04-07 | L75: 16179900 | M75: 97.77 | N75: 98.42 | O75: 97.33 | P75: 97.33 | Q75: 5
A76: 44 | B76: =OFFSET(InputPriceData!B$15,CalculationsAndCharts!$A76+$A$11,0,1,1) -> 2014-03-10 | C76: =OFFSET(InputPriceData!G$15,CalculationsAndCharts!$A76+$A$11,IF($C$7,8,0),1,1) -> 4388900 | D76: =OFFSET(InputPriceData!C$15,CalculationsAndCharts!$A76+$A$11,IF($C$7,8,0),1,1) -> 95.26 | E76: =OFFSET(InputPriceData!D$15,CalculationsAndCharts!$A76+$A$11,IF($C$7,8,0),1,1) -> 95.68 | F76: =OFFSET(InputPriceData!E$15,CalculationsAndCharts!$A76+$A$11,IF($C$7,8,0),1,1) -> 94.97 | G76: =OFFSET(InputPriceData!F$15,CalculationsAndCharts!$A76+$A$11,IF($C$7,8,0),1,1) -> 95.2 | J76: 44 | K76: 2014-03-31 | L76: 0 | M76: 97.53 | N76: 97.73 | O76: 97.53 | P76: 97.73 | Q76: 0
A77: 45 | B77: =OFFSET(InputPriceData!B$15,CalculationsAndCharts!$A77+$A$11,0,1,1) -> 2014-03-07 | C77: =OFFSET(InputPriceData!G$15,CalculationsAndCharts!$A77+$A$11,IF($C$7,8,0),1,1) -> 3724000 | D77: =OFFSET(InputPriceData!C$15,CalculationsAndCharts!$A77+$A$11,IF($C$7,8,0),1,1) -> 95.74 | E77: =OFFSET(InputPriceData!D$15,CalculationsAndCharts!$A77+$A$11,IF($C$7,8,0),1,1) -> 95.79 | F77: =OFFSET(InputPriceData!E$15,CalculationsAndCharts!$A77+$A$11,IF($C$7,8,0),1,1) -> 94.97 | G77: =OFFSET(InputPriceData!F$15,CalculationsAndCharts!$A77+$A$11,IF($C$7,8,0),1,1) -> 95.5 | J77: 45 | K77: 2014-03-31 | L77: 0 | M77: 97.33 | N77: 97.53 | O77: 97.33 | P77: 97.53 | Q77: 0
A78: 46 | B78: =OFFSET(InputPriceData!B$15,CalculationsAndCharts!$A78+$A$11,0,1,1) -> 2014-03-06 | C78: =OFFSET(InputPriceData!G$15,CalculationsAndCharts!$A78+$A$11,IF($C$7,8,0),1,1) -> 4362900 | D78: =OFFSET(InputPriceData!C$15,CalculationsAndCharts!$A78+$A$11,IF($C$7,8,0),1,1) -> 95.06 | E78: =OFFSET(InputPriceData!D$15,CalculationsAndCharts!$A78+$A$11,IF($C$7,8,0),1,1) -> 95.67 | F78: =OFFSET(InputPriceData!E$15,CalculationsAndCharts!$A78+$A$11,IF($C$7,8,0),1,1) -> 94.75 | G78: =OFFSET(InputPriceData!F$15,CalculationsAndCharts!$A78+$A$11,IF($C$7,8,0),1,1) -> 95.58 | J78: 46 | K78: 2014-03-31 | L78: 0 | M78: 97.13 | N78: 97.33 | O78: 97.13 | P78: 97.33 | Q78: 0
A79: 47 | B79: =OFFSET(InputPriceData!B$15,CalculationsAndCharts!$A79+$A$11,0,1,1) -> 2014-03-05 | C79: =OFFSET(InputPriceData!G$15,CalculationsAndCharts!$A79+$A$11,IF($C$7,8,0),1,1) -> 3913300 | D79: =OFFSET(InputPriceData!C$15,CalculationsAndCharts!$A79+$A$11,IF($C$7,8,0),1,1) -> 95.34 | E79: =OFFSET(InputPriceData!D$15,CalculationsAndCharts!$A79+$A$11,IF($C$7,8,0),1,1) -> 95.61 | F79: =OFFSET(InputPriceData!E$15,CalculationsAndCharts!$A79+$A$11,IF($C$7,8,0),1,1) -> 94.94 | G79: =OFFSET(InputPriceData!F$15,CalculationsAndCharts!$A79+$A$11,IF($C$7,8,0),1,1) -> 95.02 | J79: 47 | K79: 2014-03-31 | L79: 0 | M79: 96.93 | N79: 97.13 | O79: 96.93 | P79: 97.13 | Q79: 1
A80: 48 | B80: =OFFSET(InputPriceData!B$15,CalculationsAndCharts!$A80+$A$11,0,1,1) -> 2014-03-04 | C80: =OFFSET(InputPriceData!G$15,CalculationsAndCharts!$A80+$A$11,IF($C$7,8,0),1,1) -> 4655200 | D80: =OFFSET(InputPriceData!C$15,CalculationsAndCharts!$A80+$A$11,IF($C$7,8,0),1,1) -> 95.25 | E80: =OFFSET(InputPriceData!D$15,CalculationsAndCharts!$A80+$A$11,IF($C$7,8,0),1,1) -> 95.27 | F80: =OFFSET(InputPriceData!E$15,CalculationsAndCharts!$A80+$A$11,IF($C$7,8,0),1,1) -> 94.86 | G80: =OFFSET(InputPriceData!F$15,CalculationsAndCharts!$A80+$A$11,IF($C$7,8,0),1,1) -> 94.98 | J80: 48 | K80: 2014-03-28 | L80: 0 | M80: 96.73 | N80: 96.93 | O80: 96.73 | P80: 96.93 | Q80: 0
A81: 49 | B81: =OFFSET(InputPriceData!B$15,CalculationsAndCharts!$A81+$A$11,0,1,1) -> 2014-03-03 | C81: =OFFSET(InputPriceData!G$15,CalculationsAndCharts!$A81+$A$11,IF($C$7,8,0),1,1) -> 5149300 | D81: =OFFSET(InputPriceData!C$15,CalculationsAndCharts!$A81+$A$11,IF($C$7,8,0),1,1) -> 94.24 | E81: =OFFSET(InputPriceData!D$15,CalculationsAndCharts!$A81+$A$11,IF($C$7,8,0),1,1) -> 94.8 | F81: =OFFSET(InputPriceData!E$15,CalculationsAndCharts!$A81+$A$11,IF($C$7,8,0),1,1) -> 94 | G81: =OFFSET(InputPriceData!F$15,CalculationsAndCharts!$A81+$A$11,IF($C$7,8,0),1,1) -> 94.32 | J81: 49 | K81: 2014-03-28 | L81: 0 | M81: 96.53 | N81: 96.73 | O81: 96.53 | P81: 96.73 | Q81: 0
A82: 50 | B82: =OFFSET(InputPriceData!B$15,CalculationsAndCharts!$A82+$A$11,0,1,1) -> 2014-02-28 | C82: =OFFSET(InputPriceData!G$15,CalculationsAndCharts!$A82+$A$11,IF($C$7,8,0),1,1) -> 5104700 | D82: =OFFSET(InputPriceData!C$15,CalculationsAndCharts!$A82+$A$11,IF($C$7,8,0),1,1) -> 95.11 | E82: =OFFSET(InputPriceData!D$15,CalculationsAndCharts!$A82+$A$11,IF($C$7,8,0),1,1) -> 95.46 | F82: =OFFSET(InputPriceData!E$15,CalculationsAndCharts!$A82+$A$11,IF($C$7,8,0),1,1) -> 94.86 | G82: =OFFSET(InputPriceData!F$15,CalculationsAndCharts!$A82+$A$11,IF($C$7,8,0),1,1) -> 95.15 | J82: 50 | K82: 2014-03-28 | L82: 0 | M82: 96.33 | N82: 96.53 | O82: 96.33 | P82: 96.53 | Q82: 0
A83: 51 | B83: =OFFSET(InputPriceData!B$15,CalculationsAndCharts!$A83+$A$11,0,1,1) -> 2014-02-27 | C83: =OFFSET(InputPriceData!G$15,CalculationsAndCharts!$A83+$A$11,IF($C$7,8,0),1,1) -> 4179600 | D83: =OFFSET(InputPriceData!C$15,CalculationsAndCharts!$A83+$A$11,IF($C$7,8,0),1,1) -> 95.24 | E83: =OFFSET(InputPriceData!D$15,CalculationsAndCharts!$A83+$A$11,IF($C$7,8,0),1,1) -> 95.41 | F83: =OFFSET(InputPriceData!E$15,CalculationsAndCharts!$A83+$A$11,IF($C$7,8,0),1,1) -> 94.65 | G83: =OFFSET(InputPriceData!F$15,CalculationsAndCharts!$A83+$A$11,IF($C$7,8,0),1,1) -> 95.08 | J83: 51 | K83: 2014-03-28 | L83: 3756000 | M83: 96.13 | N83: 96.33 | O83: 96.13 | P83: 96.33 | Q83: 1
A84: 52 | B84: =OFFSET(InputPriceData!B$15,CalculationsAndCharts!$A84+$A$11,0,1,1) -> 2014-02-26 | C84: =OFFSET(InputPriceData!G$15,CalculationsAndCharts!$A84+$A$11,IF($C$7,8,0),1,1) -> 4265900 | D84: =OFFSET(InputPriceData!C$15,CalculationsAndCharts!$A84+$A$11,IF($C$7,8,0),1,1) -> 95.81 | E84: =OFFSET(InputPriceData!D$15,CalculationsAndCharts!$A84+$A$11,IF($C$7,8,0),1,1) -> 95.92 | F84: =OFFSET(InputPriceData!E$15,CalculationsAndCharts!$A84+$A$11,IF($C$7,8,0),1,1) -> 94.9 | G84: =OFFSET(InputPriceData!F$15,CalculationsAndCharts!$A84+$A$11,IF($C$7,8,0),1,1) -> 95.08 | J84: 52 | K84: 2014-03-27 | L84: 9056800 | M84: 96.04 | N84: 96.13 | O84: 95.84 | P84: 96.13 | Q84: 2
A85: 53 | B85: =OFFSET(InputPriceData!B$15,CalculationsAndCharts!$A85+$A$11,0,1,1) -> 2014-02-25 | C85: =OFFSET(InputPriceData!G$15,CalculationsAndCharts!$A85+$A$11,IF($C$7,8,0),1,1) -> 4233600 | D85: =OFFSET(InputPriceData!C$15,CalculationsAndCharts!$A85+$A$11,IF($C$7,8,0),1,1) -> 95.64 | E85: =OFFSET(InputPriceData!D$15,CalculationsAndCharts!$A85+$A$11,IF($C$7,8,0),1,1) -> 95.9 | F85: =OFFSET(InputPriceData!E$15,CalculationsAndCharts!$A85+$A$11,IF($C$7,8,0),1,1) -> 95.08 | G85: =OFFSET(InputPriceData!F$15,CalculationsAndCharts!$A85+$A$11,IF($C$7,8,0),1,1) -> 95.8 | J85: 53 | K85: 2014-03-25 | L85: 6393000 | M85: 96.13 | N85: 96.18 | O85: 95.73 | P85: 95.73 | Q85: 1
A86: 54 | B86: =OFFSET(InputPriceData!B$15,CalculationsAndCharts!$A86+$A$11,0,1,1) -> 2014-02-24 | C86: =OFFSET(InputPriceData!G$15,CalculationsAndCharts!$A86+$A$11,IF($C$7,8,0),1,1) -> 4472200 | D86: =OFFSET(InputPriceData!C$15,CalculationsAndCharts!$A86+$A$11,IF($C$7,8,0),1,1) -> 95.61 | E86: =OFFSET(InputPriceData!D$15,CalculationsAndCharts!$A86+$A$11,IF($C$7,8,0),1,1) -> 96.12 | F86: =OFFSET(InputPriceData!E$15,CalculationsAndCharts!$A86+$A$11,IF($C$7,8,0),1,1) -> 95.42 | G86: =OFFSET(InputPriceData!F$15,CalculationsAndCharts!$A86+$A$11,IF($C$7,8,0),1,1) -> 95.68 | J86: 54 | K86: 2014-03-24 | L86: 0 | M86: 95.73 | N86: 96.13 | O86: 95.53 | P86: 96.13 | Q86: 1
A87: 55 | B87: =OFFSET(InputPriceData!B$15,CalculationsAndCharts!$A87+$A$11,0,1,1) -> 2014-02-21 | C87: =OFFSET(InputPriceData!G$15,CalculationsAndCharts!$A87+$A$11,IF($C$7,8,0),1,1) -> 5284300 | D87: =OFFSET(InputPriceData!C$15,CalculationsAndCharts!$A87+$A$11,IF($C$7,8,0),1,1) -> 95.23 | E87: =OFFSET(InputPriceData!D$15,CalculationsAndCharts!$A87+$A$11,IF($C$7,8,0),1,1) -> 96.19 | F87: =OFFSET(InputPriceData!E$15,CalculationsAndCharts!$A87+$A$11,IF($C$7,8,0),1,1) -> 95.23 | G87: =OFFSET(InputPriceData!F$15,CalculationsAndCharts!$A87+$A$11,IF($C$7,8,0),1,1) -> 95.64 | J87: 55 | K87: 2014-03-21 | L87: 0 | M87: 95.93 | N87: 95.93 | O87: 95.73 | P87: 95.73 | Q87: 0
A88: 56 | B88: =OFFSET(InputPriceData!B$15,CalculationsAndCharts!$A88+$A$11,0,1,1) -> 2014-02-20 | C88: =OFFSET(InputPriceData!G$15,CalculationsAndCharts!$A88+$A$11,IF($C$7,8,0),1,1) -> 2975000 | D88: =OFFSET(InputPriceData!C$15,CalculationsAndCharts!$A88+$A$11,IF($C$7,8,0),1,1) -> 94.85 | E88: =OFFSET(InputPriceData!D$15,CalculationsAndCharts!$A88+$A$11,IF($C$7,8,0),1,1) -> 95.3 | F88: =OFFSET(InputPriceData!E$15,CalculationsAndCharts!$A88+$A$11,IF($C$7,8,0),1,1) -> 94.68 | G88: =OFFSET(InputPriceData!F$15,CalculationsAndCharts!$A88+$A$11,IF($C$7,8,0),1,1) -> 94.94 | J88: 56 | K88: 2014-03-21 | L88: 0 | M88: 96.13 | N88: 96.13 | O88: 95.93 | P88: 95.93 | Q88: 0
A89: 57 | B89: =OFFSET(InputPriceData!B$15,CalculationsAndCharts!$A89+$A$11,0,1,1) -> 2014-02-19 | C89: =OFFSET(InputPriceData!G$15,CalculationsAndCharts!$A89+$A$11,IF($C$7,8,0),1,1) -> 4505500 | D89: =OFFSET(InputPriceData!C$15,CalculationsAndCharts!$A89+$A$11,IF($C$7,8,0),1,1) -> 94.97 | E89: =OFFSET(InputPriceData!D$15,CalculationsAndCharts!$A89+$A$11,IF($C$7,8,0),1,1) -> 95.84 | F89: =OFFSET(InputPriceData!E$15,CalculationsAndCharts!$A89+$A$11,IF($C$7,8,0),1,1) -> 94.65 | G89: =OFFSET(InputPriceData!F$15,CalculationsAndCharts!$A89+$A$11,IF($C$7,8,0),1,1) -> 94.74 | J89: 57 | K89: 2014-03-21 | L89: 4242600 | M89: 95.94 | N89: 96.95 | O89: 96.13 | P89: 96.13 | Q89: 2
A90: 58 | B90: =OFFSET(InputPriceData!B$15,CalculationsAndCharts!$A90+$A$11,0,1,1) -> 2014-02-18 | C90: =OFFSET(InputPriceData!G$15,CalculationsAndCharts!$A90+$A$11,IF($C$7,8,0),1,1) -> 5454200 | D90: =OFFSET(InputPriceData!C$15,CalculationsAndCharts!$A90+$A$11,IF($C$7,8,0),1,1) -> 95.22 | E90: =OFFSET(InputPriceData!D$15,CalculationsAndCharts!$A90+$A$11,IF($C$7,8,0),1,1) -> 95.76 | F90: =OFFSET(InputPriceData!E$15,CalculationsAndCharts!$A90+$A$11,IF($C$7,8,0),1,1) -> 94.73 | G90: =OFFSET(InputPriceData!F$15,CalculationsAndCharts!$A90+$A$11,IF($C$7,8,0),1,1) -> 95.21 | J90: 58 | K90: 2014-03-19 | L90: 0 | M90: 96.53 | N90: 96.53 | O90: 96.33 | P90: 96.33 | Q90: 0
A91: 59 | B91: =OFFSET(InputPriceData!B$15,CalculationsAndCharts!$A91+$A$11,0,1,1) -> 2014-02-14 | C91: =OFFSET(InputPriceData!G$15,CalculationsAndCharts!$A91+$A$11,IF($C$7,8,0),1,1) -> 3532900 | D91: =OFFSET(InputPriceData!C$15,CalculationsAndCharts!$A91+$A$11,IF($C$7,8,0),1,1) -> 94.49 | E91: =OFFSET(InputPriceData!D$15,CalculationsAndCharts!$A91+$A$11,IF($C$7,8,0),1,1) -> 95.16 | F91: =OFFSET(InputPriceData!E$15,CalculationsAndCharts!$A91+$A$11,IF($C$7,8,0),1,1) -> 94.31 | G91: =OFFSET(InputPriceData!F$15,CalculationsAndCharts!$A91+$A$11,IF($C$7,8,0),1,1) -> 94.97 | J91: 59 | K91: 2014-03-19 | L91: 0 | M91: 96.73 | N91: 96.73 | O91: 96.53 | P91: 96.53 | Q91: 0
A92: 60 | B92: =OFFSET(InputPriceData!B$15,CalculationsAndCharts!$A92+$A$11,0,1,1) -> 2014-02-13 | C92: =OFFSET(InputPriceData!G$15,CalculationsAndCharts!$A92+$A$11,IF($C$7,8,0),1,1) -> 3617900 | D92: =OFFSET(InputPriceData!C$15,CalculationsAndCharts!$A92+$A$11,IF($C$7,8,0),1,1) -> 93.89 | E92: =OFFSET(InputPriceData!D$15,CalculationsAndCharts!$A92+$A$11,IF($C$7,8,0),1,1) -> 94.77 | F92: =OFFSET(InputPriceData!E$15,CalculationsAndCharts!$A92+$A$11,IF($C$7,8,0),1,1) -> 93.7 | G92: =OFFSET(InputPriceData!F$15,CalculationsAndCharts!$A92+$A$11,IF($C$7,8,0),1,1) -> 94.65 | J92: 60 | K92: 2014-03-19 | L92: 0 | M92: 96.93 | N92: 96.93 | O92: 96.73 | P92: 96.73 | Q92: 0
A93: 61 | B93: =OFFSET(InputPriceData!B$15,CalculationsAndCharts!$A93+$A$11,0,1,1) -> 2014-02-12 | C93: =OFFSET(InputPriceData!G$15,CalculationsAndCharts!$A93+$A$11,IF($C$7,8,0),1,1) -> 4268900 | D93: =OFFSET(InputPriceData!C$15,CalculationsAndCharts!$A93+$A$11,IF($C$7,8,0),1,1) -> 94.64 | E93: =OFFSET(InputPriceData!D$15,CalculationsAndCharts!$A93+$A$11,IF($C$7,8,0),1,1) -> 94.86 | F93: =OFFSET(InputPriceData!E$15,CalculationsAndCharts!$A93+$A$11,IF($C$7,8,0),1,1) -> 93.99 | G93: =OFFSET(InputPriceData!F$15,CalculationsAndCharts!$A93+$A$11,IF($C$7,8,0),1,1) -> 94.09 | J93: 61 | K93: 2014-03-19 | L93: 0 | M93: 97.13 | N93: 97.13 | O93: 96.93 | P93: 96.93 | Q93: 0
A94: 62 | B94: =OFFSET(InputPriceData!B$15,CalculationsAndCharts!$A94+$A$11,0,1,1) -> 2014-02-11 | C94: =OFFSET(InputPriceData!G$15,CalculationsAndCharts!$A94+$A$11,IF($C$7,8,0),1,1) -> 5343500 | D94: =OFFSET(InputPriceData!C$15,CalculationsAndCharts!$A94+$A$11,IF($C$7,8,0),1,1) -> 94.25 | E94: =OFFSET(InputPriceData!D$15,CalculationsAndCharts!$A94+$A$11,IF($C$7,8,0),1,1) -> 95.03 | F94: =OFFSET(InputPriceData!E$15,CalculationsAndCharts!$A94+$A$11,IF($C$7,8,0),1,1) -> 94.02 | G94: =OFFSET(InputPriceData!F$15,CalculationsAndCharts!$A94+$A$11,IF($C$7,8,0),1,1) -> 94.53 | J94: 62 | K94: 2014-03-19 | L94: 3269500 | M94: 97.33 | N94: 97.33 | O94: 97.13 | P94: 97.13 | Q94: 1
A95: 63 | B95: =OFFSET(InputPriceData!B$15,CalculationsAndCharts!$A95+$A$11,0,1,1) -> 2014-02-10 | C95: =OFFSET(InputPriceData!G$15,CalculationsAndCharts!$A95+$A$11,IF($C$7,8,0),1,1) -> 6968200 | D95: =OFFSET(InputPriceData!C$15,CalculationsAndCharts!$A95+$A$11,IF($C$7,8,0),1,1) -> 94.94 | E95: =OFFSET(InputPriceData!D$15,CalculationsAndCharts!$A95+$A$11,IF($C$7,8,0),1,1) -> 95.12 | F95: =OFFSET(InputPriceData!E$15,CalculationsAndCharts!$A95+$A$11,IF($C$7,8,0),1,1) -> 93.72 | G95: =OFFSET(InputPriceData!F$15,CalculationsAndCharts!$A95+$A$11,IF($C$7,8,0),1,1) -> 94.06 | J95: 63 | K95: 2014-03-18 | L95: 11065000 | M95: 98.14 | N95: 98.2 | O95: 97.33 | P95: 97.33 | Q95: 2
A96: 64 | B96: =OFFSET(InputPriceData!B$15,CalculationsAndCharts!$A96+$A$11,0,1,1) -> 2014-02-07 | C96: =OFFSET(InputPriceData!G$15,CalculationsAndCharts!$A96+$A$11,IF($C$7,8,0),1,1) -> 6591200 | D96: =OFFSET(InputPriceData!C$15,CalculationsAndCharts!$A96+$A$11,IF($C$7,8,0),1,1) -> 94.29 | E96: =OFFSET(InputPriceData!D$15,CalculationsAndCharts!$A96+$A$11,IF($C$7,8,0),1,1) -> 95.14 | F96: =OFFSET(InputPriceData!E$15,CalculationsAndCharts!$A96+$A$11,IF($C$7,8,0),1,1) -> 93.82 | G96: =OFFSET(InputPriceData!F$15,CalculationsAndCharts!$A96+$A$11,IF($C$7,8,0),1,1) -> 95.11 | J96: 64 | K96: 2014-03-14 | L96: 0 | M96: 97.73 | N96: 97.73 | O96: 97.53 | P96: 97.53 | Q96: 1
A97: 65 | B97: =OFFSET(InputPriceData!B$15,CalculationsAndCharts!$A97+$A$11,0,1,1) -> 2014-02-06 | C97: =OFFSET(InputPriceData!G$15,CalculationsAndCharts!$A97+$A$11,IF($C$7,8,0),1,1) -> 5356900 | D97: =OFFSET(InputPriceData!C$15,CalculationsAndCharts!$A97+$A$11,IF($C$7,8,0),1,1) -> 93.08 | E97: =OFFSET(InputPriceData!D$15,CalculationsAndCharts!$A97+$A$11,IF($C$7,8,0),1,1) -> 94.39 | F97: =OFFSET(InputPriceData!E$15,CalculationsAndCharts!$A97+$A$11,IF($C$7,8,0),1,1) -> 92.9 | G97: =OFFSET(InputPriceData!F$15,CalculationsAndCharts!$A97+$A$11,IF($C$7,8,0),1,1) -> 94.14 | J97: 65 | K97: 2014-03-13 | L97: 0 | M97: 97.93 | N97: 97.93 | O97: 97.73 | P97: 97.73 | Q97: 0
A98: 66 | B98: =OFFSET(InputPriceData!B$15,CalculationsAndCharts!$A98+$A$11,0,1,1) -> 2014-02-05 | C98: =OFFSET(InputPriceData!G$15,CalculationsAndCharts!$A98+$A$11,IF($C$7,8,0),1,1) -> 4958900 | D98: =OFFSET(InputPriceData!C$15,CalculationsAndCharts!$A98+$A$11,IF($C$7,8,0),1,1) -> 92.02 | E98: =OFFSET(InputPriceData!D$15,CalculationsAndCharts!$A98+$A$11,IF($C$7,8,0),1,1) -> 93.05 | F98: =OFFSET(InputPriceData!E$15,CalculationsAndCharts!$A98+$A$11,IF($C$7,8,0),1,1) -> 91.44 | G98: =OFFSET(InputPriceData!F$15,CalculationsAndCharts!$A98+$A$11,IF($C$7,8,0),1,1) -> 92.79 | J98: 66 | K98: 2014-03-13 | L98: 0 | M98: 98.13 | N98: 98.13 | O98: 97.93 | P98: 97.93 | Q98: 0
A99: 67 | B99: =OFFSET(InputPriceData!B$15,CalculationsAndCharts!$A99+$A$11,0,1,1) -> 2014-02-04 | C99: =OFFSET(InputPriceData!G$15,CalculationsAndCharts!$A99+$A$11,IF($C$7,8,0),1,1) -> 6300400 | D99: =OFFSET(InputPriceData!C$15,CalculationsAndCharts!$A99+$A$11,IF($C$7,8,0),1,1) -> 92.07 | E99: =OFFSET(InputPriceData!D$15,CalculationsAndCharts!$A99+$A$11,IF($C$7,8,0),1,1) -> 92.68 | F99: =OFFSET(InputPriceData!E$15,CalculationsAndCharts!$A99+$A$11,IF($C$7,8,0),1,1) -> 91.8 | G99: =OFFSET(InputPriceData!F$15,CalculationsAndCharts!$A99+$A$11,IF($C$7,8,0),1,1) -> 92.3 | J99: 67 | K99: 2014-03-13 | L99: 6701700 | M99: 98.41 | N99: 99.07 | O99: 98.13 | P99: 98.13 | Q99: 2
A100: 68 | B100: =OFFSET(InputPriceData!B$15,CalculationsAndCharts!$A100+$A$11,0,1,1) -> 2014-02-03 | C100: =OFFSET(InputPriceData!G$15,CalculationsAndCharts!$A100+$A$11,IF($C$7,8,0),1,1) -> 6904700 | D100: =OFFSET(InputPriceData!C$15,CalculationsAndCharts!$A100+$A$11,IF($C$7,8,0),1,1) -> 93.74 | E100: =OFFSET(InputPriceData!D$15,CalculationsAndCharts!$A100+$A$11,IF($C$7,8,0),1,1) -> 93.94 | F100: =OFFSET(InputPriceData!E$15,CalculationsAndCharts!$A100+$A$11,IF($C$7,8,0),1,1) -> 92.12 | G100: =OFFSET(InputPriceData!F$15,CalculationsAndCharts!$A100+$A$11,IF($C$7,8,0),1,1) -> 92.23 | J100: 68 | K100: 2014-03-11 | L100: 0 | M100: 98.33 | N100: 98.53 | O100: 98.33 | P100: 98.53 | Q100: 0
A101: 69 | B101: =OFFSET(InputPriceData!B$15,CalculationsAndCharts!$A101+$A$11,0,1,1) -> 2014-01-31 | C101: =OFFSET(InputPriceData!G$15,CalculationsAndCharts!$A101+$A$11,IF($C$7,8,0),1,1) -> 5972500 | D101: =OFFSET(InputPriceData!C$15,CalculationsAndCharts!$A101+$A$11,IF($C$7,8,0),1,1) -> 92.26 | E101: =OFFSET(InputPriceData!D$15,CalculationsAndCharts!$A101+$A$11,IF($C$7,8,0),1,1) -> 93.75 | F101: =OFFSET(InputPriceData!E$15,CalculationsAndCharts!$A101+$A$11,IF($C$7,8,0),1,1) -> 92.16 | G101: =OFFSET(InputPriceData!F$15,CalculationsAndCharts!$A101+$A$11,IF($C$7,8,0),1,1) -> 93.37 | J101: 69 | K101: 2014-03-11 | L101: 0 | M101: 98.13 | N101: 98.33 | O101: 98.13 | P101: 98.33 | Q101: 0
A102: 70 | B102: =OFFSET(InputPriceData!B$15,CalculationsAndCharts!$A102+$A$11,0,1,1) -> 2014-01-30 | C102: =OFFSET(InputPriceData!G$15,CalculationsAndCharts!$A102+$A$11,IF($C$7,8,0),1,1) -> 4987400 | D102: =OFFSET(InputPriceData!C$15,CalculationsAndCharts!$A102+$A$11,IF($C$7,8,0),1,1) -> 92.6 | E102: =OFFSET(InputPriceData!D$15,CalculationsAndCharts!$A102+$A$11,IF($C$7,8,0),1,1) -> 93.21 | F102: =OFFSET(InputPriceData!E$15,CalculationsAndCharts!$A102+$A$11,IF($C$7,8,0),1,1) -> 92.15 | G102: =OFFSET(InputPriceData!F$15,CalculationsAndCharts!$A102+$A$11,IF($C$7,8,0),1,1) -> 93.01 | J102: 70 | K102: 2014-03-11 | L102: 0 | M102: 97.93 | N102: 98.13 | O102: 97.93 | P102: 98.13 | Q102: 0
A103: 71 | B103: =OFFSET(InputPriceData!B$15,CalculationsAndCharts!$A103+$A$11,0,1,1) -> 2014-01-29 | C103: =OFFSET(InputPriceData!G$15,CalculationsAndCharts!$A103+$A$11,IF($C$7,8,0),1,1) -> 8013500 | D103: =OFFSET(InputPriceData!C$15,CalculationsAndCharts!$A103+$A$11,IF($C$7,8,0),1,1) -> 93.16 | E103: =OFFSET(InputPriceData!D$15,CalculationsAndCharts!$A103+$A$11,IF($C$7,8,0),1,1) -> 93.5 | F103: =OFFSET(InputPriceData!E$15,CalculationsAndCharts!$A103+$A$11,IF($C$7,8,0),1,1) -> 92.08 | G103: =OFFSET(InputPriceData!F$15,CalculationsAndCharts!$A103+$A$11,IF($C$7,8,0),1,1) -> 92.36 | J103: 71 | K103: 2014-03-11 | L103: 0 | M103: 97.73 | N103: 97.93 | O103: 97.73 | P103: 97.93 | Q103: 0
A104: 72 | B104: =OFFSET(InputPriceData!B$15,CalculationsAndCharts!$A104+$A$11,0,1,1) -> 2014-01-28 | C104: =OFFSET(InputPriceData!G$15,CalculationsAndCharts!$A104+$A$11,IF($C$7,8,0),1,1) -> 3682800 | D104: =OFFSET(InputPriceData!C$15,CalculationsAndCharts!$A104+$A$11,IF($C$7,8,0),1,1) -> 93.53 | E104: =OFFSET(InputPriceData!D$15,CalculationsAndCharts!$A104+$A$11,IF($C$7,8,0),1,1) -> 93.84 | F104: =OFFSET(InputPriceData!E$15,CalculationsAndCharts!$A104+$A$11,IF($C$7,8,0),1,1) -> 93.3 | G104: =OFFSET(InputPriceData!F$15,CalculationsAndCharts!$A104+$A$11,IF($C$7,8,0),1,1) -> 93.38 | J104: 72 | K104: 2014-03-11 | L104: 0 | M104: 97.53 | N104: 97.73 | O104: 97.53 | P104: 97.73 | Q104: 0
A105: 73 | B105: =OFFSET(InputPriceData!B$15,CalculationsAndCharts!$A105+$A$11,0,1,1) -> 2014-01-27 | C105: =OFFSET(InputPriceData!G$15,CalculationsAndCharts!$A105+$A$11,IF($C$7,8,0),1,1) -> 6607600 | D105: =OFFSET(InputPriceData!C$15,CalculationsAndCharts!$A105+$A$11,IF($C$7,8,0),1,1) -> 93.5 | E105: =OFFSET(InputPriceData!D$15,CalculationsAndCharts!$A105+$A$11,IF($C$7,8,0),1,1) -> 93.88 | F105: =OFFSET(InputPriceData!E$15,CalculationsAndCharts!$A105+$A$11,IF($C$7,8,0),1,1) -> 93.13 | G105: =OFFSET(InputPriceData!F$15,CalculationsAndCharts!$A105+$A$11,IF($C$7,8,0),1,1) -> 93.28 | J105: 73 | K105: 2014-03-11 | L105: 0 | M105: 97.33 | N105: 97.53 | O105: 97.33 | P105: 97.53 | Q105: 0
A106: 74 | B106: =OFFSET(InputPriceData!B$15,CalculationsAndCharts!$A106+$A$11,0,1,1) -> 2014-01-24 | C106: =OFFSET(InputPriceData!G$15,CalculationsAndCharts!$A106+$A$11,IF($C$7,8,0),1,1) -> 6944800 | D106: =OFFSET(InputPriceData!C$15,CalculationsAndCharts!$A106+$A$11,IF($C$7,8,0),1,1) -> 93.93 | E106: =OFFSET(InputPriceData!D$15,CalculationsAndCharts!$A106+$A$11,IF($C$7,8,0),1,1) -> 95.15 | F106: =OFFSET(InputPriceData!E$15,CalculationsAndCharts!$A106+$A$11,IF($C$7,8,0),1,1) -> 93.59 | G106: =OFFSET(InputPriceData!F$15,CalculationsAndCharts!$A106+$A$11,IF($C$7,8,0),1,1) -> 93.63 | J106: 74 | K106: 2014-03-11 | L106: 0 | M106: 97.13 | N106: 97.33 | O106: 97.13 | P106: 97.33 | Q106: 0
A107: 75 | B107: =OFFSET(InputPriceData!B$15,CalculationsAndCharts!$A107+$A$11,0,1,1) -> 2014-01-23 | C107: =OFFSET(InputPriceData!G$15,CalculationsAndCharts!$A107+$A$11,IF($C$7,8,0),1,1) -> 7146000 | D107: =OFFSET(InputPriceData!C$15,CalculationsAndCharts!$A107+$A$11,IF($C$7,8,0),1,1) -> 93.75 | E107: =OFFSET(InputPriceData!D$15,CalculationsAndCharts!$A107+$A$11,IF($C$7,8,0),1,1) -> 95.13 | F107: =OFFSET(InputPriceData!E$15,CalculationsAndCharts!$A107+$A$11,IF($C$7,8,0),1,1) -> 93.7 | G107: =OFFSET(InputPriceData!F$15,CalculationsAndCharts!$A107+$A$11,IF($C$7,8,0),1,1) -> 94.51 | J107: 75 | K107: 2014-03-11 | L107: 0 | M107: 96.93 | N107: 97.13 | O107: 96.93 | P107: 97.13 | Q107: 0
A108: 76 | B108: =OFFSET(InputPriceData!B$15,CalculationsAndCharts!$A108+$A$11,0,1,1) -> 2014-01-22 | C108: =OFFSET(InputPriceData!G$15,CalculationsAndCharts!$A108+$A$11,IF($C$7,8,0),1,1) -> 4976400 | D108: =OFFSET(InputPriceData!C$15,CalculationsAndCharts!$A108+$A$11,IF($C$7,8,0),1,1) -> 94.27 | E108: =OFFSET(InputPriceData!D$15,CalculationsAndCharts!$A108+$A$11,IF($C$7,8,0),1,1) -> 94.52 | F108: =OFFSET(InputPriceData!E$15,CalculationsAndCharts!$A108+$A$11,IF($C$7,8,0),1,1) -> 93.89 | G108: =OFFSET(InputPriceData!F$15,CalculationsAndCharts!$A108+$A$11,IF($C$7,8,0),1,1) -> 94.08 | J108: 76 | K108: 2014-03-11 | L108: 0 | M108: 96.73 | N108: 96.93 | O108: 96.73 | P108: 96.93 | Q108: 0
A109: 77 | B109: =OFFSET(InputPriceData!B$15,CalculationsAndCharts!$A109+$A$11,0,1,1) -> 2014-01-21 | C109: =OFFSET(InputPriceData!G$15,CalculationsAndCharts!$A109+$A$11,IF($C$7,8,0),1,1) -> 6462700 | D109: =OFFSET(InputPriceData!C$15,CalculationsAndCharts!$A109+$A$11,IF($C$7,8,0),1,1) -> 94.56 | E109: =OFFSET(InputPriceData!D$15,CalculationsAndCharts!$A109+$A$11,IF($C$7,8,0),1,1) -> 95.15 | F109: =OFFSET(InputPriceData!E$15,CalculationsAndCharts!$A109+$A$11,IF($C$7,8,0),1,1) -> 94.21 | G109: =OFFSET(InputPriceData!F$15,CalculationsAndCharts!$A109+$A$11,IF($C$7,8,0),1,1) -> 94.28 | J109: 77 | K109: 2014-03-11 | L109: 0 | M109: 96.53 | N109: 96.73 | O109: 96.53 | P109: 96.73 | Q109: 0
A110: 78 | B110: =OFFSET(InputPriceData!B$15,CalculationsAndCharts!$A110+$A$11,0,1,1) -> 2014-01-17 | C110: =OFFSET(InputPriceData!G$15,CalculationsAndCharts!$A110+$A$11,IF($C$7,8,0),1,1) -> 5975300 | D110: =OFFSET(InputPriceData!C$15,CalculationsAndCharts!$A110+$A$11,IF($C$7,8,0),1,1) -> 95.21 | E110: =OFFSET(InputPriceData!D$15,CalculationsAndCharts!$A110+$A$11,IF($C$7,8,0),1,1) -> 95.32 | F110: =OFFSET(InputPriceData!E$15,CalculationsAndCharts!$A110+$A$11,IF($C$7,8,0),1,1) -> 93.97 | G110: =OFFSET(InputPriceData!F$15,CalculationsAndCharts!$A110+$A$11,IF($C$7,8,0),1,1) -> 94.13 | J110: 78 | K110: 2014-03-11 | L110: 0 | M110: 96.33 | N110: 96.53 | O110: 96.33 | P110: 96.53 | Q110: 0
A111: 79 | B111: =OFFSET(InputPriceData!B$15,CalculationsAndCharts!$A111+$A$11,0,1,1) -> 2014-01-16 | C111: =OFFSET(InputPriceData!G$15,CalculationsAndCharts!$A111+$A$11,IF($C$7,8,0),1,1) -> 5058000 | D111: =OFFSET(InputPriceData!C$15,CalculationsAndCharts!$A111+$A$11,IF($C$7,8,0),1,1) -> 94.6 | E111: =OFFSET(InputPriceData!D$15,CalculationsAndCharts!$A111+$A$11,IF($C$7,8,0),1,1) -> 95.49 | F111: =OFFSET(InputPriceData!E$15,CalculationsAndCharts!$A111+$A$11,IF($C$7,8,0),1,1) -> 94.39 | G111: =OFFSET(InputPriceData!F$15,CalculationsAndCharts!$A111+$A$11,IF($C$7,8,0),1,1) -> 95.25 | J111: 79 | K111: 2014-03-11 | L111: 0 | M111: 96.13 | N111: 96.33 | O111: 96.13 | P111: 96.33 | Q111: 0
A112: 80 | B112: =OFFSET(InputPriceData!B$15,CalculationsAndCharts!$A112+$A$11,0,1,1) -> 2014-01-15 | C112: =OFFSET(InputPriceData!G$15,CalculationsAndCharts!$A112+$A$11,IF($C$7,8,0),1,1) -> 3560600 | D112: =OFFSET(InputPriceData!C$15,CalculationsAndCharts!$A112+$A$11,IF($C$7,8,0),1,1) -> 94.68 | E112: =OFFSET(InputPriceData!D$15,CalculationsAndCharts!$A112+$A$11,IF($C$7,8,0),1,1) -> 94.86 | F112: =OFFSET(InputPriceData!E$15,CalculationsAndCharts!$A112+$A$11,IF($C$7,8,0),1,1) -> 94.34 | G112: =OFFSET(InputPriceData!F$15,CalculationsAndCharts!$A112+$A$11,IF($C$7,8,0),1,1) -> 94.65 | J112: 80 | K112: 2014-03-11 | L112: 0 | M112: 95.93 | N112: 96.13 | O112: 95.93 | P112: 96.13 | Q112: 0
A113: 81 | B113: =OFFSET(InputPriceData!B$15,CalculationsAndCharts!$A113+$A$11,0,1,1) -> 2014-01-14 | C113: =OFFSET(InputPriceData!G$15,CalculationsAndCharts!$A113+$A$11,IF($C$7,8,0),1,1) -> 3842200 | D113: =OFFSET(InputPriceData!C$15,CalculationsAndCharts!$A113+$A$11,IF($C$7,8,0),1,1) -> 94.01 | E113: =OFFSET(InputPriceData!D$15,CalculationsAndCharts!$A113+$A$11,IF($C$7,8,0),1,1) -> 94.6 | F113: =OFFSET(InputPriceData!E$15,CalculationsAndCharts!$A113+$A$11,IF($C$7,8,0),1,1) -> 94 | G113: =OFFSET(InputPriceData!F$15,CalculationsAndCharts!$A113+$A$11,IF($C$7,8,0),1,1) -> 94.42 | J113: 81 | K113: 2014-03-11 | L113: 0 | M113: 95.73 | N113: 95.93 | O113: 95.73 | P113: 95.93 | Q113: 0
A114: 82 | B114: =OFFSET(InputPriceData!B$15,CalculationsAndCharts!$A114+$A$11,0,1,1) -> 2014-01-13 | C114: =OFFSET(InputPriceData!G$15,CalculationsAndCharts!$A114+$A$11,IF($C$7,8,0),1,1) -> 5753200 | D114: =OFFSET(InputPriceData!C$15,CalculationsAndCharts!$A114+$A$11,IF($C$7,8,0),1,1) -> 95.02 | E114: =OFFSET(InputPriceData!D$15,CalculationsAndCharts!$A114+$A$11,IF($C$7,8,0),1,1) -> 95.02 | F114: =OFFSET(InputPriceData!E$15,CalculationsAndCharts!$A114+$A$11,IF($C$7,8,0),1,1) -> 93.79 | G114: =OFFSET(InputPriceData!F$15,CalculationsAndCharts!$A114+$A$11,IF($C$7,8,0),1,1) -> 94.03 | J114: 82 | K114: 2014-03-11 | L114: 0 | M114: 95.53 | N114: 95.73 | O114: 95.53 | P114: 95.73 | Q114: 0
A115: 83 | B115: =OFFSET(InputPriceData!B$15,CalculationsAndCharts!$A115+$A$11,0,1,1) -> 2014-01-10 | C115: =OFFSET(InputPriceData!G$15,CalculationsAndCharts!$A115+$A$11,IF($C$7,8,0),1,1) -> 5512200 | D115: =OFFSET(InputPriceData!C$15,CalculationsAndCharts!$A115+$A$11,IF($C$7,8,0),1,1) -> 95.02 | E115: =OFFSET(InputPriceData!D$15,CalculationsAndCharts!$A115+$A$11,IF($C$7,8,0),1,1) -> 95.41 | F115: =OFFSET(InputPriceData!E$15,CalculationsAndCharts!$A115+$A$11,IF($C$7,8,0),1,1) -> 94.83 | G115: =OFFSET(InputPriceData!F$15,CalculationsAndCharts!$A115+$A$11,IF($C$7,8,0),1,1) -> 94.99 | J115: 83 | K115: 2014-03-11 | L115: 8112900 | M115: 95.26 | N115: 95.53 | O115: 94.97 | P115: 95.53 | Q115: 3
A116: 84 | B116: =OFFSET(InputPriceData!B$15,CalculationsAndCharts!$A116+$A$11,0,1,1) -> 2014-01-09 | C116: =OFFSET(InputPriceData!G$15,CalculationsAndCharts!$A116+$A$11,IF($C$7,8,0),1,1) -> 7709000 | D116: =OFFSET(InputPriceData!C$15,CalculationsAndCharts!$A116+$A$11,IF($C$7,8,0),1,1) -> 95.42 | E116: =OFFSET(InputPriceData!D$15,CalculationsAndCharts!$A116+$A$11,IF($C$7,8,0),1,1) -> 95.53 | F116: =OFFSET(InputPriceData!E$15,CalculationsAndCharts!$A116+$A$11,IF($C$7,8,0),1,1) -> 94.44 | G116: =OFFSET(InputPriceData!F$15,CalculationsAndCharts!$A116+$A$11,IF($C$7,8,0),1,1) -> 94.65 | J116: 84 | K116: 2014-03-06 | L116: 0 | M116: 95.13 | N116: 95.33 | O116: 95.13 | P116: 95.33 | Q116: 0
A117: 85 | B117: =OFFSET(InputPriceData!B$15,CalculationsAndCharts!$A117+$A$11,0,1,1) -> 2014-01-08 | C117: =OFFSET(InputPriceData!G$15,CalculationsAndCharts!$A117+$A$11,IF($C$7,8,0),1,1) -> 7669800 | D117: =OFFSET(InputPriceData!C$15,CalculationsAndCharts!$A117+$A$11,IF($C$7,8,0),1,1) -> 94.74 | E117: =OFFSET(InputPriceData!D$15,CalculationsAndCharts!$A117+$A$11,IF($C$7,8,0),1,1) -> 94.9 | F117: =OFFSET(InputPriceData!E$15,CalculationsAndCharts!$A117+$A$11,IF($C$7,8,0),1,1) -> 94.19 | G117: =OFFSET(InputPriceData!F$15,CalculationsAndCharts!$A117+$A$11,IF($C$7,8,0),1,1) -> 94.6 | J117: 85 | K117: 2014-03-06 | L117: 8568500 | M117: 95.34 | N117: 95.13 | O117: 94.94 | P117: 95.13 | Q117: 2
A118: 86 | B118: =OFFSET(InputPriceData!B$15,CalculationsAndCharts!$A118+$A$11,0,1,1) -> 2014-01-07 | C118: =OFFSET(InputPriceData!G$15,CalculationsAndCharts!$A118+$A$11,IF($C$7,8,0),1,1) -> 4881800 | D118: =OFFSET(InputPriceData!C$15,CalculationsAndCharts!$A118+$A$11,IF($C$7,8,0),1,1) -> 95.57 | E118: =OFFSET(InputPriceData!D$15,CalculationsAndCharts!$A118+$A$11,IF($C$7,8,0),1,1) -> 96.26 | F118: =OFFSET(InputPriceData!E$15,CalculationsAndCharts!$A118+$A$11,IF($C$7,8,0),1,1) -> 95.32 | G118: =OFFSET(InputPriceData!F$15,CalculationsAndCharts!$A118+$A$11,IF($C$7,8,0),1,1) -> 95.57 | J118: 86 | K118: 2014-03-04 | L118: 0 | M118: 94.53 | N118: 94.93 | O118: 94.33 | P118: 94.93 | Q118: 1
A119: 87 | B119: =OFFSET(InputPriceData!B$15,CalculationsAndCharts!$A119+$A$11,0,1,1) -> 2014-01-06 | C119: =OFFSET(InputPriceData!G$15,CalculationsAndCharts!$A119+$A$11,IF($C$7,8,0),1,1) -> 5022700 | D119: =OFFSET(InputPriceData!C$15,CalculationsAndCharts!$A119+$A$11,IF($C$7,8,0),1,1) -> 95.8 | E119: =OFFSET(InputPriceData!D$15,CalculationsAndCharts!$A119+$A$11,IF($C$7,8,0),1,1) -> 95.8 | F119: =OFFSET(InputPriceData!E$15,CalculationsAndCharts!$A119+$A$11,IF($C$7,8,0),1,1) -> 94.71 | G119: =OFFSET(InputPriceData!F$15,CalculationsAndCharts!$A119+$A$11,IF($C$7,8,0),1,1) -> 95.04 | J119: 87 | K119: 2014-03-03 | L119: 0 | M119: 94.73 | N119: 94.73 | O119: 94.53 | P119: 94.53 | Q119: 0
A120: 88 | B120: =OFFSET(InputPriceData!B$15,CalculationsAndCharts!$A120+$A$11,0,1,1) -> 2014-01-03 | C120: =OFFSET(InputPriceData!G$15,CalculationsAndCharts!$A120+$A$11,IF($C$7,8,0),1,1) -> 2965300 | D120: =OFFSET(InputPriceData!C$15,CalculationsAndCharts!$A120+$A$11,IF($C$7,8,0),1,1) -> 96.08 | E120: =OFFSET(InputPriceData!D$15,CalculationsAndCharts!$A120+$A$11,IF($C$7,8,0),1,1) -> 96.21 | F120: =OFFSET(InputPriceData!E$15,CalculationsAndCharts!$A120+$A$11,IF($C$7,8,0),1,1) -> 95.68 | G120: =OFFSET(InputPriceData!F$15,CalculationsAndCharts!$A120+$A$11,IF($C$7,8,0),1,1) -> 95.72 | J120: 88 | K120: 2014-03-03 | L120: 0 | M120: 94.93 | N120: 94.93 | O120: 94.73 | P120: 94.73 | Q120: 0
A121: 89 | B121: =OFFSET(InputPriceData!B$15,CalculationsAndCharts!$A121+$A$11,0,1,1) -> 2014-01-02 | C121: =OFFSET(InputPriceData!G$15,CalculationsAndCharts!$A121+$A$11,IF($C$7,8,0),1,1) -> 2925800 | D121: =OFFSET(InputPriceData!C$15,CalculationsAndCharts!$A121+$A$11,IF($C$7,8,0),1,1) -> 96 | E121: =OFFSET(InputPriceData!D$15,CalculationsAndCharts!$A121+$A$11,IF($C$7,8,0),1,1) -> 96.21 | F121: =OFFSET(InputPriceData!E$15,CalculationsAndCharts!$A121+$A$11,IF($C$7,8,0),1,1) -> 95.45 | G121: =OFFSET(InputPriceData!F$15,CalculationsAndCharts!$A121+$A$11,IF($C$7,8,0),1,1) -> 95.6 | J121: 89 | K121: 2014-03-03 | L121: 9284300 | M121: 95.11 | N121: 95.46 | O121: 94.93 | P121: 94.93 | Q121: 2
A122: 90 | B122: =OFFSET(InputPriceData!B$15,CalculationsAndCharts!$A122+$A$11,0,1,1) -> 2013-12-31 | C122: =OFFSET(InputPriceData!G$15,CalculationsAndCharts!$A122+$A$11,IF($C$7,8,0),1,1) -> 2560900 | D122: =OFFSET(InputPriceData!C$15,CalculationsAndCharts!$A122+$A$11,IF($C$7,8,0),1,1) -> 96.13 | E122: =OFFSET(InputPriceData!D$15,CalculationsAndCharts!$A122+$A$11,IF($C$7,8,0),1,1) -> 96.26 | F122: =OFFSET(InputPriceData!E$15,CalculationsAndCharts!$A122+$A$11,IF($C$7,8,0),1,1) -> 95.81 | G122: =OFFSET(InputPriceData!F$15,CalculationsAndCharts!$A122+$A$11,IF($C$7,8,0),1,1) -> 96.21 | J122: 90 | K122: 2014-02-27 | L122: 0 | M122: 95.33 | N122: 95.33 | O122: 95.13 | P122: 95.13 | Q122: 1
A123: 91 | B123: =OFFSET(InputPriceData!B$15,CalculationsAndCharts!$A123+$A$11,0,1,1) -> 2013-12-30 | C123: =OFFSET(InputPriceData!G$15,CalculationsAndCharts!$A123+$A$11,IF($C$7,8,0),1,1) -> 2293000 | D123: =OFFSET(InputPriceData!C$15,CalculationsAndCharts!$A123+$A$11,IF($C$7,8,0),1,1) -> 96.06 | E123: =OFFSET(InputPriceData!D$15,CalculationsAndCharts!$A123+$A$11,IF($C$7,8,0),1,1) -> 96.33 | F123: =OFFSET(InputPriceData!E$15,CalculationsAndCharts!$A123+$A$11,IF($C$7,8,0),1,1) -> 95.97 | G123: =OFFSET(InputPriceData!F$15,CalculationsAndCharts!$A123+$A$11,IF($C$7,8,0),1,1) -> 96.19 | J123: 91 | K123: 2014-02-26 | L123: 4233600 | M123: 95.73 | N123: 95.8 | O123: 95.33 | P123: 95.33 | Q123: 1
A124: 92 | B124: =OFFSET(InputPriceData!B$15,CalculationsAndCharts!$A124+$A$11,0,1,1) -> 2013-12-27 | C124: =OFFSET(InputPriceData!G$15,CalculationsAndCharts!$A124+$A$11,IF($C$7,8,0),1,1) -> 1987100 | D124: =OFFSET(InputPriceData!C$15,CalculationsAndCharts!$A124+$A$11,IF($C$7,8,0),1,1) -> 96.05 | E124: =OFFSET(InputPriceData!D$15,CalculationsAndCharts!$A124+$A$11,IF($C$7,8,0),1,1) -> 96.46 | F124: =OFFSET(InputPriceData!E$15,CalculationsAndCharts!$A124+$A$11,IF($C$7,8,0),1,1) -> 95.98 | G124: =OFFSET(InputPriceData!F$15,CalculationsAndCharts!$A124+$A$11,IF($C$7,8,0),1,1) -> 96.09 | J124: 92 | K124: 2014-02-25 | L124: 4472200 | M124: 95.53 | N124: 95.73 | O124: 95.53 | P124: 95.73 | Q124: 1
A125: 93 | B125: =OFFSET(InputPriceData!B$15,CalculationsAndCharts!$A125+$A$11,0,1,1) -> 2013-12-26 | C125: =OFFSET(InputPriceData!G$15,CalculationsAndCharts!$A125+$A$11,IF($C$7,8,0),1,1) -> 1978300 | D125: =OFFSET(InputPriceData!C$15,CalculationsAndCharts!$A125+$A$11,IF($C$7,8,0),1,1) -> 95.95 | E125: =OFFSET(InputPriceData!D$15,CalculationsAndCharts!$A125+$A$11,IF($C$7,8,0),1,1) -> 96.09 | F125: =OFFSET(InputPriceData!E$15,CalculationsAndCharts!$A125+$A$11,IF($C$7,8,0),1,1) -> 95.81 | G125: =OFFSET(InputPriceData!F$15,CalculationsAndCharts!$A125+$A$11,IF($C$7,8,0),1,1) -> 96.02 | J125: 93 | K125: 2014-02-24 | L125: 0 | M125: 95.33 | N125: 95.53 | O125: 95.33 | P125: 95.53 | Q125: 1
A126: 94 | B126: =OFFSET(InputPriceData!B$15,CalculationsAndCharts!$A126+$A$11,0,1,1) -> 2013-12-24 | C126: =OFFSET(InputPriceData!G$15,CalculationsAndCharts!$A126+$A$11,IF($C$7,8,0),1,1) -> 1155900 | D126: =OFFSET(InputPriceData!C$15,CalculationsAndCharts!$A126+$A$11,IF($C$7,8,0),1,1) -> 95.32 | E126: =OFFSET(InputPriceData!D$15,CalculationsAndCharts!$A126+$A$11,IF($C$7,8,0),1,1) -> 95.93 | F126: =OFFSET(InputPriceData!E$15,CalculationsAndCharts!$A126+$A$11,IF($C$7,8,0),1,1) -> 95.32 | G126: =OFFSET(InputPriceData!F$15,CalculationsAndCharts!$A126+$A$11,IF($C$7,8,0),1,1) -> 95.72 | J126: 94 | K126: 2014-02-21 | L126: 0 | M126: 95.13 | N126: 95.33 | O126: 95.13 | P126: 95.33 | Q126: 0
A127: 95 | B127: =OFFSET(InputPriceData!B$15,CalculationsAndCharts!$A127+$A$11,0,1,1) -> 2013-12-23 | C127: =OFFSET(InputPriceData!G$15,CalculationsAndCharts!$A127+$A$11,IF($C$7,8,0),1,1) -> 3296300 | D127: =OFFSET(InputPriceData!C$15,CalculationsAndCharts!$A127+$A$11,IF($C$7,8,0),1,1) -> 95.91 | E127: =OFFSET(InputPriceData!D$15,CalculationsAndCharts!$A127+$A$11,IF($C$7,8,0),1,1) -> 96.13 | F127: =OFFSET(InputPriceData!E$15,CalculationsAndCharts!$A127+$A$11,IF($C$7,8,0),1,1) -> 95.24 | G127: =OFFSET(InputPriceData!F$15,CalculationsAndCharts!$A127+$A$11,IF($C$7,8,0),1,1) -> 95.49 | J127: 95 | K127: 2014-02-21 | L127: 7480500 | M127: 94.85 | N127: 95.13 | O127: 94.68 | P127: 95.13 | Q127: 3
A128: 96 | B128: =OFFSET(InputPriceData!B$15,CalculationsAndCharts!$A128+$A$11,0,1,1) -> 2013-12-20 | C128: =OFFSET(InputPriceData!G$15,CalculationsAndCharts!$A128+$A$11,IF($C$7,8,0),1,1) -> 8039500 | D128: =OFFSET(InputPriceData!C$15,CalculationsAndCharts!$A128+$A$11,IF($C$7,8,0),1,1) -> 94.65 | E128: =OFFSET(InputPriceData!D$15,CalculationsAndCharts!$A128+$A$11,IF($C$7,8,0),1,1) -> 95.69 | F128: =OFFSET(InputPriceData!E$15,CalculationsAndCharts!$A128+$A$11,IF($C$7,8,0),1,1) -> 94.53 | G128: =OFFSET(InputPriceData!F$15,CalculationsAndCharts!$A128+$A$11,IF($C$7,8,0),1,1) -> 95.69 | J128: 96 | K128: 2014-02-18 | L128: 0 | M128: 94.73 | N128: 94.93 | O128: 94.73 | P128: 94.93 | Q128: 1
A129: 97 | B129: =OFFSET(InputPriceData!B$15,CalculationsAndCharts!$A129+$A$11,0,1,1) -> 2013-12-19 | C129: =OFFSET(InputPriceData!G$15,CalculationsAndCharts!$A129+$A$11,IF($C$7,8,0),1,1) -> 5476500 | D129: =OFFSET(InputPriceData!C$15,CalculationsAndCharts!$A129+$A$11,IF($C$7,8,0),1,1) -> 95.07 | E129: =OFFSET(InputPriceData!D$15,CalculationsAndCharts!$A129+$A$11,IF($C$7,8,0),1,1) -> 95.49 | F129: =OFFSET(InputPriceData!E$15,CalculationsAndCharts!$A129+$A$11,IF($C$7,8,0),1,1) -> 94.13 | G129: =OFFSET(InputPriceData!F$15,CalculationsAndCharts!$A129+$A$11,IF($C$7,8,0),1,1) -> 94.34 | J129: 97 | K129: 2014-02-14 | L129: 3617900 | M129: 94.53 | N129: 94.73 | O129: 94.53 | P129: 94.73 | Q129: 1
A130: 98 | B130: =OFFSET(InputPriceData!B$15,CalculationsAndCharts!$A130+$A$11,0,1,1) -> 2013-12-18 | C130: =OFFSET(InputPriceData!G$15,CalculationsAndCharts!$A130+$A$11,IF($C$7,8,0),1,1) -> 5526800 | D130: =OFFSET(InputPriceData!C$15,CalculationsAndCharts!$A130+$A$11,IF($C$7,8,0),1,1) -> 93.86 | E130: =OFFSET(InputPriceData!D$15,CalculationsAndCharts!$A130+$A$11,IF($C$7,8,0),1,1) -> 95.14 | F130: =OFFSET(InputPriceData!E$15,CalculationsAndCharts!$A130+$A$11,IF($C$7,8,0),1,1) -> 93.77 | G130: =OFFSET(InputPriceData!F$15,CalculationsAndCharts!$A130+$A$11,IF($C$7,8,0),1,1) -> 95.12 | J130: 98 | K130: 2014-02-13 | L130: 4268900 | M130: 94.13 | N130: 94.53 | O130: 94.09 | P130: 94.53 | Q130: 1
A131: 99 | B131: =OFFSET(InputPriceData!B$15,CalculationsAndCharts!$A131+$A$11,0,1,1) -> 2013-12-17 | C131: =OFFSET(InputPriceData!G$15,CalculationsAndCharts!$A131+$A$11,IF($C$7,8,0),1,1) -> 4460300 | D131: =OFFSET(InputPriceData!C$15,CalculationsAndCharts!$A131+$A$11,IF($C$7,8,0),1,1) -> 94.63 | E131: =OFFSET(InputPriceData!D$15,CalculationsAndCharts!$A131+$A$11,IF($C$7,8,0),1,1) -> 94.77 | F131: =OFFSET(InputPriceData!E$15,CalculationsAndCharts!$A131+$A$11,IF($C$7,8,0),1,1) -> 93.47 | G131: =OFFSET(InputPriceData!F$15,CalculationsAndCharts!$A131+$A$11,IF($C$7,8,0),1,1) -> 93.58 | J131: 99 | K131: 2014-02-12 | L131: 5343500 | M131: 94.25 | N131: 95.03 | O131: 94.13 | P131: 94.13 | Q131: 2
A132: 100 | B132: =OFFSET(InputPriceData!B$15,CalculationsAndCharts!$A132+$A$11,0,1,1) -> 2013-12-16 | C132: =OFFSET(InputPriceData!G$15,CalculationsAndCharts!$A132+$A$11,IF($C$7,8,0),1,1) -> 4868100 | D132: =OFFSET(InputPriceData!C$15,CalculationsAndCharts!$A132+$A$11,IF($C$7,8,0),1,1) -> 94.16 | E132: =OFFSET(InputPriceData!D$15,CalculationsAndCharts!$A132+$A$11,IF($C$7,8,0),1,1) -> 94.97 | F132: =OFFSET(InputPriceData!E$15,CalculationsAndCharts!$A132+$A$11,IF($C$7,8,0),1,1) -> 94.09 | G132: =OFFSET(InputPriceData!F$15,CalculationsAndCharts!$A132+$A$11,IF($C$7,8,0),1,1) -> 94.64 | J132: 100 | K132: 2014-02-10 | L132: 0 | M132: 94.73 | N132: 94.93 | O132: 94.33 | P132: 94.33 | Q132: 1
A133: 101 | B133: =OFFSET(InputPriceData!B$15,CalculationsAndCharts!$A133+$A$11,0,1,1) -> 2013-12-13 | C133: =OFFSET(InputPriceData!G$15,CalculationsAndCharts!$A133+$A$11,IF($C$7,8,0),1,1) -> 3277500 | D133: =OFFSET(InputPriceData!C$15,CalculationsAndCharts!$A133+$A$11,IF($C$7,8,0),1,1) -> 93.39 | E133: =OFFSET(InputPriceData!D$15,CalculationsAndCharts!$A133+$A$11,IF($C$7,8,0),1,1) -> 93.82 | F133: =OFFSET(InputPriceData!E$15,CalculationsAndCharts!$A133+$A$11,IF($C$7,8,0),1,1) -> 93.25 | G133: =OFFSET(InputPriceData!F$15,CalculationsAndCharts!$A133+$A$11,IF($C$7,8,0),1,1) -> 93.64 | J133: 101 | K133: 2014-02-07 | L133: 0 | M133: 94.53 | N133: 94.73 | O133: 94.53 | P133: 94.73 | Q133: 0
A134: 102 | B134: =OFFSET(InputPriceData!B$15,CalculationsAndCharts!$A134+$A$11,0,1,1) -> 2013-12-12 | C134: =OFFSET(InputPriceData!G$15,CalculationsAndCharts!$A134+$A$11,IF($C$7,8,0),1,1) -> 5719900 | D134: =OFFSET(InputPriceData!C$15,CalculationsAndCharts!$A134+$A$11,IF($C$7,8,0),1,1) -> 94.6 | E134: =OFFSET(InputPriceData!D$15,CalculationsAndCharts!$A134+$A$11,IF($C$7,8,0),1,1) -> 94.88 | F134: =OFFSET(InputPriceData!E$15,CalculationsAndCharts!$A134+$A$11,IF($C$7,8,0),1,1) -> 93.25 | G134: =OFFSET(InputPriceData!F$15,CalculationsAndCharts!$A134+$A$11,IF($C$7,8,0),1,1) -> 93.31 | J134: 102 | K134: 2014-02-07 | L134: 0 | M134: 94.33 | N134: 94.53 | O134: 94.33 | P134: 94.53 | Q134: 0
A135: 103 | B135: =OFFSET(InputPriceData!B$15,CalculationsAndCharts!$A135+$A$11,0,1,1) -> 2013-12-11 | C135: =OFFSET(InputPriceData!G$15,CalculationsAndCharts!$A135+$A$11,IF($C$7,8,0),1,1) -> 5194500 | D135: =OFFSET(InputPriceData!C$15,CalculationsAndCharts!$A135+$A$11,IF($C$7,8,0),1,1) -> 94.71 | E135: =OFFSET(InputPriceData!D$15,CalculationsAndCharts!$A135+$A$11,IF($C$7,8,0),1,1) -> 94.92 | F135: =OFFSET(InputPriceData!E$15,CalculationsAndCharts!$A135+$A$11,IF($C$7,8,0),1,1) -> 94.37 | G135: =OFFSET(InputPriceData!F$15,CalculationsAndCharts!$A135+$A$11,IF($C$7,8,0),1,1) -> 94.46 | J135: 103 | K135: 2014-02-07 | L135: 0 | M135: 94.13 | N135: 94.33 | O135: 94.13 | P135: 94.33 | Q135: 0
A136: 104 | B136: =OFFSET(InputPriceData!B$15,CalculationsAndCharts!$A136+$A$11,0,1,1) -> 2013-12-10 | C136: =OFFSET(InputPriceData!G$15,CalculationsAndCharts!$A136+$A$11,IF($C$7,8,0),1,1) -> 4190600 | D136: =OFFSET(InputPriceData!C$15,CalculationsAndCharts!$A136+$A$11,IF($C$7,8,0),1,1) -> 94.88 | E136: =OFFSET(InputPriceData!D$15,CalculationsAndCharts!$A136+$A$11,IF($C$7,8,0),1,1) -> 94.89 | F136: =OFFSET(InputPriceData!E$15,CalculationsAndCharts!$A136+$A$11,IF($C$7,8,0),1,1) -> 94.26 | G136: =OFFSET(InputPriceData!F$15,CalculationsAndCharts!$A136+$A$11,IF($C$7,8,0),1,1) -> 94.62 | J136: 104 | K136: 2014-02-07 | L136: 0 | M136: 93.93 | N136: 94.13 | O136: 93.93 | P136: 94.13 | Q136: 1
A137: 105 | B137: =OFFSET(InputPriceData!B$15,CalculationsAndCharts!$A137+$A$11,0,1,1) -> 2013-12-09 | C137: =OFFSET(InputPriceData!G$15,CalculationsAndCharts!$A137+$A$11,IF($C$7,8,0),1,1) -> 5056100 | D137: =OFFSET(InputPriceData!C$15,CalculationsAndCharts!$A137+$A$11,IF($C$7,8,0),1,1) -> 95.32 | E137: =OFFSET(InputPriceData!D$15,CalculationsAndCharts!$A137+$A$11,IF($C$7,8,0),1,1) -> 95.68 | F137: =OFFSET(InputPriceData!E$15,CalculationsAndCharts!$A137+$A$11,IF($C$7,8,0),1,1) -> 94.64 | G137: =OFFSET(InputPriceData!F$15,CalculationsAndCharts!$A137+$A$11,IF($C$7,8,0),1,1) -> 94.91 | J137: 105 | K137: 2014-02-06 | L137: 0 | M137: 93.73 | N137: 93.93 | O137: 93.73 | P137: 93.93 | Q137: 0
A138: 106 | B138: =OFFSET(InputPriceData!B$15,CalculationsAndCharts!$A138+$A$11,0,1,1) -> 2013-12-06 | C138: =OFFSET(InputPriceData!G$15,CalculationsAndCharts!$A138+$A$11,IF($C$7,8,0),1,1) -> 5811200 | D138: =OFFSET(InputPriceData!C$15,CalculationsAndCharts!$A138+$A$11,IF($C$7,8,0),1,1) -> 95.13 | E138: =OFFSET(InputPriceData!D$15,CalculationsAndCharts!$A138+$A$11,IF($C$7,8,0),1,1) -> 96.13 | F138: =OFFSET(InputPriceData!E$15,CalculationsAndCharts!$A138+$A$11,IF($C$7,8,0),1,1) -> 95.09 | G138: =OFFSET(InputPriceData!F$15,CalculationsAndCharts!$A138+$A$11,IF($C$7,8,0),1,1) -> 95.98 | J138: 106 | K138: 2014-02-06 | L138: 0 | M138: 93.53 | N138: 93.73 | O138: 93.53 | P138: 93.73 | Q138: 0
A139: 107 | B139: =OFFSET(InputPriceData!B$15,CalculationsAndCharts!$A139+$A$11,0,1,1) -> 2013-12-05 | C139: =OFFSET(InputPriceData!G$15,CalculationsAndCharts!$A139+$A$11,IF($C$7,8,0),1,1) -> 5076500 | D139: =OFFSET(InputPriceData!C$15,CalculationsAndCharts!$A139+$A$11,IF($C$7,8,0),1,1) -> 94.56 | E139: =OFFSET(InputPriceData!D$15,CalculationsAndCharts!$A139+$A$11,IF($C$7,8,0),1,1) -> 95.01 | F139: =OFFSET(InputPriceData!E$15,CalculationsAndCharts!$A139+$A$11,IF($C$7,8,0),1,1) -> 94.39 | G139: =OFFSET(InputPriceData!F$15,CalculationsAndCharts!$A139+$A$11,IF($C$7,8,0),1,1) -> 94.62 | J139: 107 | K139: 2014-02-06 | L139: 0 | M139: 93.33 | N139: 93.53 | O139: 93.33 | P139: 93.53 | Q139: 0
A140: 108 | B140: =OFFSET(InputPriceData!B$15,CalculationsAndCharts!$A140+$A$11,0,1,1) -> 2013-12-04 | C140: =OFFSET(InputPriceData!G$15,CalculationsAndCharts!$A140+$A$11,IF($C$7,8,0),1,1) -> 4951300 | D140: =OFFSET(InputPriceData!C$15,CalculationsAndCharts!$A140+$A$11,IF($C$7,8,0),1,1) -> 94.85 | E140: =OFFSET(InputPriceData!D$15,CalculationsAndCharts!$A140+$A$11,IF($C$7,8,0),1,1) -> 95.32 | F140: =OFFSET(InputPriceData!E$15,CalculationsAndCharts!$A140+$A$11,IF($C$7,8,0),1,1) -> 94.55 | G140: =OFFSET(InputPriceData!F$15,CalculationsAndCharts!$A140+$A$11,IF($C$7,8,0),1,1) -> 94.9 | J140: 108 | K140: 2014-02-06 | L140: 0 | M140: 93.13 | N140: 93.33 | O140: 93.13 | P140: 93.33 | Q140: 0
A141: 109 | B141: =OFFSET(InputPriceData!B$15,CalculationsAndCharts!$A141+$A$11,0,1,1) -> 2013-12-03 | C141: =OFFSET(InputPriceData!G$15,CalculationsAndCharts!$A141+$A$11,IF($C$7,8,0),1,1) -> 4851900 | D141: =OFFSET(InputPriceData!C$15,CalculationsAndCharts!$A141+$A$11,IF($C$7,8,0),1,1) -> 95.94 | E141: =OFFSET(InputPriceData!D$15,CalculationsAndCharts!$A141+$A$11,IF($C$7,8,0),1,1) -> 95.94 | F141: =OFFSET(InputPriceData!E$15,CalculationsAndCharts!$A141+$A$11,IF($C$7,8,0),1,1) -> 95.26 | G141: =OFFSET(InputPriceData!F$15,CalculationsAndCharts!$A141+$A$11,IF($C$7,8,0),1,1) -> 95.57 | J141: 109 | K141: 2014-02-06 | L141: 0 | M141: 92.93 | N141: 93.13 | O141: 92.93 | P141: 93.13 | Q141: 0
A142: 110 | B142: =OFFSET(InputPriceData!B$15,CalculationsAndCharts!$A142+$A$11,0,1,1) -> 2013-12-02 | C142: =OFFSET(InputPriceData!G$15,CalculationsAndCharts!$A142+$A$11,IF($C$7,8,0),1,1) -> 4810000 | D142: =OFFSET(InputPriceData!C$15,CalculationsAndCharts!$A142+$A$11,IF($C$7,8,0),1,1) -> 96.46 | E142: =OFFSET(InputPriceData!D$15,CalculationsAndCharts!$A142+$A$11,IF($C$7,8,0),1,1) -> 96.46 | F142: =OFFSET(InputPriceData!E$15,CalculationsAndCharts!$A142+$A$11,IF($C$7,8,0),1,1) -> 95.51 | G142: =OFFSET(InputPriceData!F$15,CalculationsAndCharts!$A142+$A$11,IF($C$7,8,0),1,1) -> 95.69 | J142: 110 | K142: 2014-02-06 | L142: 4958900 | M142: 92.73 | N142: 92.93 | O142: 92.73 | P142: 92.93 | Q142: 1
A143: 111 | B143: =OFFSET(InputPriceData!B$15,CalculationsAndCharts!$A143+$A$11,0,1,1) -> 2013-11-29 | C143: =OFFSET(InputPriceData!G$15,CalculationsAndCharts!$A143+$A$11,IF($C$7,8,0),1,1) -> 2920300 | D143: =OFFSET(InputPriceData!C$15,CalculationsAndCharts!$A143+$A$11,IF($C$7,8,0),1,1) -> 96.43 | E143: =OFFSET(InputPriceData!D$15,CalculationsAndCharts!$A143+$A$11,IF($C$7,8,0),1,1) -> 96.78 | F143: =OFFSET(InputPriceData!E$15,CalculationsAndCharts!$A143+$A$11,IF($C$7,8,0),1,1) -> 96.26 | G143: =OFFSET(InputPriceData!F$15,CalculationsAndCharts!$A143+$A$11,IF($C$7,8,0),1,1) -> 96.55 | J143: 111 | K143: 2014-02-05 | L143: 6300400 | M143: 92.33 | N143: 92.73 | O143: 92.3 | P143: 92.73 | Q143: 1
A144: 112 | B144: =OFFSET(InputPriceData!B$15,CalculationsAndCharts!$A144+$A$11,0,1,1) -> 2013-11-27 | C144: =OFFSET(InputPriceData!G$15,CalculationsAndCharts!$A144+$A$11,IF($C$7,8,0),1,1) -> 3501500 | D144: =OFFSET(InputPriceData!C$15,CalculationsAndCharts!$A144+$A$11,IF($C$7,8,0),1,1) -> 96.8 | E144: =OFFSET(InputPriceData!D$15,CalculationsAndCharts!$A144+$A$11,IF($C$7,8,0),1,1) -> 96.83 | F144: =OFFSET(InputPriceData!E$15,CalculationsAndCharts!$A144+$A$11,IF($C$7,8,0),1,1) -> 96.13 | G144: =OFFSET(InputPriceData!F$15,CalculationsAndCharts!$A144+$A$11,IF($C$7,8,0),1,1) -> 96.24 | J144: 112 | K144: 2014-02-04 | L144: 0 | M144: 92.53 | N144: 92.53 | O144: 92.33 | P144: 92.33 | Q144: 1
A145: 113 | B145: =OFFSET(InputPriceData!B$15,CalculationsAndCharts!$A145+$A$11,0,1,1) -> 2013-11-26 | C145: =OFFSET(InputPriceData!G$15,CalculationsAndCharts!$A145+$A$11,IF($C$7,8,0),1,1) -> 5517400 | D145: =OFFSET(InputPriceData!C$15,CalculationsAndCharts!$A145+$A$11,IF($C$7,8,0),1,1) -> 97.16 | E145: =OFFSET(InputPriceData!D$15,CalculationsAndCharts!$A145+$A$11,IF($C$7,8,0),1,1) -> 97.45 | F145: =OFFSET(InputPriceData!E$15,CalculationsAndCharts!$A145+$A$11,IF($C$7,8,0),1,1) -> 96.52 | G145: =OFFSET(InputPriceData!F$15,CalculationsAndCharts!$A145+$A$11,IF($C$7,8,0),1,1) -> 96.57 | J145: 113 | K145: 2014-02-03 | L145: 0 | M145: 92.73 | N145: 92.73 | O145: 92.53 | P145: 92.53 | Q145: 0
A146: 114 | B146: =OFFSET(InputPriceData!B$15,CalculationsAndCharts!$A146+$A$11,0,1,1) -> 2013-11-25 | C146: =OFFSET(InputPriceData!G$15,CalculationsAndCharts!$A146+$A$11,IF($C$7,8,0),1,1) -> 20420800 | D146: =OFFSET(InputPriceData!C$15,CalculationsAndCharts!$A146+$A$11,IF($C$7,8,0),1,1) -> 97.11 | E146: =OFFSET(InputPriceData!D$15,CalculationsAndCharts!$A146+$A$11,IF($C$7,8,0),1,1) -> 97.62 | F146: =OFFSET(InputPriceData!E$15,CalculationsAndCharts!$A146+$A$11,IF($C$7,8,0),1,1) -> 97.01 | G146: =OFFSET(InputPriceData!F$15,CalculationsAndCharts!$A146+$A$11,IF($C$7,8,0),1,1) -> 97.28 | J146: 114 | K146: 2014-02-03 | L146: 0 | M146: 93.13 | N146: 93.33 | O146: 92.73 | P146: 92.73 | Q146: 1
A147: 115 | B147: =OFFSET(InputPriceData!B$15,CalculationsAndCharts!$A147+$A$11,0,1,1) -> 2013-11-22 | C147: =OFFSET(InputPriceData!G$15,CalculationsAndCharts!$A147+$A$11,IF($C$7,8,0),1,1) -> 16495500 | D147: =OFFSET(InputPriceData!C$15,CalculationsAndCharts!$A147+$A$11,IF($C$7,8,0),1,1) -> 96.22 | E147: =OFFSET(InputPriceData!D$15,CalculationsAndCharts!$A147+$A$11,IF($C$7,8,0),1,1) -> 96.88 | F147: =OFFSET(InputPriceData!E$15,CalculationsAndCharts!$A147+$A$11,IF($C$7,8,0),1,1) -> 95.75 | G147: =OFFSET(InputPriceData!F$15,CalculationsAndCharts!$A147+$A$11,IF($C$7,8,0),1,1) -> 96.64 | J147: 115 | K147: 2014-01-31 | L147: 4987400 | M147: 92.6 | N147: 93.13 | O147: 92.15 | P147: 93.13 | Q147: 2
A148: 116 | B148: =OFFSET(InputPriceData!B$15,CalculationsAndCharts!$A148+$A$11,0,1,1) -> 2013-11-21 | C148: =OFFSET(InputPriceData!G$15,CalculationsAndCharts!$A148+$A$11,IF($C$7,8,0),1,1) -> 12884800 | D148: =OFFSET(InputPriceData!C$15,CalculationsAndCharts!$A148+$A$11,IF($C$7,8,0),1,1) -> 96.18 | E148: =OFFSET(InputPriceData!D$15,CalculationsAndCharts!$A148+$A$11,IF($C$7,8,0),1,1) -> 96.46 | F148: =OFFSET(InputPriceData!E$15,CalculationsAndCharts!$A148+$A$11,IF($C$7,8,0),1,1) -> 95.97 | G148: =OFFSET(InputPriceData!F$15,CalculationsAndCharts!$A148+$A$11,IF($C$7,8,0),1,1) -> 96.08 | J148: 116 | K148: 2014-01-29 | L148: 0 | M148: 92.93 | N148: 92.93 | O148: 92.73 | P148: 92.73 | Q148: 0
A149: 117 | B149: =OFFSET(InputPriceData!B$15,CalculationsAndCharts!$A149+$A$11,0,1,1) -> 2013-11-20 | C149: =OFFSET(InputPriceData!G$15,CalculationsAndCharts!$A149+$A$11,IF($C$7,8,0),1,1) -> 3815100 | D149: =OFFSET(InputPriceData!C$15,CalculationsAndCharts!$A149+$A$11,IF($C$7,8,0),1,1) -> 95.95 | E149: =OFFSET(InputPriceData!D$15,CalculationsAndCharts!$A149+$A$11,IF($C$7,8,0),1,1) -> 96.42 | F149: =OFFSET(InputPriceData!E$15,CalculationsAndCharts!$A149+$A$11,IF($C$7,8,0),1,1) -> 95.57 | G149: =OFFSET(InputPriceData!F$15,CalculationsAndCharts!$A149+$A$11,IF($C$7,8,0),1,1) -> 95.92 | J149: 117 | K149: 2014-01-29 | L149: 0 | M149: 93.13 | N149: 93.13 | O149: 92.93 | P149: 92.93 | Q149: 0
A150: 118 | B150: =OFFSET(InputPriceData!B$15,CalculationsAndCharts!$A150+$A$11,0,1,1) -> 2013-11-19 | C150: =OFFSET(InputPriceData!G$15,CalculationsAndCharts!$A150+$A$11,IF($C$7,8,0),1,1) -> 3836600 | D150: =OFFSET(InputPriceData!C$15,CalculationsAndCharts!$A150+$A$11,IF($C$7,8,0),1,1) -> 95.9 | E150: =OFFSET(InputPriceData!D$15,CalculationsAndCharts!$A150+$A$11,IF($C$7,8,0),1,1) -> 96.65 | F150: =OFFSET(InputPriceData!E$15,CalculationsAndCharts!$A150+$A$11,IF($C$7,8,0),1,1) -> 95.74 | G150: =OFFSET(InputPriceData!F$15,CalculationsAndCharts!$A150+$A$11,IF($C$7,8,0),1,1) -> 96.35 | J150: 118 | K150: 2014-01-29 | L150: 3682800 | M150: 93.33 | N150: 93.33 | O150: 93.13 | P150: 93.13 | Q150: 1
A151: 119 | B151: =OFFSET(InputPriceData!B$15,CalculationsAndCharts!$A151+$A$11,0,1,1) -> 2013-11-18 | C151: =OFFSET(InputPriceData!G$15,CalculationsAndCharts!$A151+$A$11,IF($C$7,8,0),1,1) -> 4966700 | D151: =OFFSET(InputPriceData!C$15,CalculationsAndCharts!$A151+$A$11,IF($C$7,8,0),1,1) -> 95.29 | E151: =OFFSET(InputPriceData!D$15,CalculationsAndCharts!$A151+$A$11,IF($C$7,8,0),1,1) -> 96.17 | F151: =OFFSET(InputPriceData!E$15,CalculationsAndCharts!$A151+$A$11,IF($C$7,8,0),1,1) -> 95.29 | G151: =OFFSET(InputPriceData!F$15,CalculationsAndCharts!$A151+$A$11,IF($C$7,8,0),1,1) -> 96.03 | J151: 119 | K151: 2014-01-28 | L151: 0 | M151: 93.53 | N151: 93.53 | O151: 93.33 | P151: 93.33 | Q151: 1
A152: 120 | B152: =OFFSET(InputPriceData!B$15,CalculationsAndCharts!$A152+$A$11,0,1,1) -> 2013-11-15 | C152: =OFFSET(InputPriceData!G$15,CalculationsAndCharts!$A152+$A$11,IF($C$7,8,0),1,1) -> 7096800 | D152: =OFFSET(InputPriceData!C$15,CalculationsAndCharts!$A152+$A$11,IF($C$7,8,0),1,1) -> 95.83 | E152: =OFFSET(InputPriceData!D$15,CalculationsAndCharts!$A152+$A$11,IF($C$7,8,0),1,1) -> 96.09 | F152: =OFFSET(InputPriceData!E$15,CalculationsAndCharts!$A152+$A$11,IF($C$7,8,0),1,1) -> 94.8 | G152: =OFFSET(InputPriceData!F$15,CalculationsAndCharts!$A152+$A$11,IF($C$7,8,0),1,1) -> 95.31 | J152: 120 | K152: 2014-01-27 | L152: 0 | M152: 93.73 | N152: 93.73 | O152: 93.53 | P152: 93.53 | Q152: 0
A153: 121 | B153: =OFFSET(InputPriceData!B$15,CalculationsAndCharts!$A153+$A$11,0,1,1) -> 2013-11-14 | C153: =OFFSET(InputPriceData!G$15,CalculationsAndCharts!$A153+$A$11,IF($C$7,8,0),1,1) -> 6594200 | D153: =OFFSET(InputPriceData!C$15,CalculationsAndCharts!$A153+$A$11,IF($C$7,8,0),1,1) -> 96.55 | E153: =OFFSET(InputPriceData!D$15,CalculationsAndCharts!$A153+$A$11,IF($C$7,8,0),1,1) -> 97.06 | F153: =OFFSET(InputPriceData!E$15,CalculationsAndCharts!$A153+$A$11,IF($C$7,8,0),1,1) -> 95.57 | G153: =OFFSET(InputPriceData!F$15,CalculationsAndCharts!$A153+$A$11,IF($C$7,8,0),1,1) -> 95.94 | J153: 121 | K153: 2014-01-27 | L153: 0 | M153: 93.93 | N153: 93.93 | O153: 93.73 | P153: 93.73 | Q153: 1
A154: 122 | B154: =OFFSET(InputPriceData!B$15,CalculationsAndCharts!$A154+$A$11,0,1,1) -> 2013-11-13 | C154: =OFFSET(InputPriceData!G$15,CalculationsAndCharts!$A154+$A$11,IF($C$7,8,0),1,1) -> 4164800 | D154: =OFFSET(InputPriceData!C$15,CalculationsAndCharts!$A154+$A$11,IF($C$7,8,0),1,1) -> 95.85 | E154: =OFFSET(InputPriceData!D$15,CalculationsAndCharts!$A154+$A$11,IF($C$7,8,0),1,1) -> 96.49 | F154: =OFFSET(InputPriceData!E$15,CalculationsAndCharts!$A154+$A$11,IF($C$7,8,0),1,1) -> 95.69 | G154: =OFFSET(InputPriceData!F$15,CalculationsAndCharts!$A154+$A$11,IF($C$7,8,0),1,1) -> 96.48 | J154: 122 | K154: 2014-01-24 | L154: 7146000 | M154: 94.33 | N154: 94.51 | O154: 93.93 | P154: 93.93 | Q154: 1
A155: 123 | B155: =OFFSET(InputPriceData!B$15,CalculationsAndCharts!$A155+$A$11,0,1,1) -> 2013-11-12 | C155: =OFFSET(InputPriceData!G$15,CalculationsAndCharts!$A155+$A$11,IF($C$7,8,0),1,1) -> 3845000 | D155: =OFFSET(InputPriceData!C$15,CalculationsAndCharts!$A155+$A$11,IF($C$7,8,0),1,1) -> 95.46 | E155: =OFFSET(InputPriceData!D$15,CalculationsAndCharts!$A155+$A$11,IF($C$7,8,0),1,1) -> 96.14 | F155: =OFFSET(InputPriceData!E$15,CalculationsAndCharts!$A155+$A$11,IF($C$7,8,0),1,1) -> 95.24 | G155: =OFFSET(InputPriceData!F$15,CalculationsAndCharts!$A155+$A$11,IF($C$7,8,0),1,1) -> 96.04 | J155: 123 | K155: 2014-01-23 | L155: 4976400 | M155: 93.93 | N155: 94.33 | O155: 94.08 | P155: 94.33 | Q155: 1
A156: 124 | B156: =OFFSET(InputPriceData!B$15,CalculationsAndCharts!$A156+$A$11,0,1,1) -> 2013-11-11 | C156: =OFFSET(InputPriceData!G$15,CalculationsAndCharts!$A156+$A$11,IF($C$7,8,0),1,1) -> 2573800 | D156: =OFFSET(InputPriceData!C$15,CalculationsAndCharts!$A156+$A$11,IF($C$7,8,0),1,1) -> 95.22 | E156: =OFFSET(InputPriceData!D$15,CalculationsAndCharts!$A156+$A$11,IF($C$7,8,0),1,1) -> 95.87 | F156: =OFFSET(InputPriceData!E$15,CalculationsAndCharts!$A156+$A$11,IF($C$7,8,0),1,1) -> 95.19 | G156: =OFFSET(InputPriceData!F$15,CalculationsAndCharts!$A156+$A$11,IF($C$7,8,0),1,1) -> 95.48 | J156: 124 | K156: 2014-01-22 | L156: 6462700 | M156: 94.13 | N156: 94.13 | O156: 93.93 | P156: 93.93 | Q156: 1
A157: 125 | B157: =OFFSET(InputPriceData!B$15,CalculationsAndCharts!$A157+$A$11,0,1,1) -> 2013-11-08 | C157: =OFFSET(InputPriceData!G$15,CalculationsAndCharts!$A157+$A$11,IF($C$7,8,0),1,1) -> 5052400 | D157: =OFFSET(InputPriceData!C$15,CalculationsAndCharts!$A157+$A$11,IF($C$7,8,0),1,1) -> 95.56 | E157: =OFFSET(InputPriceData!D$15,CalculationsAndCharts!$A157+$A$11,IF($C$7,8,0),1,1) -> 95.69 | F157: =OFFSET(InputPriceData!E$15,CalculationsAndCharts!$A157+$A$11,IF($C$7,8,0),1,1) -> 94.72 | G157: =OFFSET(InputPriceData!F$15,CalculationsAndCharts!$A157+$A$11,IF($C$7,8,0),1,1) -> 95.4 | J157: 125 | K157: 2014-01-21 | L157: 0 | M157: 94.33 | N157: 94.33 | O157: 94.13 | P157: 94.13 | Q157: 1
A158: 126 | B158: =OFFSET(InputPriceData!B$15,CalculationsAndCharts!$A158+$A$11,0,1,1) -> 2013-11-07 | C158: =OFFSET(InputPriceData!G$15,CalculationsAndCharts!$A158+$A$11,IF($C$7,8,0),1,1) -> 4921000 | D158: =OFFSET(InputPriceData!C$15,CalculationsAndCharts!$A158+$A$11,IF($C$7,8,0),1,1) -> 96.33 | E158: =OFFSET(InputPriceData!D$15,CalculationsAndCharts!$A158+$A$11,IF($C$7,8,0),1,1) -> 96.46 | F158: =OFFSET(InputPriceData!E$15,CalculationsAndCharts!$A158+$A$11,IF($C$7,8,0),1,1) -> 95.17 | G158: =OFFSET(InputPriceData!F$15,CalculationsAndCharts!$A158+$A$11,IF($C$7,8,0),1,1) -> 95.58 | J158: 126 | K158: 2014-01-17 | L158: 0 | M158: 94.53 | N158: 94.53 | O158: 94.33 | P158: 94.33 | Q158: 0
A159: 127 | B159: =OFFSET(InputPriceData!B$15,CalculationsAndCharts!$A159+$A$11,0,1,1) -> 2013-11-06 | C159: =OFFSET(InputPriceData!G$15,CalculationsAndCharts!$A159+$A$11,IF($C$7,8,0),1,1) -> 4365900 | D159: =OFFSET(InputPriceData!C$15,CalculationsAndCharts!$A159+$A$11,IF($C$7,8,0),1,1) -> 96.03 | E159: =OFFSET(InputPriceData!D$15,CalculationsAndCharts!$A159+$A$11,IF($C$7,8,0),1,1) -> 96.56 | F159: =OFFSET(InputPriceData!E$15,CalculationsAndCharts!$A159+$A$11,IF($C$7,8,0),1,1) -> 95.85 | G159: =OFFSET(InputPriceData!F$15,CalculationsAndCharts!$A159+$A$11,IF($C$7,8,0),1,1) -> 96.27 | J159: 127 | K159: 2014-01-17 | L159: 0 | M159: 94.93 | N159: 95.13 | O159: 94.53 | P159: 94.53 | Q159: 1
A160: 128 | B160: =OFFSET(InputPriceData!B$15,CalculationsAndCharts!$A160+$A$11,0,1,1) -> 2013-11-05 | C160: =OFFSET(InputPriceData!G$15,CalculationsAndCharts!$A160+$A$11,IF($C$7,8,0),1,1) -> 4338200 | D160: =OFFSET(InputPriceData!C$15,CalculationsAndCharts!$A160+$A$11,IF($C$7,8,0),1,1) -> 95.76 | E160: =OFFSET(InputPriceData!D$15,CalculationsAndCharts!$A160+$A$11,IF($C$7,8,0),1,1) -> 96.12 | F160: =OFFSET(InputPriceData!E$15,CalculationsAndCharts!$A160+$A$11,IF($C$7,8,0),1,1) -> 95.41 | G160: =OFFSET(InputPriceData!F$15,CalculationsAndCharts!$A160+$A$11,IF($C$7,8,0),1,1) -> 95.79 | J160: 128 | K160: 2014-01-16 | L160: 0 | M160: 94.73 | N160: 94.93 | O160: 94.73 | P160: 94.93 | Q160: 0
A161: 129 | B161: =OFFSET(InputPriceData!B$15,CalculationsAndCharts!$A161+$A$11,0,1,1) -> 2013-11-04 | C161: =OFFSET(InputPriceData!G$15,CalculationsAndCharts!$A161+$A$11,IF($C$7,8,0),1,1) -> 5023900 | D161: =OFFSET(InputPriceData!C$15,CalculationsAndCharts!$A161+$A$11,IF($C$7,8,0),1,1) -> 95.64 | E161: =OFFSET(InputPriceData!D$15,CalculationsAndCharts!$A161+$A$11,IF($C$7,8,0),1,1) -> 95.88 | F161: =OFFSET(InputPriceData!E$15,CalculationsAndCharts!$A161+$A$11,IF($C$7,8,0),1,1) -> 95.22 | G161: =OFFSET(InputPriceData!F$15,CalculationsAndCharts!$A161+$A$11,IF($C$7,8,0),1,1) -> 95.69 | J161: 129 | K161: 2014-01-16 | L161: 7402800 | M161: 94.68 | N161: 94.73 | O161: 94.34 | P161: 94.73 | Q161: 3
A162: 130 | B162: =OFFSET(InputPriceData!B$15,CalculationsAndCharts!$A162+$A$11,0,1,1) -> 2013-11-01 | C162: =OFFSET(InputPriceData!G$15,CalculationsAndCharts!$A162+$A$11,IF($C$7,8,0),1,1) -> 5127300 | D162: =OFFSET(InputPriceData!C$15,CalculationsAndCharts!$A162+$A$11,IF($C$7,8,0),1,1) -> 94.91 | E162: =OFFSET(InputPriceData!D$15,CalculationsAndCharts!$A162+$A$11,IF($C$7,8,0),1,1) -> 95.88 | F162: =OFFSET(InputPriceData!E$15,CalculationsAndCharts!$A162+$A$11,IF($C$7,8,0),1,1) -> 94.91 | G162: =OFFSET(InputPriceData!F$15,CalculationsAndCharts!$A162+$A$11,IF($C$7,8,0),1,1) -> 95.62 | J162: 130 | K162: 2014-01-13 | L162: 0 | M162: 94.53 | N162: 94.53 | O162: 94.33 | P162: 94.33 | Q162: 0
A163: 131 | B163: =OFFSET(InputPriceData!B$15,CalculationsAndCharts!$A163+$A$11,0,1,1) -> 2013-10-31 | C163: =OFFSET(InputPriceData!G$15,CalculationsAndCharts!$A163+$A$11,IF($C$7,8,0),1,1) -> 4271300 | D163: =OFFSET(InputPriceData!C$15,CalculationsAndCharts!$A163+$A$11,IF($C$7,8,0),1,1) -> 94.61 | E163: =OFFSET(InputPriceData!D$15,CalculationsAndCharts!$A163+$A$11,IF($C$7,8,0),1,1) -> 95.1 | F163: =OFFSET(InputPriceData!E$15,CalculationsAndCharts!$A163+$A$11,IF($C$7,8,0),1,1) -> 94.52 | G163: =OFFSET(InputPriceData!F$15,CalculationsAndCharts!$A163+$A$11,IF($C$7,8,0),1,1) -> 94.92 | J163: 131 | K163: 2014-01-13 | L163: 13221200 | M163: 95.02 | N163: 95.41 | O163: 94.53 | P163: 94.53 | Q163: 2
A164: 132 | B164: =OFFSET(InputPriceData!B$15,CalculationsAndCharts!$A164+$A$11,0,1,1) -> 2013-10-30 | C164: =OFFSET(InputPriceData!G$15,CalculationsAndCharts!$A164+$A$11,IF($C$7,8,0),1,1) -> 3404300 | D164: =OFFSET(InputPriceData!C$15,CalculationsAndCharts!$A164+$A$11,IF($C$7,8,0),1,1) -> 94.57 | E164: =OFFSET(InputPriceData!D$15,CalculationsAndCharts!$A164+$A$11,IF($C$7,8,0),1,1) -> 94.84 | F164: =OFFSET(InputPriceData!E$15,CalculationsAndCharts!$A164+$A$11,IF($C$7,8,0),1,1) -> 94.13 | G164: =OFFSET(InputPriceData!F$15,CalculationsAndCharts!$A164+$A$11,IF($C$7,8,0),1,1) -> 94.43 | J164: 132 | K164: 2014-01-09 | L164: 0 | M164: 94.93 | N164: 94.93 | O164: 94.73 | P164: 94.73 | Q164: 1
A165: 133 | B165: =OFFSET(InputPriceData!B$15,CalculationsAndCharts!$A165+$A$11,0,1,1) -> 2013-10-29 | C165: =OFFSET(InputPriceData!G$15,CalculationsAndCharts!$A165+$A$11,IF($C$7,8,0),1,1) -> 3975100 | D165: =OFFSET(InputPriceData!C$15,CalculationsAndCharts!$A165+$A$11,IF($C$7,8,0),1,1) -> 94.03 | E165: =OFFSET(InputPriceData!D$15,CalculationsAndCharts!$A165+$A$11,IF($C$7,8,0),1,1) -> 94.5 | F165: =OFFSET(InputPriceData!E$15,CalculationsAndCharts!$A165+$A$11,IF($C$7,8,0),1,1) -> 93.71 | G165: =OFFSET(InputPriceData!F$15,CalculationsAndCharts!$A165+$A$11,IF($C$7,8,0),1,1) -> 94.45 | J165: 133 | K165: 2014-01-08 | L165: 0 | M165: 95.13 | N165: 95.13 | O165: 94.93 | P165: 94.93 | Q165: 0
A166: 134 | B166: =OFFSET(InputPriceData!B$15,CalculationsAndCharts!$A166+$A$11,0,1,1) -> 2013-10-28 | C166: =OFFSET(InputPriceData!G$15,CalculationsAndCharts!$A166+$A$11,IF($C$7,8,0),1,1) -> 3836400 | D166: =OFFSET(InputPriceData!C$15,CalculationsAndCharts!$A166+$A$11,IF($C$7,8,0),1,1) -> 93.11 | E166: =OFFSET(InputPriceData!D$15,CalculationsAndCharts!$A166+$A$11,IF($C$7,8,0),1,1) -> 94.12 | F166: =OFFSET(InputPriceData!E$15,CalculationsAndCharts!$A166+$A$11,IF($C$7,8,0),1,1) -> 93.1 | G166: =OFFSET(InputPriceData!F$15,CalculationsAndCharts!$A166+$A$11,IF($C$7,8,0),1,1) -> 93.78 | J166: 134 | K166: 2014-01-08 | L166: 4881800 | M166: 95.57 | N166: 96.26 | O166: 95.13 | P166: 95.13 | Q166: 2
A167: 135 | B167: =OFFSET(InputPriceData!B$15,CalculationsAndCharts!$A167+$A$11,0,1,1) -> 2013-10-25 | C167: =OFFSET(InputPriceData!G$15,CalculationsAndCharts!$A167+$A$11,IF($C$7,8,0),1,1) -> 3055900 | D167: =OFFSET(InputPriceData!C$15,CalculationsAndCharts!$A167+$A$11,IF($C$7,8,0),1,1) -> 93.2 | E167: =OFFSET(InputPriceData!D$15,CalculationsAndCharts!$A167+$A$11,IF($C$7,8,0),1,1) -> 93.37 | F167: =OFFSET(InputPriceData!E$15,CalculationsAndCharts!$A167+$A$11,IF($C$7,8,0),1,1) -> 92.79 | G167: =OFFSET(InputPriceData!F$15,CalculationsAndCharts!$A167+$A$11,IF($C$7,8,0),1,1) -> 93.2 | J167: 135 | K167: 2014-01-06 | L167: 2965300 | M167: 95.53 | N167: 95.53 | O167: 95.33 | P167: 95.33 | Q167: 1
A168: 136 | B168: =OFFSET(InputPriceData!B$15,CalculationsAndCharts!$A168+$A$11,0,1,1) -> 2013-10-24 | C168: =OFFSET(InputPriceData!G$15,CalculationsAndCharts!$A168+$A$11,IF($C$7,8,0),1,1) -> 3640900 | D168: =OFFSET(InputPriceData!C$15,CalculationsAndCharts!$A168+$A$11,IF($C$7,8,0),1,1) -> 92.84 | E168: =OFFSET(InputPriceData!D$15,CalculationsAndCharts!$A168+$A$11,IF($C$7,8,0),1,1) -> 93.24 | F168: =OFFSET(InputPriceData!E$15,CalculationsAndCharts!$A168+$A$11,IF($C$7,8,0),1,1) -> 92.68 | G168: =OFFSET(InputPriceData!F$15,CalculationsAndCharts!$A168+$A$11,IF($C$7,8,0),1,1) -> 93.11 | J168: 136 | K168: 2014-01-03 | L168: 2925800 | M168: 95.73 | N168: 95.73 | O168: 95.53 | P168: 95.53 | Q168: 1
A169: 137 | B169: =OFFSET(InputPriceData!B$15,CalculationsAndCharts!$A169+$A$11,0,1,1) -> 2013-10-23 | C169: =OFFSET(InputPriceData!G$15,CalculationsAndCharts!$A169+$A$11,IF($C$7,8,0),1,1) -> 4581200 | D169: =OFFSET(InputPriceData!C$15,CalculationsAndCharts!$A169+$A$11,IF($C$7,8,0),1,1) -> 93.5 | E169: =OFFSET(InputPriceData!D$15,CalculationsAndCharts!$A169+$A$11,IF($C$7,8,0),1,1) -> 93.61 | F169: =OFFSET(InputPriceData!E$15,CalculationsAndCharts!$A169+$A$11,IF($C$7,8,0),1,1) -> 92.36 | G169: =OFFSET(InputPriceData!F$15,CalculationsAndCharts!$A169+$A$11,IF($C$7,8,0),1,1) -> 92.64 | J169: 137 | K169: 2014-01-02 | L169: 4853900 | M169: 96.13 | N169: 96.26 | O169: 95.73 | P169: 95.73 | Q169: 2
A170: 138 | B170: =OFFSET(InputPriceData!B$15,CalculationsAndCharts!$A170+$A$11,0,1,1) -> 2013-10-22 | C170: =OFFSET(InputPriceData!G$15,CalculationsAndCharts!$A170+$A$11,IF($C$7,8,0),1,1) -> 5144000 | D170: =OFFSET(InputPriceData!C$15,CalculationsAndCharts!$A170+$A$11,IF($C$7,8,0),1,1) -> 93.11 | E170: =OFFSET(InputPriceData!D$15,CalculationsAndCharts!$A170+$A$11,IF($C$7,8,0),1,1) -> 93.9 | F170: =OFFSET(InputPriceData!E$15,CalculationsAndCharts!$A170+$A$11,IF($C$7,8,0),1,1) -> 92.65 | G170: =OFFSET(InputPriceData!F$15,CalculationsAndCharts!$A170+$A$11,IF($C$7,8,0),1,1) -> 93.54 | J170: 138 | K170: 2013-12-30 | L170: 3965400 | M170: 96.05 | N170: 96.13 | O170: 95.98 | P170: 96.13 | Q170: 2
A171: 139 | B171: =OFFSET(InputPriceData!B$15,CalculationsAndCharts!$A171+$A$11,0,1,1) -> 2013-10-21 | C171: =OFFSET(InputPriceData!G$15,CalculationsAndCharts!$A171+$A$11,IF($C$7,8,0),1,1) -> 9137700 | D171: =OFFSET(InputPriceData!C$15,CalculationsAndCharts!$A171+$A$11,IF($C$7,8,0),1,1) -> 92.14 | E171: =OFFSET(InputPriceData!D$15,CalculationsAndCharts!$A171+$A$11,IF($C$7,8,0),1,1) -> 93.28 | F171: =OFFSET(InputPriceData!E$15,CalculationsAndCharts!$A171+$A$11,IF($C$7,8,0),1,1) -> 91.69 | G171: =OFFSET(InputPriceData!F$15,CalculationsAndCharts!$A171+$A$11,IF($C$7,8,0),1,1) -> 93.02 | J171: 139 | K171: 2013-12-26 | L171: 1155900 | M171: 95.53 | N171: 95.93 | O171: 95.53 | P171: 95.93 | Q171: 1
A172: 140 | B172: =OFFSET(InputPriceData!B$15,CalculationsAndCharts!$A172+$A$11,0,1,1) -> 2013-10-18 | C172: =OFFSET(InputPriceData!G$15,CalculationsAndCharts!$A172+$A$11,IF($C$7,8,0),1,1) -> 7286100 | D172: =OFFSET(InputPriceData!C$15,CalculationsAndCharts!$A172+$A$11,IF($C$7,8,0),1,1) -> 94.11 | E172: =OFFSET(InputPriceData!D$15,CalculationsAndCharts!$A172+$A$11,IF($C$7,8,0),1,1) -> 94.11 | F172: =OFFSET(InputPriceData!E$15,CalculationsAndCharts!$A172+$A$11,IF($C$7,8,0),1,1) -> 92.95 | G172: =OFFSET(InputPriceData!F$15,CalculationsAndCharts!$A172+$A$11,IF($C$7,8,0),1,1) -> 93.62 | J172: 140 | K172: 2013-12-24 | L172: 3296300 | M172: 95.91 | N172: 95.53 | O172: 95.24 | P172: 95.53 | Q172: 2
A173: 141 | B173: =OFFSET(InputPriceData!B$15,CalculationsAndCharts!$A173+$A$11,0,1,1) -> 2013-10-17 | C173: =OFFSET(InputPriceData!G$15,CalculationsAndCharts!$A173+$A$11,IF($C$7,8,0),1,1) -> 3860500 | D173: =OFFSET(InputPriceData!C$15,CalculationsAndCharts!$A173+$A$11,IF($C$7,8,0),1,1) -> 93.6 | E173: =OFFSET(InputPriceData!D$15,CalculationsAndCharts!$A173+$A$11,IF($C$7,8,0),1,1) -> 93.93 | F173: =OFFSET(InputPriceData!E$15,CalculationsAndCharts!$A173+$A$11,IF($C$7,8,0),1,1) -> 93.07 | G173: =OFFSET(InputPriceData!F$15,CalculationsAndCharts!$A173+$A$11,IF($C$7,8,0),1,1) -> 93.88 | J173: 141 | K173: 2013-12-20 | L173: 0 | M173: 95.13 | N173: 95.33 | O173: 95.13 | P173: 95.33 | Q173: 0
A174: 142 | B174: =OFFSET(InputPriceData!B$15,CalculationsAndCharts!$A174+$A$11,0,1,1) -> 2013-10-16 | C174: =OFFSET(InputPriceData!G$15,CalculationsAndCharts!$A174+$A$11,IF($C$7,8,0),1,1) -> 4708700 | D174: =OFFSET(InputPriceData!C$15,CalculationsAndCharts!$A174+$A$11,IF($C$7,8,0),1,1) -> 92.74 | E174: =OFFSET(InputPriceData!D$15,CalculationsAndCharts!$A174+$A$11,IF($C$7,8,0),1,1) -> 93.66 | F174: =OFFSET(InputPriceData!E$15,CalculationsAndCharts!$A174+$A$11,IF($C$7,8,0),1,1) -> 92.58 | G174: =OFFSET(InputPriceData!F$15,CalculationsAndCharts!$A174+$A$11,IF($C$7,8,0),1,1) -> 93.64 | J174: 142 | K174: 2013-12-20 | L174: 0 | M174: 94.93 | N174: 95.13 | O174: 94.93 | P174: 95.13 | Q174: 0
A175: 143 | B175: =OFFSET(InputPriceData!B$15,CalculationsAndCharts!$A175+$A$11,0,1,1) -> 2013-10-15 | C175: =OFFSET(InputPriceData!G$15,CalculationsAndCharts!$A175+$A$11,IF($C$7,8,0),1,1) -> 5878900 | D175: =OFFSET(InputPriceData!C$15,CalculationsAndCharts!$A175+$A$11,IF($C$7,8,0),1,1) -> 92.43 | E175: =OFFSET(InputPriceData!D$15,CalculationsAndCharts!$A175+$A$11,IF($C$7,8,0),1,1) -> 92.63 | F175: =OFFSET(InputPriceData!E$15,CalculationsAndCharts!$A175+$A$11,IF($C$7,8,0),1,1) -> 91.9 | G175: =OFFSET(InputPriceData!F$15,CalculationsAndCharts!$A175+$A$11,IF($C$7,8,0),1,1) -> 92.24 | J175: 143 | K175: 2013-12-20 | L175: 0 | M175: 94.73 | N175: 94.93 | O175: 94.73 | P175: 94.93 | Q175: 0
A176: 144 | B176: =OFFSET(InputPriceData!B$15,CalculationsAndCharts!$A176+$A$11,0,1,1) -> 2013-10-14 | C176: =OFFSET(InputPriceData!G$15,CalculationsAndCharts!$A176+$A$11,IF($C$7,8,0),1,1) -> 3429700 | D176: =OFFSET(InputPriceData!C$15,CalculationsAndCharts!$A176+$A$11,IF($C$7,8,0),1,1) -> 92.85 | E176: =OFFSET(InputPriceData!D$15,CalculationsAndCharts!$A176+$A$11,IF($C$7,8,0),1,1) -> 93.31 | F176: =OFFSET(InputPriceData!E$15,CalculationsAndCharts!$A176+$A$11,IF($C$7,8,0),1,1) -> 92.62 | G176: =OFFSET(InputPriceData!F$15,CalculationsAndCharts!$A176+$A$11,IF($C$7,8,0),1,1) -> 93.15 | J176: 144 | K176: 2013-12-20 | L176: 5476500 | M176: 94.33 | N176: 94.73 | O176: 94.34 | P176: 94.73 | Q176: 1
A177: 145 | B177: =OFFSET(InputPriceData!B$15,CalculationsAndCharts!$A177+$A$11,0,1,1) -> 2013-10-11 | C177: =OFFSET(InputPriceData!G$15,CalculationsAndCharts!$A177+$A$11,IF($C$7,8,0),1,1) -> 4132600 | D177: =OFFSET(InputPriceData!C$15,CalculationsAndCharts!$A177+$A$11,IF($C$7,8,0),1,1) -> 93.11 | E177: =OFFSET(InputPriceData!D$15,CalculationsAndCharts!$A177+$A$11,IF($C$7,8,0),1,1) -> 93.22 | F177: =OFFSET(InputPriceData!E$15,CalculationsAndCharts!$A177+$A$11,IF($C$7,8,0),1,1) -> 92.76 | G177: =OFFSET(InputPriceData!F$15,CalculationsAndCharts!$A177+$A$11,IF($C$7,8,0),1,1) -> 93.16 | J177: 145 | K177: 2013-12-19 | L177: 0 | M177: 94.73 | N177: 94.93 | O177: 94.33 | P177: 94.33 | Q177: 1
A178: 146 | B178: =OFFSET(InputPriceData!B$15,CalculationsAndCharts!$A178+$A$11,0,1,1) -> 2013-10-10 | C178: =OFFSET(InputPriceData!G$15,CalculationsAndCharts!$A178+$A$11,IF($C$7,8,0),1,1) -> 4531000 | D178: =OFFSET(InputPriceData!C$15,CalculationsAndCharts!$A178+$A$11,IF($C$7,8,0),1,1) -> 92.65 | E178: =OFFSET(InputPriceData!D$15,CalculationsAndCharts!$A178+$A$11,IF($C$7,8,0),1,1) -> 92.87 | F178: =OFFSET(InputPriceData!E$15,CalculationsAndCharts!$A178+$A$11,IF($C$7,8,0),1,1) -> 91.96 | G178: =OFFSET(InputPriceData!F$15,CalculationsAndCharts!$A178+$A$11,IF($C$7,8,0),1,1) -> 92.87 | J178: 146 | K178: 2013-12-18 | L178: 0 | M178: 94.53 | N178: 94.73 | O178: 94.53 | P178: 94.73 | Q178: 0
A179: 147 | B179: =OFFSET(InputPriceData!B$15,CalculationsAndCharts!$A179+$A$11,0,1,1) -> 2013-10-09 | C179: =OFFSET(InputPriceData!G$15,CalculationsAndCharts!$A179+$A$11,IF($C$7,8,0),1,1) -> 5159400 | D179: =OFFSET(InputPriceData!C$15,CalculationsAndCharts!$A179+$A$11,IF($C$7,8,0),1,1) -> 92.26 | E179: =OFFSET(InputPriceData!D$15,CalculationsAndCharts!$A179+$A$11,IF($C$7,8,0),1,1) -> 92.4 | F179: =OFFSET(InputPriceData!E$15,CalculationsAndCharts!$A179+$A$11,IF($C$7,8,0),1,1) -> 91.59 | G179: =OFFSET(InputPriceData!F$15,CalculationsAndCharts!$A179+$A$11,IF($C$7,8,0),1,1) -> 91.72 | J179: 147 | K179: 2013-12-18 | L179: 0 | M179: 94.33 | N179: 94.53 | O179: 94.33 | P179: 94.53 | Q179: 0
A180: 148 | B180: =OFFSET(InputPriceData!B$15,CalculationsAndCharts!$A180+$A$11,0,1,1) -> 2013-10-08 | C180: =OFFSET(InputPriceData!G$15,CalculationsAndCharts!$A180+$A$11,IF($C$7,8,0),1,1) -> 3643900 | D180: =OFFSET(InputPriceData!C$15,CalculationsAndCharts!$A180+$A$11,IF($C$7,8,0),1,1) -> 92.7 | E180: =OFFSET(InputPriceData!D$15,CalculationsAndCharts!$A180+$A$11,IF($C$7,8,0),1,1) -> 93.01 | F180: =OFFSET(InputPriceData!E$15,CalculationsAndCharts!$A180+$A$11,IF($C$7,8,0),1,1) -> 92.38 | G180: =OFFSET(InputPriceData!F$15,CalculationsAndCharts!$A180+$A$11,IF($C$7,8,0),1,1) -> 92.38 | J180: 148 | K180: 2013-12-18 | L180: 0 | M180: 93.93 | N180: 94.33 | O180: 93.73 | P180: 94.33 | Q180: 1
A181: 149 | B181: =OFFSET(InputPriceData!B$15,CalculationsAndCharts!$A181+$A$11,0,1,1) -> 2013-10-07 | C181: =OFFSET(InputPriceData!G$15,CalculationsAndCharts!$A181+$A$11,IF($C$7,8,0),1,1) -> 3037100 | D181: =OFFSET(InputPriceData!C$15,CalculationsAndCharts!$A181+$A$11,IF($C$7,8,0),1,1) -> 92.69 | E181: =OFFSET(InputPriceData!D$15,CalculationsAndCharts!$A181+$A$11,IF($C$7,8,0),1,1) -> 93.22 | F181: =OFFSET(InputPriceData!E$15,CalculationsAndCharts!$A181+$A$11,IF($C$7,8,0),1,1) -> 92.57 | G181: =OFFSET(InputPriceData!F$15,CalculationsAndCharts!$A181+$A$11,IF($C$7,8,0),1,1) -> 92.79 | J181: 149 | K181: 2013-12-17 | L181: 0 | M181: 94.33 | N181: 94.53 | O181: 93.93 | P181: 93.93 | Q181: 1
A182: 150 | B182: =OFFSET(InputPriceData!B$15,CalculationsAndCharts!$A182+$A$11,0,1,1) -> 2013-10-04 | C182: =OFFSET(InputPriceData!G$15,CalculationsAndCharts!$A182+$A$11,IF($C$7,8,0),1,1) -> 3047700 | D182: =OFFSET(InputPriceData!C$15,CalculationsAndCharts!$A182+$A$11,IF($C$7,8,0),1,1) -> 93.04 | E182: =OFFSET(InputPriceData!D$15,CalculationsAndCharts!$A182+$A$11,IF($C$7,8,0),1,1) -> 93.23 | F182: =OFFSET(InputPriceData!E$15,CalculationsAndCharts!$A182+$A$11,IF($C$7,8,0),1,1) -> 92.83 | G182: =OFFSET(InputPriceData!F$15,CalculationsAndCharts!$A182+$A$11,IF($C$7,8,0),1,1) -> 93.13 | J182: 150 | K182: 2013-12-16 | L182: 0 | M182: 94.13 | N182: 94.33 | O182: 94.13 | P182: 94.33 | Q182: 0
A183: 151 | B183: =OFFSET(InputPriceData!B$15,CalculationsAndCharts!$A183+$A$11,0,1,1) -> 2013-10-03 | C183: =OFFSET(InputPriceData!G$15,CalculationsAndCharts!$A183+$A$11,IF($C$7,8,0),1,1) -> 4855700 | D183: =OFFSET(InputPriceData!C$15,CalculationsAndCharts!$A183+$A$11,IF($C$7,8,0),1,1) -> 93.57 | E183: =OFFSET(InputPriceData!D$15,CalculationsAndCharts!$A183+$A$11,IF($C$7,8,0),1,1) -> 93.63 | F183: =OFFSET(InputPriceData!E$15,CalculationsAndCharts!$A183+$A$11,IF($C$7,8,0),1,1) -> 93.04 | G183: =OFFSET(InputPriceData!F$15,CalculationsAndCharts!$A183+$A$11,IF($C$7,8,0),1,1) -> 93.1 | J183: 151 | K183: 2013-12-16 | L183: 0 | M183: 93.93 | N183: 94.13 | O183: 93.93 | P183: 94.13 | Q183: 0
A184: 152 | B184: =OFFSET(InputPriceData!B$15,CalculationsAndCharts!$A184+$A$11,0,1,1) -> 2013-10-02 | C184: =OFFSET(InputPriceData!G$15,CalculationsAndCharts!$A184+$A$11,IF($C$7,8,0),1,1) -> 7250300 | D184: =OFFSET(InputPriceData!C$15,CalculationsAndCharts!$A184+$A$11,IF($C$7,8,0),1,1) -> 94 | E184: =OFFSET(InputPriceData!D$15,CalculationsAndCharts!$A184+$A$11,IF($C$7,8,0),1,1) -> 94.29 | F184: =OFFSET(InputPriceData!E$15,CalculationsAndCharts!$A184+$A$11,IF($C$7,8,0),1,1) -> 92.45 | G184: =OFFSET(InputPriceData!F$15,CalculationsAndCharts!$A184+$A$11,IF($C$7,8,0),1,1) -> 93.7 | J184: 152 | K184: 2013-12-16 | L184: 3277500 | M184: 93.39 | N184: 93.93 | O184: 93.25 | P184: 93.93 | Q184: 2
A185: 153 | B185: =OFFSET(InputPriceData!B$15,CalculationsAndCharts!$A185+$A$11,0,1,1) -> 2013-10-01 | C185: =OFFSET(InputPriceData!G$15,CalculationsAndCharts!$A185+$A$11,IF($C$7,8,0),1,1) -> 3240700 | D185: =OFFSET(InputPriceData!C$15,CalculationsAndCharts!$A185+$A$11,IF($C$7,8,0),1,1) -> 94.58 | E185: =OFFSET(InputPriceData!D$15,CalculationsAndCharts!$A185+$A$11,IF($C$7,8,0),1,1) -> 94.79 | F185: =OFFSET(InputPriceData!E$15,CalculationsAndCharts!$A185+$A$11,IF($C$7,8,0),1,1) -> 94.25 | G185: =OFFSET(InputPriceData!F$15,CalculationsAndCharts!$A185+$A$11,IF($C$7,8,0),1,1) -> 94.53 | J185: 153 | K185: 2013-12-12 | L185: 0 | M185: 93.73 | N185: 93.73 | O185: 93.53 | P185: 93.53 | Q185: 0
A186: 154 | B186: =OFFSET(InputPriceData!B$15,CalculationsAndCharts!$A186+$A$11,0,1,1) -> 2013-09-30 | C186: =OFFSET(InputPriceData!G$15,CalculationsAndCharts!$A186+$A$11,IF($C$7,8,0),1,1) -> 4404500 | D186: =OFFSET(InputPriceData!C$15,CalculationsAndCharts!$A186+$A$11,IF($C$7,8,0),1,1) -> 94.86 | E186: =OFFSET(InputPriceData!D$15,CalculationsAndCharts!$A186+$A$11,IF($C$7,8,0),1,1) -> 95.08 | F186: =OFFSET(InputPriceData!E$15,CalculationsAndCharts!$A186+$A$11,IF($C$7,8,0),1,1) -> 93.53 | G186: =OFFSET(InputPriceData!F$15,CalculationsAndCharts!$A186+$A$11,IF($C$7,8,0),1,1) -> 94.61 | J186: 154 | K186: 2013-12-12 | L186: 0 | M186: 93.93 | N186: 93.93 | O186: 93.73 | P186: 93.73 | Q186: 0
A187: 155 | B187: =OFFSET(InputPriceData!B$15,CalculationsAndCharts!$A187+$A$11,0,1,1) -> 2013-09-27 | C187: =OFFSET(InputPriceData!G$15,CalculationsAndCharts!$A187+$A$11,IF($C$7,8,0),1,1) -> 3533100 | D187: =OFFSET(InputPriceData!C$15,CalculationsAndCharts!$A187+$A$11,IF($C$7,8,0),1,1) -> 96.27 | E187: =OFFSET(InputPriceData!D$15,CalculationsAndCharts!$A187+$A$11,IF($C$7,8,0),1,1) -> 96.37 | F187: =OFFSET(InputPriceData!E$15,CalculationsAndCharts!$A187+$A$11,IF($C$7,8,0),1,1) -> 95.39 | G187: =OFFSET(InputPriceData!F$15,CalculationsAndCharts!$A187+$A$11,IF($C$7,8,0),1,1) -> 95.51 | J187: 155 | K187: 2013-12-12 | L187: 0 | M187: 94.13 | N187: 94.13 | O187: 93.93 | P187: 93.93 | Q187: 0
A188: 156 | B188: =OFFSET(InputPriceData!B$15,CalculationsAndCharts!$A188+$A$11,0,1,1) -> 2013-09-26 | C188: =OFFSET(InputPriceData!G$15,CalculationsAndCharts!$A188+$A$11,IF($C$7,8,0),1,1) -> 3604900 | D188: =OFFSET(InputPriceData!C$15,CalculationsAndCharts!$A188+$A$11,IF($C$7,8,0),1,1) -> 96.26 | E188: =OFFSET(InputPriceData!D$15,CalculationsAndCharts!$A188+$A$11,IF($C$7,8,0),1,1) -> 96.69 | F188: =OFFSET(InputPriceData!E$15,CalculationsAndCharts!$A188+$A$11,IF($C$7,8,0),1,1) -> 96.17 | G188: =OFFSET(InputPriceData!F$15,CalculationsAndCharts!$A188+$A$11,IF($C$7,8,0),1,1) -> 96.56 | J188: 156 | K188: 2013-12-12 | L188: 0 | M188: 94.33 | N188: 94.33 | O188: 94.13 | P188: 94.13 | Q188: 0
A189: 157 | B189: =OFFSET(InputPriceData!B$15,CalculationsAndCharts!$A189+$A$11,0,1,1) -> 2013-09-25 | C189: =OFFSET(InputPriceData!G$15,CalculationsAndCharts!$A189+$A$11,IF($C$7,8,0),1,1) -> 4053200 | D189: =OFFSET(InputPriceData!C$15,CalculationsAndCharts!$A189+$A$11,IF($C$7,8,0),1,1) -> 96.18 | E189: =OFFSET(InputPriceData!D$15,CalculationsAndCharts!$A189+$A$11,IF($C$7,8,0),1,1) -> 96.36 | F189: =OFFSET(InputPriceData!E$15,CalculationsAndCharts!$A189+$A$11,IF($C$7,8,0),1,1) -> 95.79 | G189: =OFFSET(InputPriceData!F$15,CalculationsAndCharts!$A189+$A$11,IF($C$7,8,0),1,1) -> 96 | J189: 157 | K189: 2013-12-12 | L189: 0 | M189: 94.53 | N189: 94.53 | O189: 94.33 | P189: 94.33 | Q189: 0
A190: 158 | B190: =OFFSET(InputPriceData!B$15,CalculationsAndCharts!$A190+$A$11,0,1,1) -> 2013-09-24 | C190: =OFFSET(InputPriceData!G$15,CalculationsAndCharts!$A190+$A$11,IF($C$7,8,0),1,1) -> 4810300 | D190: =OFFSET(InputPriceData!C$15,CalculationsAndCharts!$A190+$A$11,IF($C$7,8,0),1,1) -> 95.52 | E190: =OFFSET(InputPriceData!D$15,CalculationsAndCharts!$A190+$A$11,IF($C$7,8,0),1,1) -> 96.96 | F190: =OFFSET(InputPriceData!E$15,CalculationsAndCharts!$A190+$A$11,IF($C$7,8,0),1,1) -> 95.25 | G190: =OFFSET(InputPriceData!F$15,CalculationsAndCharts!$A190+$A$11,IF($C$7,8,0),1,1) -> 96.15 | J190: 158 | K190: 2013-12-12 | L190: 0 | M190: 94.73 | N190: 94.73 | O190: 94.53 | P190: 94.53 | Q190: 1
A191: 159 | B191: =OFFSET(InputPriceData!B$15,CalculationsAndCharts!$A191+$A$11,0,1,1) -> 2013-09-23 | C191: =OFFSET(InputPriceData!G$15,CalculationsAndCharts!$A191+$A$11,IF($C$7,8,0),1,1) -> 3301600 | D191: =OFFSET(InputPriceData!C$15,CalculationsAndCharts!$A191+$A$11,IF($C$7,8,0),1,1) -> 95.36 | E191: =OFFSET(InputPriceData!D$15,CalculationsAndCharts!$A191+$A$11,IF($C$7,8,0),1,1) -> 95.96 | F191: =OFFSET(InputPriceData!E$15,CalculationsAndCharts!$A191+$A$11,IF($C$7,8,0),1,1) -> 95.21 | G191: =OFFSET(InputPriceData!F$15,CalculationsAndCharts!$A191+$A$11,IF($C$7,8,0),1,1) -> 95.66 | J191: 159 | K191: 2013-12-11 | L191: 0 | M191: 94.93 | N191: 94.93 | O191: 94.73 | P191: 94.73 | Q191: 1
A192: 160 | B192: =OFFSET(InputPriceData!B$15,CalculationsAndCharts!$A192+$A$11,0,1,1) -> 2013-09-20 | C192: =OFFSET(InputPriceData!G$15,CalculationsAndCharts!$A192+$A$11,IF($C$7,8,0),1,1) -> 8077000 | D192: =OFFSET(InputPriceData!C$15,CalculationsAndCharts!$A192+$A$11,IF($C$7,8,0),1,1) -> 96.08 | E192: =OFFSET(InputPriceData!D$15,CalculationsAndCharts!$A192+$A$11,IF($C$7,8,0),1,1) -> 96.42 | F192: =OFFSET(InputPriceData!E$15,CalculationsAndCharts!$A192+$A$11,IF($C$7,8,0),1,1) -> 95.29 | G192: =OFFSET(InputPriceData!F$15,CalculationsAndCharts!$A192+$A$11,IF($C$7,8,0),1,1) -> 95.29 | J192: 160 | K192: 2013-12-10 | L192: 0 | M192: 95.13 | N192: 95.13 | O192: 94.93 | P192: 94.93 | Q192: 1
A193: 161 | B193: =OFFSET(InputPriceData!B$15,CalculationsAndCharts!$A193+$A$11,0,1,1) -> 2013-09-19 | C193: =OFFSET(InputPriceData!G$15,CalculationsAndCharts!$A193+$A$11,IF($C$7,8,0),1,1) -> 6430800 | D193: =OFFSET(InputPriceData!C$15,CalculationsAndCharts!$A193+$A$11,IF($C$7,8,0),1,1) -> 96.86 | E193: =OFFSET(InputPriceData!D$15,CalculationsAndCharts!$A193+$A$11,IF($C$7,8,0),1,1) -> 96.87 | F193: =OFFSET(InputPriceData!E$15,CalculationsAndCharts!$A193+$A$11,IF($C$7,8,0),1,1) -> 95.39 | G193: =OFFSET(InputPriceData!F$15,CalculationsAndCharts!$A193+$A$11,IF($C$7,8,0),1,1) -> 96.29 | J193: 161 | K193: 2013-12-09 | L193: 0 | M193: 95.33 | N193: 95.33 | O193: 95.13 | P193: 95.13 | Q193: 0
A194: 162 | B194: =OFFSET(InputPriceData!B$15,CalculationsAndCharts!$A194+$A$11,0,1,1) -> 2013-09-18 | C194: =OFFSET(InputPriceData!G$15,CalculationsAndCharts!$A194+$A$11,IF($C$7,8,0),1,1) -> 4279600 | D194: =OFFSET(InputPriceData!C$15,CalculationsAndCharts!$A194+$A$11,IF($C$7,8,0),1,1) -> 96.24 | E194: =OFFSET(InputPriceData!D$15,CalculationsAndCharts!$A194+$A$11,IF($C$7,8,0),1,1) -> 97.35 | F194: =OFFSET(InputPriceData!E$15,CalculationsAndCharts!$A194+$A$11,IF($C$7,8,0),1,1) -> 96.02 | G194: =OFFSET(InputPriceData!F$15,CalculationsAndCharts!$A194+$A$11,IF($C$7,8,0),1,1) -> 97.06 | J194: 162 | K194: 2013-12-09 | L194: 0 | M194: 95.73 | N194: 95.93 | O194: 95.33 | P194: 95.33 | Q194: 1
A195: 163 | B195: =OFFSET(InputPriceData!B$15,CalculationsAndCharts!$A195+$A$11,0,1,1) -> 2013-09-17 | C195: =OFFSET(InputPriceData!G$15,CalculationsAndCharts!$A195+$A$11,IF($C$7,8,0),1,1) -> 3256900 | D195: =OFFSET(InputPriceData!C$15,CalculationsAndCharts!$A195+$A$11,IF($C$7,8,0),1,1) -> 95.96 | E195: =OFFSET(InputPriceData!D$15,CalculationsAndCharts!$A195+$A$11,IF($C$7,8,0),1,1) -> 96.72 | F195: =OFFSET(InputPriceData!E$15,CalculationsAndCharts!$A195+$A$11,IF($C$7,8,0),1,1) -> 95.87 | G195: =OFFSET(InputPriceData!F$15,CalculationsAndCharts!$A195+$A$11,IF($C$7,8,0),1,1) -> 96.29 | J195: 163 | K195: 2013-12-06 | L195: 0 | M195: 95.53 | N195: 95.73 | O195: 95.53 | P195: 95.73 | Q195: 0
A196: 164 | B196: =OFFSET(InputPriceData!B$15,CalculationsAndCharts!$A196+$A$11,0,1,1) -> 2013-09-16 | C196: =OFFSET(InputPriceData!G$15,CalculationsAndCharts!$A196+$A$11,IF($C$7,8,0),1,1) -> 3490900 | D196: =OFFSET(InputPriceData!C$15,CalculationsAndCharts!$A196+$A$11,IF($C$7,8,0),1,1) -> 96.26 | E196: =OFFSET(InputPriceData!D$15,CalculationsAndCharts!$A196+$A$11,IF($C$7,8,0),1,1) -> 96.54 | F196: =OFFSET(InputPriceData!E$15,CalculationsAndCharts!$A196+$A$11,IF($C$7,8,0),1,1) -> 95.79 | G196: =OFFSET(InputPriceData!F$15,CalculationsAndCharts!$A196+$A$11,IF($C$7,8,0),1,1) -> 96.09 | J196: 164 | K196: 2013-12-06 | L196: 0 | M196: 95.33 | N196: 95.53 | O196: 95.33 | P196: 95.53 | Q196: 0
A197: 165 | B197: =OFFSET(InputPriceData!B$15,CalculationsAndCharts!$A197+$A$11,0,1,1) -> 2013-09-13 | C197: =OFFSET(InputPriceData!G$15,CalculationsAndCharts!$A197+$A$11,IF($C$7,8,0),1,1) -> 2668700 | D197: =OFFSET(InputPriceData!C$15,CalculationsAndCharts!$A197+$A$11,IF($C$7,8,0),1,1) -> 95.72 | E197: =OFFSET(InputPriceData!D$15,CalculationsAndCharts!$A197+$A$11,IF($C$7,8,0),1,1) -> 96.03 | F197: =OFFSET(InputPriceData!E$15,CalculationsAndCharts!$A197+$A$11,IF($C$7,8,0),1,1) -> 95.51 | G197: =OFFSET(InputPriceData!F$15,CalculationsAndCharts!$A197+$A$11,IF($C$7,8,0),1,1) -> 95.73 | J197: 165 | K197: 2013-12-06 | L197: 0 | M197: 94.93 | N197: 95.33 | O197: 94.73 | P197: 95.33 | Q197: 1
A198: 166 | B198: =OFFSET(InputPriceData!B$15,CalculationsAndCharts!$A198+$A$11,0,1,1) -> 2013-09-12 | C198: =OFFSET(InputPriceData!G$15,CalculationsAndCharts!$A198+$A$11,IF($C$7,8,0),1,1) -> 4277300 | D198: =OFFSET(InputPriceData!C$15,CalculationsAndCharts!$A198+$A$11,IF($C$7,8,0),1,1) -> 95.85 | E198: =OFFSET(InputPriceData!D$15,CalculationsAndCharts!$A198+$A$11,IF($C$7,8,0),1,1) -> 96.22 | F198: =OFFSET(InputPriceData!E$15,CalculationsAndCharts!$A198+$A$11,IF($C$7,8,0),1,1) -> 95.45 | G198: =OFFSET(InputPriceData!F$15,CalculationsAndCharts!$A198+$A$11,IF($C$7,8,0),1,1) -> 95.56 | J198: 166 | K198: 2013-12-05 | L198: 0 | M198: 95.13 | N198: 95.13 | O198: 94.93 | P198: 94.93 | Q198: 1
A199: 167 | B199: =OFFSET(InputPriceData!B$15,CalculationsAndCharts!$A199+$A$11,0,1,1) -> 2013-09-11 | C199: =OFFSET(InputPriceData!G$15,CalculationsAndCharts!$A199+$A$11,IF($C$7,8,0),1,1) -> 3928600 | D199: =OFFSET(InputPriceData!C$15,CalculationsAndCharts!$A199+$A$11,IF($C$7,8,0),1,1) -> 95.05 | E199: =OFFSET(InputPriceData!D$15,CalculationsAndCharts!$A199+$A$11,IF($C$7,8,0),1,1) -> 95.84 | F199: =OFFSET(InputPriceData!E$15,CalculationsAndCharts!$A199+$A$11,IF($C$7,8,0),1,1) -> 94.77 | G199: =OFFSET(InputPriceData!F$15,CalculationsAndCharts!$A199+$A$11,IF($C$7,8,0),1,1) -> 95.84 | J199: 167 | K199: 2013-12-04 | L199: 0 | M199: 95.33 | N199: 95.33 | O199: 95.13 | P199: 95.13 | Q199: 0
A200: 168 | B200: =OFFSET(InputPriceData!B$15,CalculationsAndCharts!$A200+$A$11,0,1,1) -> 2013-09-10 | C200: =OFFSET(InputPriceData!G$15,CalculationsAndCharts!$A200+$A$11,IF($C$7,8,0),1,1) -> 4984300 | D200: =OFFSET(InputPriceData!C$15,CalculationsAndCharts!$A200+$A$11,IF($C$7,8,0),1,1) -> 95.49 | E200: =OFFSET(InputPriceData!D$15,CalculationsAndCharts!$A200+$A$11,IF($C$7,8,0),1,1) -> 95.74 | F200: =OFFSET(InputPriceData!E$15,CalculationsAndCharts!$A200+$A$11,IF($C$7,8,0),1,1) -> 94.9 | G200: =OFFSET(InputPriceData!F$15,CalculationsAndCharts!$A200+$A$11,IF($C$7,8,0),1,1) -> 95.28 | J200: 168 | K200: 2013-12-04 | L200: 0 | M200: 95.53 | N200: 95.53 | O200: 95.33 | P200: 95.33 | Q200: 0
A201: 169 | B201: =OFFSET(InputPriceData!B$15,CalculationsAndCharts!$A201+$A$11,0,1,1) -> 2013-09-09 | C201: =OFFSET(InputPriceData!G$15,CalculationsAndCharts!$A201+$A$11,IF($C$7,8,0),1,1) -> 3525200 | D201: =OFFSET(InputPriceData!C$15,CalculationsAndCharts!$A201+$A$11,IF($C$7,8,0),1,1) -> 94.62 | E201: =OFFSET(InputPriceData!D$15,CalculationsAndCharts!$A201+$A$11,IF($C$7,8,0),1,1) -> 95.18 | F201: =OFFSET(InputPriceData!E$15,CalculationsAndCharts!$A201+$A$11,IF($C$7,8,0),1,1) -> 94.61 | G201: =OFFSET(InputPriceData!F$15,CalculationsAndCharts!$A201+$A$11,IF($C$7,8,0),1,1) -> 94.85 | J201: 169 | K201: 2013-12-04 | L201: 4851900 | M201: 95.73 | N201: 95.73 | O201: 95.53 | P201: 95.53 | Q201: 1
A202: 170 | B202: =OFFSET(InputPriceData!B$15,CalculationsAndCharts!$A202+$A$11,0,1,1) -> 2013-09-06 | C202: =OFFSET(InputPriceData!G$15,CalculationsAndCharts!$A202+$A$11,IF($C$7,8,0),1,1) -> 4485800 | D202: =OFFSET(InputPriceData!C$15,CalculationsAndCharts!$A202+$A$11,IF($C$7,8,0),1,1) -> 94.28 | E202: =OFFSET(InputPriceData!D$15,CalculationsAndCharts!$A202+$A$11,IF($C$7,8,0),1,1) -> 95.14 | F202: =OFFSET(InputPriceData!E$15,CalculationsAndCharts!$A202+$A$11,IF($C$7,8,0),1,1) -> 93.67 | G202: =OFFSET(InputPriceData!F$15,CalculationsAndCharts!$A202+$A$11,IF($C$7,8,0),1,1) -> 94.66 | J202: 170 | K202: 2013-12-03 | L202: 0 | M202: 95.93 | N202: 95.93 | O202: 95.73 | P202: 95.73 | Q202: 1
A203: 171 | B203: =OFFSET(InputPriceData!B$15,CalculationsAndCharts!$A203+$A$11,0,1,1) -> 2013-09-05 | C203: =OFFSET(InputPriceData!G$15,CalculationsAndCharts!$A203+$A$11,IF($C$7,8,0),1,1) -> 4275300 | D203: =OFFSET(InputPriceData!C$15,CalculationsAndCharts!$A203+$A$11,IF($C$7,8,0),1,1) -> 93.75 | E203: =OFFSET(InputPriceData!D$15,CalculationsAndCharts!$A203+$A$11,IF($C$7,8,0),1,1) -> 94.86 | F203: =OFFSET(InputPriceData!E$15,CalculationsAndCharts!$A203+$A$11,IF($C$7,8,0),1,1) -> 93.5 | G203: =OFFSET(InputPriceData!F$15,CalculationsAndCharts!$A203+$A$11,IF($C$7,8,0),1,1) -> 94.07 | J203: 171 | K203: 2013-12-02 | L203: 0 | M203: 96.13 | N203: 96.13 | O203: 95.93 | P203: 95.93 | Q203: 0
A204: 172 | B204: =OFFSET(InputPriceData!B$15,CalculationsAndCharts!$A204+$A$11,0,1,1) -> 2013-09-04 | C204: =OFFSET(InputPriceData!G$15,CalculationsAndCharts!$A204+$A$11,IF($C$7,8,0),1,1) -> 2898800 | D204: =OFFSET(InputPriceData!C$15,CalculationsAndCharts!$A204+$A$11,IF($C$7,8,0),1,1) -> 92.93 | E204: =OFFSET(InputPriceData!D$15,CalculationsAndCharts!$A204+$A$11,IF($C$7,8,0),1,1) -> 93.78 | F204: =OFFSET(InputPriceData!E$15,CalculationsAndCharts!$A204+$A$11,IF($C$7,8,0),1,1) -> 92.77 | G204: =OFFSET(InputPriceData!F$15,CalculationsAndCharts!$A204+$A$11,IF($C$7,8,0),1,1) -> 93.58 | J204: 172 | K204: 2013-12-02 | L204: 6421800 | M204: 96.43 | N204: 96.78 | O204: 96.13 | P204: 96.13 | Q204: 2
A205: 173 | B205: =OFFSET(InputPriceData!B$15,CalculationsAndCharts!$A205+$A$11,0,1,1) -> 2013-09-03 | C205: =OFFSET(InputPriceData!G$15,CalculationsAndCharts!$A205+$A$11,IF($C$7,8,0),1,1) -> 3672100 | D205: =OFFSET(InputPriceData!C$15,CalculationsAndCharts!$A205+$A$11,IF($C$7,8,0),1,1) -> 93.52 | E205: =OFFSET(InputPriceData!D$15,CalculationsAndCharts!$A205+$A$11,IF($C$7,8,0),1,1) -> 93.7 | F205: =OFFSET(InputPriceData!E$15,CalculationsAndCharts!$A205+$A$11,IF($C$7,8,0),1,1) -> 92.56 | G205: =OFFSET(InputPriceData!F$15,CalculationsAndCharts!$A205+$A$11,IF($C$7,8,0),1,1) -> 92.95 | J205: 173 | K205: 2013-11-27 | L205: 5517400 | M205: 96.53 | N205: 96.53 | O205: 96.33 | P205: 96.33 | Q205: 1
A206: 174 | B206: =OFFSET(InputPriceData!B$15,CalculationsAndCharts!$A206+$A$11,0,1,1) -> 2013-08-30 | C206: =OFFSET(InputPriceData!G$15,CalculationsAndCharts!$A206+$A$11,IF($C$7,8,0),1,1) -> 3993000 | D206: =OFFSET(InputPriceData!C$15,CalculationsAndCharts!$A206+$A$11,IF($C$7,8,0),1,1) -> 93.42 | E206: =OFFSET(InputPriceData!D$15,CalculationsAndCharts!$A206+$A$11,IF($C$7,8,0),1,1) -> 93.55 | F206: =OFFSET(InputPriceData!E$15,CalculationsAndCharts!$A206+$A$11,IF($C$7,8,0),1,1) -> 92.57 | G206: =OFFSET(InputPriceData!F$15,CalculationsAndCharts!$A206+$A$11,IF($C$7,8,0),1,1) -> 92.79 | J206: 174 | K206: 2013-11-26 | L206: 0 | M206: 96.93 | N206: 97.13 | O206: 96.53 | P206: 96.53 | Q206: 1
A207: 175 | B207: =OFFSET(InputPriceData!B$15,CalculationsAndCharts!$A207+$A$11,0,1,1) -> 2013-08-29 | C207: =OFFSET(InputPriceData!G$15,CalculationsAndCharts!$A207+$A$11,IF($C$7,8,0),1,1) -> 4796600 | D207: =OFFSET(InputPriceData!C$15,CalculationsAndCharts!$A207+$A$11,IF($C$7,8,0),1,1) -> 94.06 | E207: =OFFSET(InputPriceData!D$15,CalculationsAndCharts!$A207+$A$11,IF($C$7,8,0),1,1) -> 94.38 | F207: =OFFSET(InputPriceData!E$15,CalculationsAndCharts!$A207+$A$11,IF($C$7,8,0),1,1) -> 93.12 | G207: =OFFSET(InputPriceData!F$15,CalculationsAndCharts!$A207+$A$11,IF($C$7,8,0),1,1) -> 93.28 | J207: 175 | K207: 2013-11-25 | L207: 0 | M207: 96.73 | N207: 96.93 | O207: 96.73 | P207: 96.93 | Q207: 0
... 2625 more rows

Sheet SVERenkoBarsChart
A2: =CalculationsAndCharts!K31&" for: " &CalculationsAndCharts!B2 -> Modified Renko Bars (20, 0.01) for: McDonald's Corpor (MCD) -NYSE (Daily)
